Council Name,Date,TransNo,Amount � (Excl VAT),Supplier name,Supplier Category,Expense Area,Expense Type,Expense Code
Royal Borough of Kingston,23/05/2024,70071755,800.00,1st Hook Scout Group,SUNDRY SUPPLIER - FINANCE,Corporate & Communities,Building Rents,A22005
Royal Borough of Kingston,10/05/2024,70071469,"1,255.00",1st Line Defence Ltd,CONSULTING ARCHITECTS ENGINEER,Corporate & Communities,Infrastructure Assets - Purchase & Enhancement,C12001
Royal Borough of Kingston,24/05/2024,90335449,"1,375.00",REDACTED - PERSONAL DATA,PLS LANDLORDS,Place,PSL Payments To Landlords,A22031
Royal Borough of Kingston,24/05/2024,90335493,"1,375.00",REDACTED - PERSONAL DATA,PLS LANDLORDS,Place,PSL Payments To Landlords,A22031
Royal Borough of Kingston,24/05/2024,90335353,"1,097.00",REDACTED - PERSONAL DATA,PLS LANDLORDS,Place,PSL Payments To Landlords,A22031
Royal Borough of Kingston,24/05/2024,90335403,"1,125.00",REDACTED - PERSONAL DATA,PLS LANDLORDS,Place,PSL Payments To Landlords,A22031
Royal Borough of Kingston,29/04/2024,70070335,"1,861.29",REDACTED - PERSONAL DATA,PLS LANDLORDS,Place,Prevention Of Homelessness,A44141
Royal Borough of Kingston,24/05/2024,90335484,"2,300.00",REDACTED - PERSONAL DATA,PLS LANDLORDS,Place,PSL Payments To Landlords,A22031
Royal Borough of Kingston,24/05/2024,90335485,"2,300.00",REDACTED - PERSONAL DATA,PLS LANDLORDS,Place,PSL Payments To Landlords,A22031
Royal Borough of Kingston,24/05/2024,90335486,"2,300.00",REDACTED - PERSONAL DATA,PLS LANDLORDS,Place,PSL Payments To Landlords,A22031
Royal Borough of Kingston,24/05/2024,90335636,"2,300.00",REDACTED - PERSONAL DATA,PLS LANDLORDS,Place,PSL Payments To Landlords,A22031
Royal Borough of Kingston,24/05/2024,90335445,993.34,REDACTED - PERSONAL DATA,PLS LANDLORDS,Place,PSL Payments To Landlords,A22031
Royal Borough of Kingston,09/05/2024,90330714,"4,781.25",ABACUS PRE-SCHOOL,ACADEMIC INSTNS - OTHER,Schools,PVI Providers,A60014
Royal Borough of Kingston,09/05/2024,90330833,"14,985.00",ABACUS PRE-SCHOOL,ACADEMIC INSTNS - OTHER,Schools,2 Yr Old Place Funding,A60000
Royal Borough of Kingston,01/05/2024,90333833,"5,314.29",ABBEY 14LIMITED,SOCIAL SERVICES RESIDENTIAL,Adult Social Care & Health,Independent Placements,A56006
Royal Borough of Kingston,01/05/2024,90328458,"3,881.87",ABBEYFIELD,SOCIAL SERVICES RESIDENTIAL,Adult Social Care & Health,Independent Placements,A56006
Royal Borough of Kingston,01/05/2024,90328459,"-3,857.14",ABBEYFIELD,SOCIAL SERVICES RESIDENTIAL,Adult Social Care & Health,Independent Placements,A56006
Royal Borough of Kingston,01/05/2024,90328460,"4,456.96",ABBEYFIELD,SOCIAL SERVICES RESIDENTIAL,Adult Social Care & Health,Independent Placements,A56006
Royal Borough of Kingston,01/05/2024,90328461,"-4,428.57",ABBEYFIELD,SOCIAL SERVICES RESIDENTIAL,Adult Social Care & Health,Independent Placements,A56006
Royal Borough of Kingston,01/05/2024,90328462,"3,799.97",ABBEYFIELD,SOCIAL SERVICES RESIDENTIAL,Adult Social Care & Health,Independent Placements,A56006
Royal Borough of Kingston,01/05/2024,90328463,"-3,714.29",ABBEYFIELD,SOCIAL SERVICES RESIDENTIAL,Adult Social Care & Health,Independent Placements,A56006
Royal Borough of Kingston,01/05/2024,90328556,"3,927.43",ABBEYFIELD,SOCIAL SERVICES RESIDENTIAL,Adult Social Care & Health,Independent Placements,A56006
Royal Borough of Kingston,01/05/2024,90328557,"-3,740.40",ABBEYFIELD,SOCIAL SERVICES RESIDENTIAL,Adult Social Care & Health,Independent Placements,A56006
Royal Borough of Kingston,01/05/2024,90328558,"4,058.34",ABBEYFIELD,SOCIAL SERVICES RESIDENTIAL,Adult Social Care & Health,Independent Placements,A56006
Royal Borough of Kingston,01/05/2024,90328559,"-3,865.08",ABBEYFIELD,SOCIAL SERVICES RESIDENTIAL,Adult Social Care & Health,Independent Placements,A56006
Royal Borough of Kingston,01/05/2024,90328560,"3,927.43",ABBEYFIELD,SOCIAL SERVICES RESIDENTIAL,Adult Social Care & Health,Independent Placements,A56006
Royal Borough of Kingston,01/05/2024,90328561,"-3,740.40",ABBEYFIELD,SOCIAL SERVICES RESIDENTIAL,Adult Social Care & Health,Independent Placements,A56006
Royal Borough of Kingston,01/05/2024,90328562,"4,058.34",ABBEYFIELD,SOCIAL SERVICES RESIDENTIAL,Adult Social Care & Health,Independent Placements,A56006
Royal Borough of Kingston,01/05/2024,90328563,"-3,865.08",ABBEYFIELD,SOCIAL SERVICES RESIDENTIAL,Adult Social Care & Health,Independent Placements,A56006
Royal Borough of Kingston,01/05/2024,90328564,"4,058.34",ABBEYFIELD,SOCIAL SERVICES RESIDENTIAL,Adult Social Care & Health,Independent Placements,A56006
Royal Borough of Kingston,01/05/2024,90328565,"-3,865.08",ABBEYFIELD,SOCIAL SERVICES RESIDENTIAL,Adult Social Care & Health,Independent Placements,A56006
Royal Borough of Kingston,01/05/2024,90328566,"3,927.43",ABBEYFIELD,SOCIAL SERVICES RESIDENTIAL,Adult Social Care & Health,Independent Placements,A56006
Royal Borough of Kingston,01/05/2024,90328567,"-3,740.40",ABBEYFIELD,SOCIAL SERVICES RESIDENTIAL,Adult Social Care & Health,Independent Placements,A56006
Royal Borough of Kingston,01/05/2024,90328568,"4,058.34",ABBEYFIELD,SOCIAL SERVICES RESIDENTIAL,Adult Social Care & Health,Independent Placements,A56006
Royal Borough of Kingston,01/05/2024,90328569,"-3,865.08",ABBEYFIELD,SOCIAL SERVICES RESIDENTIAL,Adult Social Care & Health,Independent Placements,A56006
Royal Borough of Kingston,01/05/2024,90328570,"3,927.43",ABBEYFIELD,SOCIAL SERVICES RESIDENTIAL,Adult Social Care & Health,Independent Placements,A56006
Royal Borough of Kingston,01/05/2024,90328571,"-3,740.40",ABBEYFIELD,SOCIAL SERVICES RESIDENTIAL,Adult Social Care & Health,Independent Placements,A56006
Royal Borough of Kingston,01/05/2024,90328572,"4,058.34",ABBEYFIELD,SOCIAL SERVICES RESIDENTIAL,Adult Social Care & Health,Independent Placements,A56006
Royal Borough of Kingston,01/05/2024,90328573,"-3,865.08",ABBEYFIELD,SOCIAL SERVICES RESIDENTIAL,Adult Social Care & Health,Independent Placements,A56006
Royal Borough of Kingston,01/05/2024,90328574,"4,058.34",ABBEYFIELD,SOCIAL SERVICES RESIDENTIAL,Adult Social Care & Health,Independent Placements,A56006
Royal Borough of Kingston,01/05/2024,90328575,"-3,865.08",ABBEYFIELD,SOCIAL SERVICES RESIDENTIAL,Adult Social Care & Health,Independent Placements,A56006
Royal Borough of Kingston,01/05/2024,90328576,"3,796.51",ABBEYFIELD,SOCIAL SERVICES RESIDENTIAL,Adult Social Care & Health,Independent Placements,A56006
Royal Borough of Kingston,01/05/2024,90328577,"-3,615.72",ABBEYFIELD,SOCIAL SERVICES RESIDENTIAL,Adult Social Care & Health,Independent Placements,A56006
Royal Borough of Kingston,01/05/2024,90328578,"4,058.34",ABBEYFIELD,SOCIAL SERVICES RESIDENTIAL,Adult Social Care & Health,Independent Placements,A56006
Royal Borough of Kingston,01/05/2024,90328579,"-3,865.08",ABBEYFIELD,SOCIAL SERVICES RESIDENTIAL,Adult Social Care & Health,Independent Placements,A56006
Royal Borough of Kingston,01/05/2024,90328580,"3,927.43",ABBEYFIELD,SOCIAL SERVICES RESIDENTIAL,Adult Social Care & Health,Independent Placements,A56006
Royal Borough of Kingston,01/05/2024,90328581,"-3,740.40",ABBEYFIELD,SOCIAL SERVICES RESIDENTIAL,Adult Social Care & Health,Independent Placements,A56006
Royal Borough of Kingston,01/05/2024,90328582,"2,749.20",ABBEYFIELD,SOCIAL SERVICES RESIDENTIAL,Adult Social Care & Health,Independent Placements,A56006
Royal Borough of Kingston,01/05/2024,90328583,"-2,618.28",ABBEYFIELD,SOCIAL SERVICES RESIDENTIAL,Adult Social Care & Health,Independent Placements,A56006
Royal Borough of Kingston,01/05/2024,90328584,"3,927.43",ABBEYFIELD,SOCIAL SERVICES RESIDENTIAL,Adult Social Care & Health,Independent Placements,A56006
Royal Borough of Kingston,01/05/2024,90328585,"-3,740.40",ABBEYFIELD,SOCIAL SERVICES RESIDENTIAL,Adult Social Care & Health,Independent Placements,A56006
Royal Borough of Kingston,01/05/2024,90328586,"4,058.34",ABBEYFIELD,SOCIAL SERVICES RESIDENTIAL,Adult Social Care & Health,Independent Placements,A56006
Royal Borough of Kingston,01/05/2024,90328587,"-3,865.08",ABBEYFIELD,SOCIAL SERVICES RESIDENTIAL,Adult Social Care & Health,Independent Placements,A56006
Royal Borough of Kingston,01/05/2024,90328588,"4,058.34",ABBEYFIELD,SOCIAL SERVICES RESIDENTIAL,Adult Social Care & Health,Independent Placements,A56006
Royal Borough of Kingston,01/05/2024,90328589,"-3,865.08",ABBEYFIELD,SOCIAL SERVICES RESIDENTIAL,Adult Social Care & Health,Independent Placements,A56006
Royal Borough of Kingston,01/05/2024,90328590,"3,796.51",ABBEYFIELD,SOCIAL SERVICES RESIDENTIAL,Adult Social Care & Health,Independent Placements,A56006
Royal Borough of Kingston,01/05/2024,90328591,"-3,615.72",ABBEYFIELD,SOCIAL SERVICES RESIDENTIAL,Adult Social Care & Health,Independent Placements,A56006
Royal Borough of Kingston,01/05/2024,90328592,"4,058.34",ABBEYFIELD,SOCIAL SERVICES RESIDENTIAL,Adult Social Care & Health,Independent Placements,A56006
Royal Borough of Kingston,01/05/2024,90328593,"-3,865.08",ABBEYFIELD,SOCIAL SERVICES RESIDENTIAL,Adult Social Care & Health,Independent Placements,A56006
Royal Borough of Kingston,01/05/2024,90328594,"3,927.43",ABBEYFIELD,SOCIAL SERVICES RESIDENTIAL,Adult Social Care & Health,Independent Placements,A56006
Royal Borough of Kingston,01/05/2024,90328595,"-3,740.40",ABBEYFIELD,SOCIAL SERVICES RESIDENTIAL,Adult Social Care & Health,Independent Placements,A56006
Royal Borough of Kingston,01/05/2024,90328990,"3,927.43",ABBEYFIELD,SOCIAL SERVICES RESIDENTIAL,Adult Social Care & Health,Independent Placements,A56006
Royal Borough of Kingston,01/05/2024,90328991,"-4,027.07",ABBEYFIELD,SOCIAL SERVICES RESIDENTIAL,Adult Social Care & Health,Independent Placements,A56006
Royal Borough of Kingston,01/05/2024,90328992,"4,058.34",ABBEYFIELD,SOCIAL SERVICES RESIDENTIAL,Adult Social Care & Health,Independent Placements,A56006
Royal Borough of Kingston,01/05/2024,90328993,"-4,161.31",ABBEYFIELD,SOCIAL SERVICES RESIDENTIAL,Adult Social Care & Health,Independent Placements,A56006
Royal Borough of Kingston,01/05/2024,90328994,"3,927.43",ABBEYFIELD,SOCIAL SERVICES RESIDENTIAL,Adult Social Care & Health,Independent Placements,A56006
Royal Borough of Kingston,01/05/2024,90328995,"-4,027.07",ABBEYFIELD,SOCIAL SERVICES RESIDENTIAL,Adult Social Care & Health,Independent Placements,A56006
Royal Borough of Kingston,01/05/2024,90328996,"4,058.34",ABBEYFIELD,SOCIAL SERVICES RESIDENTIAL,Adult Social Care & Health,Independent Placements,A56006
Royal Borough of Kingston,01/05/2024,90328997,"-4,161.31",ABBEYFIELD,SOCIAL SERVICES RESIDENTIAL,Adult Social Care & Health,Independent Placements,A56006
Royal Borough of Kingston,01/05/2024,90328998,"4,058.34",ABBEYFIELD,SOCIAL SERVICES RESIDENTIAL,Adult Social Care & Health,Independent Placements,A56006
Royal Borough of Kingston,01/05/2024,90328999,"-4,161.31",ABBEYFIELD,SOCIAL SERVICES RESIDENTIAL,Adult Social Care & Health,Independent Placements,A56006
Royal Borough of Kingston,01/05/2024,90329000,"3,927.43",ABBEYFIELD,SOCIAL SERVICES RESIDENTIAL,Adult Social Care & Health,Independent Placements,A56006
Royal Borough of Kingston,01/05/2024,90329001,"-4,027.07",ABBEYFIELD,SOCIAL SERVICES RESIDENTIAL,Adult Social Care & Health,Independent Placements,A56006
Royal Borough of Kingston,01/05/2024,90329002,"4,058.34",ABBEYFIELD,SOCIAL SERVICES RESIDENTIAL,Adult Social Care & Health,Independent Placements,A56006
Royal Borough of Kingston,01/05/2024,90329003,"-4,161.31",ABBEYFIELD,SOCIAL SERVICES RESIDENTIAL,Adult Social Care & Health,Independent Placements,A56006
Royal Borough of Kingston,01/05/2024,90329004,"3,927.43",ABBEYFIELD,SOCIAL SERVICES RESIDENTIAL,Adult Social Care & Health,Independent Placements,A56006
Royal Borough of Kingston,01/05/2024,90329005,"-4,027.07",ABBEYFIELD,SOCIAL SERVICES RESIDENTIAL,Adult Social Care & Health,Independent Placements,A56006
Royal Borough of Kingston,01/05/2024,90329006,"4,058.34",ABBEYFIELD,SOCIAL SERVICES RESIDENTIAL,Adult Social Care & Health,Independent Placements,A56006
Royal Borough of Kingston,01/05/2024,90329007,"-4,161.31",ABBEYFIELD,SOCIAL SERVICES RESIDENTIAL,Adult Social Care & Health,Independent Placements,A56006
Royal Borough of Kingston,01/05/2024,90329008,"4,058.34",ABBEYFIELD,SOCIAL SERVICES RESIDENTIAL,Adult Social Care & Health,Independent Placements,A56006
Royal Borough of Kingston,01/05/2024,90329009,"-4,161.31",ABBEYFIELD,SOCIAL SERVICES RESIDENTIAL,Adult Social Care & Health,Independent Placements,A56006
Royal Borough of Kingston,01/05/2024,90329010,"3,796.51",ABBEYFIELD,SOCIAL SERVICES RESIDENTIAL,Adult Social Care & Health,Independent Placements,A56006
Royal Borough of Kingston,01/05/2024,90329011,"-3,892.84",ABBEYFIELD,SOCIAL SERVICES RESIDENTIAL,Adult Social Care & Health,Independent Placements,A56006
Royal Borough of Kingston,01/05/2024,90329012,"4,058.34",ABBEYFIELD,SOCIAL SERVICES RESIDENTIAL,Adult Social Care & Health,Independent Placements,A56006
Royal Borough of Kingston,01/05/2024,90329013,"-4,161.31",ABBEYFIELD,SOCIAL SERVICES RESIDENTIAL,Adult Social Care & Health,Independent Placements,A56006
Royal Borough of Kingston,01/05/2024,90329014,"3,927.43",ABBEYFIELD,SOCIAL SERVICES RESIDENTIAL,Adult Social Care & Health,Independent Placements,A56006
Royal Borough of Kingston,01/05/2024,90329015,"-4,027.07",ABBEYFIELD,SOCIAL SERVICES RESIDENTIAL,Adult Social Care & Health,Independent Placements,A56006
Royal Borough of Kingston,01/05/2024,90329092,"3,927.43",ABBEYFIELD,SOCIAL SERVICES RESIDENTIAL,Adult Social Care & Health,Independent Placements,A56006
Royal Borough of Kingston,01/05/2024,90329093,"-3,740.40",ABBEYFIELD,SOCIAL SERVICES RESIDENTIAL,Adult Social Care & Health,Independent Placements,A56006
Royal Borough of Kingston,01/05/2024,90329094,"1,178.23",ABBEYFIELD,SOCIAL SERVICES RESIDENTIAL,Adult Social Care & Health,Independent Placements,A56006
Royal Borough of Kingston,01/05/2024,90329095,"-1,122.12",ABBEYFIELD,SOCIAL SERVICES RESIDENTIAL,Adult Social Care & Health,Independent Placements,A56006
Royal Borough of Kingston,01/05/2024,90329096,"3,927.43",ABBEYFIELD,SOCIAL SERVICES RESIDENTIAL,Adult Social Care & Health,Independent Placements,A56006
Royal Borough of Kingston,01/05/2024,90329097,"-3,740.40",ABBEYFIELD,SOCIAL SERVICES RESIDENTIAL,Adult Social Care & Health,Independent Placements,A56006
Royal Borough of Kingston,01/05/2024,90329098,"4,058.34",ABBEYFIELD,SOCIAL SERVICES RESIDENTIAL,Adult Social Care & Health,Independent Placements,A56006
Royal Borough of Kingston,01/05/2024,90329099,"-3,865.08",ABBEYFIELD,SOCIAL SERVICES RESIDENTIAL,Adult Social Care & Health,Independent Placements,A56006
Royal Borough of Kingston,01/05/2024,90329100,"3,927.43",ABBEYFIELD,SOCIAL SERVICES RESIDENTIAL,Adult Social Care & Health,Independent Placements,A56006
Royal Borough of Kingston,01/05/2024,90329101,"-3,740.40",ABBEYFIELD,SOCIAL SERVICES RESIDENTIAL,Adult Social Care & Health,Independent Placements,A56006
Royal Borough of Kingston,01/05/2024,90329102,"4,058.34",ABBEYFIELD,SOCIAL SERVICES RESIDENTIAL,Adult Social Care & Health,Independent Placements,A56006
Royal Borough of Kingston,01/05/2024,90329103,"-3,865.08",ABBEYFIELD,SOCIAL SERVICES RESIDENTIAL,Adult Social Care & Health,Independent Placements,A56006
Royal Borough of Kingston,01/05/2024,90329104,"4,058.34",ABBEYFIELD,SOCIAL SERVICES RESIDENTIAL,Adult Social Care & Health,Independent Placements,A56006
Royal Borough of Kingston,01/05/2024,90329105,"-3,865.08",ABBEYFIELD,SOCIAL SERVICES RESIDENTIAL,Adult Social Care & Health,Independent Placements,A56006
Royal Borough of Kingston,01/05/2024,90329106,"3,927.43",ABBEYFIELD,SOCIAL SERVICES RESIDENTIAL,Adult Social Care & Health,Independent Placements,A56006
Royal Borough of Kingston,01/05/2024,90329107,"-3,740.40",ABBEYFIELD,SOCIAL SERVICES RESIDENTIAL,Adult Social Care & Health,Independent Placements,A56006
Royal Borough of Kingston,01/05/2024,90329108,"1,309.14",ABBEYFIELD,SOCIAL SERVICES RESIDENTIAL,Adult Social Care & Health,Independent Placements,A56006
Royal Borough of Kingston,01/05/2024,90329109,"-1,246.80",ABBEYFIELD,SOCIAL SERVICES RESIDENTIAL,Adult Social Care & Health,Independent Placements,A56006
Royal Borough of Kingston,01/05/2024,90335083,"5,602.14",ABBEYFIELD,SOCIAL SERVICES RESIDENTIAL,Adult Social Care & Health,Independent Placements,A56006
Royal Borough of Kingston,01/05/2024,90335091,"4,333.67",ABBEYFIELD,SOCIAL SERVICES RESIDENTIAL,Adult Social Care & Health,Independent Placements,A56006
Royal Borough of Kingston,01/05/2024,90335099,"4,161.31",ABBEYFIELD,SOCIAL SERVICES RESIDENTIAL,Adult Social Care & Health,Independent Placements,A56006
Royal Borough of Kingston,01/05/2024,90335100,"4,161.31",ABBEYFIELD,SOCIAL SERVICES RESIDENTIAL,Adult Social Care & Health,Independent Placements,A56006
Royal Borough of Kingston,01/05/2024,90335103,"5,235.68",ABBEYFIELD,SOCIAL SERVICES RESIDENTIAL,Adult Social Care & Health,Independent Placements,A56006
Royal Borough of Kingston,01/05/2024,90335104,"4,333.67",ABBEYFIELD,SOCIAL SERVICES RESIDENTIAL,Adult Social Care & Health,Independent Placements,A56006
Royal Borough of Kingston,01/05/2024,90335110,"5,235.68",ABBEYFIELD,SOCIAL SERVICES RESIDENTIAL,Adult Social Care & Health,Independent Placements,A56006
Royal Borough of Kingston,01/05/2024,90335122,"4,333.67",ABBEYFIELD,SOCIAL SERVICES RESIDENTIAL,Adult Social Care & Health,Independent Placements,A56006
Royal Borough of Kingston,01/05/2024,90335130,"4,333.67",ABBEYFIELD,SOCIAL SERVICES RESIDENTIAL,Adult Social Care & Health,Independent Placements,A56006
Royal Borough of Kingston,01/05/2024,90335132,"4,161.31",ABBEYFIELD,SOCIAL SERVICES RESIDENTIAL,Adult Social Care & Health,Independent Placements,A56006
Royal Borough of Kingston,01/05/2024,90335140,"4,333.67",ABBEYFIELD,SOCIAL SERVICES RESIDENTIAL,Adult Social Care & Health,Independent Placements,A56006
Royal Borough of Kingston,01/05/2024,90335142,"4,333.67",ABBEYFIELD,SOCIAL SERVICES RESIDENTIAL,Adult Social Care & Health,Independent Placements,A56006
Royal Borough of Kingston,01/05/2024,90335143,"5,602.14",ABBEYFIELD,SOCIAL SERVICES RESIDENTIAL,Adult Social Care & Health,Independent Placements,A56006
Royal Borough of Kingston,01/05/2024,90335169,"4,058.34",ABBEYFIELD,SOCIAL SERVICES RESIDENTIAL,Adult Social Care & Health,Independent Placements,A56006
Royal Borough of Kingston,01/05/2024,90335172,"4,058.34",ABBEYFIELD,SOCIAL SERVICES RESIDENTIAL,Adult Social Care & Health,Independent Placements,A56006
Royal Borough of Kingston,01/05/2024,90335217,"4,333.67",ABBEYFIELD,SOCIAL SERVICES RESIDENTIAL,Adult Social Care & Health,Independent Placements,A56006
Royal Borough of Kingston,01/05/2024,90335227,"4,058.34",ABBEYFIELD,SOCIAL SERVICES RESIDENTIAL,Adult Social Care & Health,Independent Placements,A56006
Royal Borough of Kingston,01/05/2024,90335229,"5,235.68",ABBEYFIELD,SOCIAL SERVICES RESIDENTIAL,Adult Social Care & Health,Independent Placements,A56006
Royal Borough of Kingston,01/05/2024,90335231,"5,235.68",ABBEYFIELD,SOCIAL SERVICES RESIDENTIAL,Adult Social Care & Health,Independent Placements,A56006
Royal Borough of Kingston,01/05/2024,90335236,"4,333.67",ABBEYFIELD,SOCIAL SERVICES RESIDENTIAL,Adult Social Care & Health,Independent Placements,A56006
Royal Borough of Kingston,01/05/2024,90335239,"5,235.68",ABBEYFIELD,SOCIAL SERVICES RESIDENTIAL,Adult Social Care & Health,Independent Placements,A56006
Royal Borough of Kingston,01/05/2024,90335240,"5,235.68",ABBEYFIELD,SOCIAL SERVICES RESIDENTIAL,Adult Social Care & Health,Independent Placements,A56006
Royal Borough of Kingston,01/05/2024,90334912,"6,032.33",ABC HILLINGDON LTD,ACCOMMODATION - OTHER,Adult Social Care & Health,Personal Budget - Third Party,A61019
Royal Borough of Kingston,24/05/2024,90335454,990.58,REDACTED - PERSONAL DATA,PLS LANDLORDS,Place,PSL Payments To Landlords,A22031
Royal Borough of Kingston,25/04/2024,70071396,610.00,AC & MS LIMITED,LEGAL & PROFESSIONAL SERVICES,Housing Revenue Account,Asbestos Removal,C10000
Royal Borough of Kingston,03/05/2024,90328190,866.51,ACACIA PRE-SCHOOL,ACADEMIC INSTNS - OTHER,Schools,PVI Providers,A60014
Royal Borough of Kingston,09/05/2024,90330794,"14,287.50",ACACIA PRE-SCHOOL,ACADEMIC INSTNS - OTHER,Schools,PVI Providers,A60014
Royal Borough of Kingston,09/05/2024,90330895,"5,670.00",ACACIA PRE-SCHOOL,ACADEMIC INSTNS - OTHER,Schools,2 Yr Old Place Funding,A60000
Royal Borough of Kingston,30/04/2024,70070939,"1,836.00",ACCESS INDEPENDENT LIMITED,SOCIAL SERVICES - OTHER,Adult Social Care & Health,Other Private Contractors - Third Party,A56080
Royal Borough of Kingston,24/05/2024,90335715,"1,436.07",Accountancy Services (New Malden) Limited,PLS LANDLORDS,Place,PSL Payments To Landlords,A22031
Royal Borough of Kingston,01/05/2024,70070969,"4,050.00",Ace Investment Properties Ltd,ACCOMMODATION BED & BREAKFAST,Place,Bed & Breakfast,A56000
Royal Borough of Kingston,01/05/2024,90334367,"5,702.58",Achieve Together Limited,SOCIAL SERVICES - OTHER,Adult Social Care & Health,S-L framework - Accom - nights hours,A56151
Royal Borough of Kingston,01/05/2024,90334474,"2,652.36",Achieve Together Limited,SOCIAL SERVICES - OTHER,Adult Social Care & Health,S-L non - framework - Day hours,A56158
Royal Borough of Kingston,01/05/2024,90334480,"2,208.09",Achieve Together Limited,SOCIAL SERVICES - OTHER,Adult Social Care & Health,S-L non - framework - other support,A56159
Royal Borough of Kingston,01/05/2024,90335254,"7,437.65",Achieve Together Limited,SOCIAL SERVICES - OTHER,Adult Social Care & Health,Independent Placements,A56006
Royal Borough of Kingston,01/05/2024,90335255,"5,232.09",Achieve Together Limited,SOCIAL SERVICES - OTHER,Adult Social Care & Health,Independent Placements,A56006
Royal Borough of Kingston,01/05/2024,90335256,"2,214.29",Achieve Together Limited,SOCIAL SERVICES - OTHER,Adult Social Care & Health,Independent Placements,A56006
Royal Borough of Kingston,01/05/2024,90335257,"11,260.97",Achieve Together Limited,SOCIAL SERVICES - OTHER,Adult Social Care & Health,Independent Placements,A56006
Royal Borough of Kingston,01/05/2024,90335259,"12,436.67",Achieve Together Limited,SOCIAL SERVICES - OTHER,Adult Social Care & Health,Independent Placements,A56006
Royal Borough of Kingston,01/05/2024,90335298,"2,917.47",Achieve Together Limited,SOCIAL SERVICES - OTHER,Adult Social Care & Health,Residential / Nursing Placement,A56138
Royal Borough of Kingston,01/05/2024,90335299,"6,058.93",Achieve Together Limited,SOCIAL SERVICES - OTHER,Adult Social Care & Health,Residential / Nursing Placement,A56138
Royal Borough of Kingston,01/05/2024,90335300,"1,893.41",Achieve Together Limited,SOCIAL SERVICES - OTHER,Adult Social Care & Health,Residential / Nursing Placement,A56138
Royal Borough of Kingston,31/05/2024,90336482,"1,027.85",Achieve Together Limited,SOCIAL SERVICES - OTHER,Adult Social Care & Health,Residential / Nursing Placement,A56138
Royal Borough of Kingston,31/05/2024,90336483,649.17,Achieve Together Limited,SOCIAL SERVICES - OTHER,Adult Social Care & Health,Residential / Nursing Placement,A56138
Royal Borough of Kingston,31/05/2024,90336484,-649.17,Achieve Together Limited,SOCIAL SERVICES - OTHER,Adult Social Care & Health,Residential / Nursing Placement,A56138
Royal Borough of Kingston,31/05/2024,90336485,"1,677.01",Achieve Together Limited,SOCIAL SERVICES - OTHER,Adult Social Care & Health,Residential / Nursing Placement,A56138
Royal Borough of Kingston,20/03/2024,70069900,"479,897.36",ACHIEVING FOR CHILDREN LIMITED,LEGAL & PROFESSIONAL SERVICES,Adult Social Care & Health,Supporting People Contracts,A56027
Royal Borough of Kingston,12/03/2024,70070396,"10,980.00",ACHIEVING FOR CHILDREN LIMITED,LEGAL & PROFESSIONAL SERVICES,Adult Social Care & Health,Other Agencies - Third Party,A57000
Royal Borough of Kingston,23/02/2024,70070397,"5,280.00",ACHIEVING FOR CHILDREN LIMITED,LEGAL & PROFESSIONAL SERVICES,Corporate & Communities,Other Agencies - Third Party,A57000
Royal Borough of Kingston,23/02/2024,70070398,"3,125.00",ACHIEVING FOR CHILDREN LIMITED,LEGAL & PROFESSIONAL SERVICES,Corporate & Communities,Other Agencies - Third Party,A57000
Royal Borough of Kingston,23/02/2024,70070399,"4,995.00",ACHIEVING FOR CHILDREN LIMITED,LEGAL & PROFESSIONAL SERVICES,Corporate & Communities,Other Agencies - Third Party,A57000
Royal Borough of Kingston,22/03/2024,70070400,"9,135.00",ACHIEVING FOR CHILDREN LIMITED,LEGAL & PROFESSIONAL SERVICES,Corporate & Communities,Other Agencies - Third Party,A57000
Royal Borough of Kingston,12/03/2024,70070401,500.00,ACHIEVING FOR CHILDREN LIMITED,LEGAL & PROFESSIONAL SERVICES,Corporate & Communities,Other Agencies - Third Party,A57000
Royal Borough of Kingston,26/03/2024,70070402,"13,732.50",ACHIEVING FOR CHILDREN LIMITED,LEGAL & PROFESSIONAL SERVICES,Corporate & Communities,IT Software Maintenance,A45045
Royal Borough of Kingston,15/03/2024,70070404,"5,430.00",ACHIEVING FOR CHILDREN LIMITED,LEGAL & PROFESSIONAL SERVICES,Corporate & Communities,Intangible Assets - Purchase,C13000
Royal Borough of Kingston,15/03/2024,70070404,"4,380.00",ACHIEVING FOR CHILDREN LIMITED,LEGAL & PROFESSIONAL SERVICES,Corporate & Communities,Intangible Assets - Purchase,C13000
Royal Borough of Kingston,19/04/2024,70070706,"9,175,194.00",ACHIEVING FOR CHILDREN LIMITED,LEGAL & PROFESSIONAL SERVICES,Childrens Services,Fixed Childrens Services Contract Strategic,A51019
Royal Borough of Kingston,26/03/2024,70070934,"12,841.92",ACHIEVING FOR CHILDREN LIMITED,LEGAL & PROFESSIONAL SERVICES,Adult Social Care & Health,Supporting People Contracts,A56027
Royal Borough of Kingston,10/05/2024,70071016,"5,775.00",ACHIEVING FOR CHILDREN LIMITED,LEGAL & PROFESSIONAL SERVICES,Adult Social Care & Health,Supporting People Contracts,A56027
Royal Borough of Kingston,17/05/2024,70071428,"10,000.00",ACHIEVING FOR CHILDREN LIMITED,LEGAL & PROFESSIONAL SERVICES,Adult Social Care & Health,Staff Development And Training,A15022
Royal Borough of Kingston,09/05/2024,70071429,"6,726,383.33",ACHIEVING FOR CHILDREN LIMITED,LEGAL & PROFESSIONAL SERVICES,Childrens Services,Fixed Childrens Services Contract Strategic,A51019
Royal Borough of Kingston,03/05/2024,90328191,937.42,Acorn to Oak Nursery and Preschool Ltd,ACADEMIC INSTNS - OTHER,Schools,PVI Providers,A60014
Royal Borough of Kingston,09/05/2024,90330801,"23,390.62",Acorn to Oak Nursery and Preschool Ltd,ACADEMIC INSTNS - OTHER,Schools,PVI Providers,A60014
Royal Borough of Kingston,09/05/2024,90330902,"13,878.00",Acorn to Oak Nursery and Preschool Ltd,ACADEMIC INSTNS - OTHER,Schools,2 Yr Old Place Funding,A60000
Royal Borough of Kingston,01/05/2024,70070536,"1,530.00",ADAM HOTEL MANAGEMENT LTD,ACCOMMODATION BED & BREAKFAST,Place,Bed & Breakfast,A56000
Royal Borough of Kingston,01/05/2024,70070537,"1,050.00",ADAM HOTEL MANAGEMENT LTD,ACCOMMODATION BED & BREAKFAST,Place,Bed & Breakfast,A56000
Royal Borough of Kingston,04/04/2024,70070538,"1,085.00",ADAM HOTEL MANAGEMENT LTD,ACCOMMODATION BED & BREAKFAST,Place,Bed & Breakfast,A56000
Royal Borough of Kingston,01/05/2024,70070539,"1,050.00",ADAM HOTEL MANAGEMENT LTD,ACCOMMODATION BED & BREAKFAST,Place,Bed & Breakfast,A56000
Royal Borough of Kingston,04/04/2024,70070540,"1,581.00",ADAM HOTEL MANAGEMENT LTD,ACCOMMODATION BED & BREAKFAST,Place,Bed & Breakfast,A56000
Royal Borough of Kingston,04/04/2024,70070541,"1,085.00",ADAM HOTEL MANAGEMENT LTD,ACCOMMODATION BED & BREAKFAST,Place,Bed & Breakfast,A56000
Royal Borough of Kingston,01/05/2024,70070542,"1,050.00",ADAM HOTEL MANAGEMENT LTD,ACCOMMODATION BED & BREAKFAST,Place,Bed & Breakfast,A56000
Royal Borough of Kingston,04/04/2024,70070543,"1,581.00",ADAM HOTEL MANAGEMENT LTD,ACCOMMODATION BED & BREAKFAST,Place,Bed & Breakfast,A56000
Royal Borough of Kingston,01/05/2024,70070463,"22,782.65",ADAM HTT LIMITED  ,TAXI AND COACH HIRE,Adult Social Care & Health,Home To School Transport Taxis,A33016
Royal Borough of Kingston,08/05/2024,70070900,"25,725.46",ADAM HTT LIMITED  ,TAXI AND COACH HIRE,Adult Social Care & Health,Home To School Transport Taxis,A33016
Royal Borough of Kingston,15/05/2024,70071291,"17,148.74",ADAM HTT LIMITED  ,TAXI AND COACH HIRE,Adult Social Care & Health,Home To School Transport Taxis,A33016
Royal Borough of Kingston,22/05/2024,70071653,"24,109.28",ADAM HTT LIMITED  ,TAXI AND COACH HIRE,Adult Social Care & Health,Home To School Transport Taxis,A33016
Royal Borough of Kingston,29/05/2024,70072019,"17,643.98",ADAM HTT LIMITED  ,TAXI AND COACH HIRE,Adult Social Care & Health,Home To School Transport Taxis,A33016
Royal Borough of Kingston,09/05/2024,90330805,"1,968.75",Event Supplies LTD,ACADEMIC INSTNS - OTHER,Schools,PVI Providers,A60014
Royal Borough of Kingston,09/05/2024,90330806,"3,112.50",Event Supplies LTD,ACADEMIC INSTNS - OTHER,Schools,PVI Providers,A60014
Royal Borough of Kingston,09/05/2024,90330914,"1,215.00",Event Supplies LTD,ACADEMIC INSTNS - OTHER,Schools,2 Yr Old Place Funding,A60000
Royal Borough of Kingston,09/05/2024,90330915,"1,620.00",Event Supplies LTD,ACADEMIC INSTNS - OTHER,Schools,2 Yr Old Place Funding,A60000
Royal Borough of Kingston,09/05/2024,90330838,"1,620.00",REDACTED - PERSONAL DATA,ACADEMIC INSTNS - OTHER,Schools,2 Yr Old Place Funding,A60000
Royal Borough of Kingston,03/05/2024,70070574,"1,900.00",ADVANCED TREE SERVICES LIMITED,CONSTRUCTION INDUSTRY,Corporate & Communities,Tree Works,A56042
Royal Borough of Kingston,03/05/2024,70070575,560.00,ADVANCED TREE SERVICES LIMITED,CONSTRUCTION INDUSTRY,Housing Revenue Account,Tree Works,A56042
Royal Borough of Kingston,14/05/2024,70071333,"1,250.00",ADVANCED TREE SERVICES LIMITED,CONSTRUCTION INDUSTRY,Corporate & Communities,Maintenance of trees,A28003
Royal Borough of Kingston,03/05/2024,90328187,"3,340.19",ADVANTAGE DAY NURSERY LTD,ACADEMIC INSTNS - OTHER,Schools,Miscellaneous Expenses,A49000
Royal Borough of Kingston,09/05/2024,90330686,"45,454.69",ADVANTAGE DAY NURSERY LTD,ACADEMIC INSTNS - OTHER,Schools,PVI Providers,A60014
Royal Borough of Kingston,09/05/2024,90330808,"27,438.75",ADVANTAGE DAY NURSERY LTD,ACADEMIC INSTNS - OTHER,Schools,PVI Providers,A60014
Royal Borough of Kingston,23/05/2024,90334971,910.00,ADVANTAGE DAY NURSERY LTD,ACADEMIC INSTNS - OTHER,Schools,PVI Providers,A60014
Royal Borough of Kingston,23/05/2024,90334975,"1,820.00",ADVANTAGE DAY NURSERY LTD,ACADEMIC INSTNS - OTHER,Schools,2 Yr Old Place Funding,A60000
Royal Borough of Kingston,30/04/2024,70071445,"5,542.63",AFFI (UK) LTD,OPERATIONAL EQUIPMENT/MATERIAL,SLWP,Waste Management Strategy,A44090
Royal Borough of Kingston,30/10/2023,70065994,"45,000.00",Age Concern Kingston upon Thames,GRANTS & EX GRATIA PAYMENTS,Adult Social Care & Health,Payments to Voluntary Organisations,A54005
Royal Borough of Kingston,26/04/2024,70070414,"2,083.79",Age Concern Kingston upon Thames,GRANTS & EX GRATIA PAYMENTS,Adult Social Care & Health,Building Rents,A22005
Royal Borough of Kingston,30/04/2024,70071799,"24,974.98",Age Concern Kingston upon Thames,GRANTS & EX GRATIA PAYMENTS,Adult Social Care & Health,Building Rents,A22005
Royal Borough of Kingston,22/04/2024,90334231,648.00,Age Concern Kingston upon Thames,GRANTS & EX GRATIA PAYMENTS,Adult Social Care & Health,Day Opps / Day Care -� Building-based�,A56144
Royal Borough of Kingston,22/04/2024,90334236,"1,080.00",Age Concern Kingston upon Thames,GRANTS & EX GRATIA PAYMENTS,Adult Social Care & Health,Day Opps / Day Care -� Building-based�,A56144
Royal Borough of Kingston,22/04/2024,90334237,"1,080.00",Age Concern Kingston upon Thames,GRANTS & EX GRATIA PAYMENTS,Adult Social Care & Health,Day Opps / Day Care -� Building-based�,A56144
Royal Borough of Kingston,22/04/2024,90334238,864.00,Age Concern Kingston upon Thames,GRANTS & EX GRATIA PAYMENTS,Adult Social Care & Health,Day Opps / Day Care -� Building-based�,A56144
Royal Borough of Kingston,09/05/2024,90330738,"1,406.25",REDACTED - PERSONAL DATA,ACADEMIC INSTNS - OTHER,Schools,PVI Providers,A60014
Royal Borough of Kingston,09/05/2024,90330853,"1,215.00",REDACTED - PERSONAL DATA,ACADEMIC INSTNS - OTHER,Schools,2 Yr Old Place Funding,A60000
Royal Borough of Kingston,01/05/2024,90332813,"1,542.86",AIMS CARE LIMITED,SOCIAL SERVICES RESIDENTIAL,Adult Social Care & Health,Independent Placements,A56006
Royal Borough of Kingston,01/05/2024,90333927,"14,446.00",AIMS CARE LIMITED,SOCIAL SERVICES RESIDENTIAL,Adult Social Care & Health,Independent Placements,A56006
Royal Borough of Kingston,01/05/2024,90335170,"4,680.50",AIMS CARE LIMITED,SOCIAL SERVICES RESIDENTIAL,Adult Social Care & Health,Independent Placements,A56006
Royal Borough of Kingston,01/05/2024,90335171,"6,864.29",AIMS CARE LIMITED,SOCIAL SERVICES RESIDENTIAL,Adult Social Care & Health,Independent Placements,A56006
Royal Borough of Kingston,01/05/2024,90335176,"7,971.43",AIMS CARE LIMITED,SOCIAL SERVICES RESIDENTIAL,Adult Social Care & Health,Independent Placements,A56006
Royal Borough of Kingston,17/05/2024,70071470,"1,850.00",AIR SURVEYS LIMITED,LEGAL & PROFESSIONAL SERVICES,Place,Payments to Contractors,C14000
Royal Borough of Kingston,07/05/2024,90328247,500.00,REDACTED - PERSONAL DATA,GRANTS & EX GRATIA PAYMENTS,Adult Social Care & Health,"Grants, Contributions & Donations",A47005
Royal Borough of Kingston,07/05/2024,90328248,500.00,REDACTED - PERSONAL DATA,CHARITIES & VOLUNTARY ORGNS,Adult Social Care & Health,"Grants, Contributions & Donations",A47005
Royal Borough of Kingston,24/05/2024,90335518,"1,094.00",REDACTED - PERSONAL DATA,LANDLORDS,Place,PSL Payments To Landlords,A22031
Royal Borough of Kingston,02/05/2024,90328131,"169,425.48",ALEXANDRA SCHOOL,SCHOOL FUNDS,Schools,Miscellaneous Expenses,A49000
Royal Borough of Kingston,02/05/2024,90328151,"4,000.00",ALEXANDRA SCHOOL,SCHOOL FUNDS,Schools,Miscellaneous Expenses,A49000
Royal Borough of Kingston,02/05/2024,90328165,"4,000.00",ALEXANDRA SCHOOL,SCHOOL FUNDS,Schools,Miscellaneous Expenses,A49000
Royal Borough of Kingston,03/05/2024,90328193,712.80,ALEXANDRA SCHOOL,SCHOOL FUNDS,Schools,Miscellaneous Expenses,A49000
Royal Borough of Kingston,09/05/2024,90330735,"19,781.25",ALEXANDRA SCHOOL,SCHOOL FUNDS,Schools,PVI Providers,A60014
Royal Borough of Kingston,23/05/2024,90334955,"4,000.00",ALEXANDRA SCHOOL,SCHOOL FUNDS,Schools,Miscellaneous Expenses,A49000
Royal Borough of Kingston,24/05/2024,90335703,"1,050.00",REDACTED - PERSONAL DATA,PLS LANDLORDS,Place,PSL Payments To Landlords,A22031
Royal Borough of Kingston,07/05/2024,90328315,550.00,REDACTED - PERSONAL DATA,CHARITIES & VOLUNTARY ORGNS,Adult Social Care & Health,"Grants, Contributions & Donations",A47005
Royal Borough of Kingston,24/05/2024,70072007,"6,747.05",ALLENS Catering equipment & furniture hire,ELECTORAL SERVICES,Corporate & Communities,Equipment Purchase & Hire,A40050
Royal Borough of Kingston,18/03/2024,70070533,"50,674.65",ALLIANCE LEISURE,TEMP STAFF & CONSULTANCY,Place,External Fees and Consultants,C20000
Royal Borough of Kingston,09/05/2024,70070994,"130,260.00",ALLIANCE LEISURE,TEMP STAFF & CONSULTANCY,Place,External Fees and Consultants,C20000
Royal Borough of Kingston,30/04/2024,70070743,600.88,ALLIED PUBLICITY SERVICES (MANCHESTER) LTD,PRESS & PUBLICITY,Adult Social Care & Health,Other Private Contractors - Third Party,A56080
Royal Borough of Kingston,19/03/2024,70071853,518.00,ALLIED PUBLICITY SERVICES (MANCHESTER) LTD,PRESS & PUBLICITY,Adult Social Care & Health,Other Private Contractors - Third Party,A56080
Royal Borough of Kingston,15/04/2024,90329128,595.60,ALPENBEST LTD,SOCIAL SERVICES DAY CARE,Adult Social Care & Health,Homecare - new framework,A56127
Royal Borough of Kingston,15/04/2024,90329131,605.06,ALPENBEST LTD,SOCIAL SERVICES DAY CARE,Adult Social Care & Health,Homecare - new framework,A56127
Royal Borough of Kingston,15/04/2024,90329156,661.78,ALPENBEST LTD,SOCIAL SERVICES DAY CARE,Adult Social Care & Health,Homecare - new framework,A56127
Royal Borough of Kingston,15/04/2024,90329227,860.32,ALPENBEST LTD,SOCIAL SERVICES DAY CARE,Adult Social Care & Health,Homecare - new framework,A56127
Royal Borough of Kingston,15/04/2024,90329305,595.60,ALPENBEST LTD,SOCIAL SERVICES DAY CARE,Adult Social Care & Health,Homecare - new framework,A56127
Royal Borough of Kingston,15/04/2024,90329328,538.88,ALPENBEST LTD,SOCIAL SERVICES DAY CARE,Adult Social Care & Health,Homecare - new framework,A56127
Royal Borough of Kingston,15/04/2024,90329339,661.78,ALPENBEST LTD,SOCIAL SERVICES DAY CARE,Adult Social Care & Health,Homecare - new framework,A56127
Royal Borough of Kingston,15/04/2024,90329354,652.33,ALPENBEST LTD,SOCIAL SERVICES DAY CARE,Adult Social Care & Health,Homecare - new framework,A56127
Royal Borough of Kingston,15/04/2024,90329362,661.78,ALPENBEST LTD,SOCIAL SERVICES DAY CARE,Adult Social Care & Health,Homecare - new framework,A56127
Royal Borough of Kingston,15/04/2024,90329378,661.78,ALPENBEST LTD,SOCIAL SERVICES DAY CARE,Adult Social Care & Health,Homecare - new framework,A56127
Royal Borough of Kingston,15/04/2024,90329490,529.42,ALPENBEST LTD,SOCIAL SERVICES DAY CARE,Adult Social Care & Health,Homecare - Framework - double-handed,A56131
Royal Borough of Kingston,15/04/2024,90329491,661.78,ALPENBEST LTD,SOCIAL SERVICES DAY CARE,Adult Social Care & Health,Homecare - Framework - double-handed,A56131
Royal Borough of Kingston,15/04/2024,90329532,505.79,ALPENBEST LTD,SOCIAL SERVICES DAY CARE,Adult Social Care & Health,Homecare - Framework - single - handed,A56132
Royal Borough of Kingston,15/04/2024,90330637,661.78,ALPENBEST LTD,SOCIAL SERVICES DAY CARE,Adult Social Care & Health,Personal Budget - Third Party,A61019
Royal Borough of Kingston,22/04/2024,90332066,595.60,ALPENBEST LTD,SOCIAL SERVICES DAY CARE,Adult Social Care & Health,Homecare - new framework,A56127
Royal Borough of Kingston,22/04/2024,90332069,605.06,ALPENBEST LTD,SOCIAL SERVICES DAY CARE,Adult Social Care & Health,Homecare - new framework,A56127
Royal Borough of Kingston,22/04/2024,90332092,661.78,ALPENBEST LTD,SOCIAL SERVICES DAY CARE,Adult Social Care & Health,Homecare - new framework,A56127
Royal Borough of Kingston,22/04/2024,90332159,860.32,ALPENBEST LTD,SOCIAL SERVICES DAY CARE,Adult Social Care & Health,Homecare - new framework,A56127
Royal Borough of Kingston,22/04/2024,90332230,595.60,ALPENBEST LTD,SOCIAL SERVICES DAY CARE,Adult Social Care & Health,Homecare - new framework,A56127
Royal Borough of Kingston,22/04/2024,90332252,538.88,ALPENBEST LTD,SOCIAL SERVICES DAY CARE,Adult Social Care & Health,Homecare - new framework,A56127
Royal Borough of Kingston,22/04/2024,90332262,661.78,ALPENBEST LTD,SOCIAL SERVICES DAY CARE,Adult Social Care & Health,Homecare - new framework,A56127
Royal Borough of Kingston,22/04/2024,90332277,652.33,ALPENBEST LTD,SOCIAL SERVICES DAY CARE,Adult Social Care & Health,Homecare - new framework,A56127
Royal Borough of Kingston,22/04/2024,90332285,661.78,ALPENBEST LTD,SOCIAL SERVICES DAY CARE,Adult Social Care & Health,Homecare - new framework,A56127
Royal Borough of Kingston,22/04/2024,90332300,661.78,ALPENBEST LTD,SOCIAL SERVICES DAY CARE,Adult Social Care & Health,Homecare - new framework,A56127
Royal Borough of Kingston,22/04/2024,90332414,661.78,ALPENBEST LTD,SOCIAL SERVICES DAY CARE,Adult Social Care & Health,Homecare - Framework - double-handed,A56131
Royal Borough of Kingston,22/04/2024,90332460,661.78,ALPENBEST LTD,SOCIAL SERVICES DAY CARE,Adult Social Care & Health,Homecare - Framework - single - handed,A56132
Royal Borough of Kingston,22/04/2024,90332695,661.78,ALPENBEST LTD,SOCIAL SERVICES DAY CARE,Adult Social Care & Health,Personal Budget - Third Party,A61019
Royal Borough of Kingston,29/04/2024,90332869,595.60,ALPENBEST LTD,SOCIAL SERVICES DAY CARE,Adult Social Care & Health,Homecare - new framework,A56127
Royal Borough of Kingston,29/04/2024,90332872,605.06,ALPENBEST LTD,SOCIAL SERVICES DAY CARE,Adult Social Care & Health,Homecare - new framework,A56127
Royal Borough of Kingston,29/04/2024,90332894,661.78,ALPENBEST LTD,SOCIAL SERVICES DAY CARE,Adult Social Care & Health,Homecare - new framework,A56127
Royal Borough of Kingston,29/04/2024,90332989,860.32,ALPENBEST LTD,SOCIAL SERVICES DAY CARE,Adult Social Care & Health,Homecare - new framework,A56127
Royal Borough of Kingston,29/04/2024,90333075,595.60,ALPENBEST LTD,SOCIAL SERVICES DAY CARE,Adult Social Care & Health,Homecare - new framework,A56127
Royal Borough of Kingston,29/04/2024,90333095,538.88,ALPENBEST LTD,SOCIAL SERVICES DAY CARE,Adult Social Care & Health,Homecare - new framework,A56127
Royal Borough of Kingston,29/04/2024,90333105,661.78,ALPENBEST LTD,SOCIAL SERVICES DAY CARE,Adult Social Care & Health,Homecare - new framework,A56127
Royal Borough of Kingston,29/04/2024,90333129,661.78,ALPENBEST LTD,SOCIAL SERVICES DAY CARE,Adult Social Care & Health,Homecare - new framework,A56127
Royal Borough of Kingston,29/04/2024,90333144,652.33,ALPENBEST LTD,SOCIAL SERVICES DAY CARE,Adult Social Care & Health,Homecare - new framework,A56127
Royal Borough of Kingston,29/04/2024,90333194,"1,323.56",ALPENBEST LTD,SOCIAL SERVICES DAY CARE,Adult Social Care & Health,Homecare - new framework,A56127
Royal Borough of Kingston,29/04/2024,90333247,963.78,ALPENBEST LTD,SOCIAL SERVICES DAY CARE,Adult Social Care & Health,Homecare - Framework - 24 hour care & live-in,A56130
Royal Borough of Kingston,29/04/2024,90333248,963.78,ALPENBEST LTD,SOCIAL SERVICES DAY CARE,Adult Social Care & Health,Homecare - Framework - 24 hour care & live-in,A56130
Royal Borough of Kingston,29/04/2024,90333249,963.78,ALPENBEST LTD,SOCIAL SERVICES DAY CARE,Adult Social Care & Health,Homecare - Framework - 24 hour care & live-in,A56130
Royal Borough of Kingston,29/04/2024,90333250,963.78,ALPENBEST LTD,SOCIAL SERVICES DAY CARE,Adult Social Care & Health,Homecare - Framework - 24 hour care & live-in,A56130
Royal Borough of Kingston,29/04/2024,90333251,"1,011.96",ALPENBEST LTD,SOCIAL SERVICES DAY CARE,Adult Social Care & Health,Homecare - Framework - 24 hour care & live-in,A56130
Royal Borough of Kingston,29/04/2024,90333252,"1,011.96",ALPENBEST LTD,SOCIAL SERVICES DAY CARE,Adult Social Care & Health,Homecare - Framework - 24 hour care & live-in,A56130
Royal Borough of Kingston,29/04/2024,90333253,"1,011.96",ALPENBEST LTD,SOCIAL SERVICES DAY CARE,Adult Social Care & Health,Homecare - Framework - 24 hour care & live-in,A56130
Royal Borough of Kingston,29/04/2024,90333254,"1,011.96",ALPENBEST LTD,SOCIAL SERVICES DAY CARE,Adult Social Care & Health,Homecare - Framework - 24 hour care & live-in,A56130
Royal Borough of Kingston,29/04/2024,90333255,"1,011.96",ALPENBEST LTD,SOCIAL SERVICES DAY CARE,Adult Social Care & Health,Homecare - Framework - 24 hour care & live-in,A56130
Royal Borough of Kingston,29/04/2024,90333281,-576.24,ALPENBEST LTD,SOCIAL SERVICES DAY CARE,Adult Social Care & Health,Homecare - Framework - double-handed,A56131
Royal Borough of Kingston,29/04/2024,90333282,-630.27,ALPENBEST LTD,SOCIAL SERVICES DAY CARE,Adult Social Care & Health,Homecare - Framework - double-handed,A56131
Royal Borough of Kingston,29/04/2024,90333283,-630.27,ALPENBEST LTD,SOCIAL SERVICES DAY CARE,Adult Social Care & Health,Homecare - Framework - double-handed,A56131
Royal Borough of Kingston,29/04/2024,90333284,-630.27,ALPENBEST LTD,SOCIAL SERVICES DAY CARE,Adult Social Care & Health,Homecare - Framework - double-handed,A56131
Royal Borough of Kingston,29/04/2024,90333286,661.78,ALPENBEST LTD,SOCIAL SERVICES DAY CARE,Adult Social Care & Health,Homecare - Framework - double-handed,A56131
Royal Borough of Kingston,29/04/2024,90333335,661.78,ALPENBEST LTD,SOCIAL SERVICES DAY CARE,Adult Social Care & Health,Homecare - Framework - single - handed,A56132
Royal Borough of Kingston,29/04/2024,90333656,661.78,ALPENBEST LTD,SOCIAL SERVICES DAY CARE,Adult Social Care & Health,Personal Budget - Third Party,A61019
Royal Borough of Kingston,06/05/2024,90335805,595.60,ALPENBEST LTD,SOCIAL SERVICES DAY CARE,Adult Social Care & Health,Homecare - new framework,A56127
Royal Borough of Kingston,06/05/2024,90335808,605.06,ALPENBEST LTD,SOCIAL SERVICES DAY CARE,Adult Social Care & Health,Homecare - new framework,A56127
Royal Borough of Kingston,06/05/2024,90335830,661.78,ALPENBEST LTD,SOCIAL SERVICES DAY CARE,Adult Social Care & Health,Homecare - new framework,A56127
Royal Borough of Kingston,06/05/2024,90335960,595.60,ALPENBEST LTD,SOCIAL SERVICES DAY CARE,Adult Social Care & Health,Homecare - new framework,A56127
Royal Borough of Kingston,06/05/2024,90335981,538.88,ALPENBEST LTD,SOCIAL SERVICES DAY CARE,Adult Social Care & Health,Homecare - new framework,A56127
Royal Borough of Kingston,06/05/2024,90335991,661.78,ALPENBEST LTD,SOCIAL SERVICES DAY CARE,Adult Social Care & Health,Homecare - new framework,A56127
Royal Borough of Kingston,06/05/2024,90336014,661.78,ALPENBEST LTD,SOCIAL SERVICES DAY CARE,Adult Social Care & Health,Homecare - new framework,A56127
Royal Borough of Kingston,06/05/2024,90336029,661.78,ALPENBEST LTD,SOCIAL SERVICES DAY CARE,Adult Social Care & Health,Homecare - new framework,A56127
Royal Borough of Kingston,06/05/2024,90336077,-661.78,ALPENBEST LTD,SOCIAL SERVICES DAY CARE,Adult Social Care & Health,Homecare - new framework,A56127
Royal Borough of Kingston,06/05/2024,90336078,661.78,ALPENBEST LTD,SOCIAL SERVICES DAY CARE,Adult Social Care & Health,Homecare - new framework,A56127
Royal Borough of Kingston,06/05/2024,90336100,"1,011.96",ALPENBEST LTD,SOCIAL SERVICES DAY CARE,Adult Social Care & Health,Homecare - Framework - 24 hour care & live-in,A56130
Royal Borough of Kingston,06/05/2024,90336131,519.97,ALPENBEST LTD,SOCIAL SERVICES DAY CARE,Adult Social Care & Health,Homecare - Framework - double-handed,A56131
Royal Borough of Kingston,06/05/2024,90336133,661.78,ALPENBEST LTD,SOCIAL SERVICES DAY CARE,Adult Social Care & Health,Homecare - Framework - double-handed,A56131
Royal Borough of Kingston,06/05/2024,90336179,661.78,ALPENBEST LTD,SOCIAL SERVICES DAY CARE,Adult Social Care & Health,Homecare - Framework - single - handed,A56132
Royal Borough of Kingston,06/05/2024,90336441,661.78,ALPENBEST LTD,SOCIAL SERVICES DAY CARE,Adult Social Care & Health,Personal Budget - Third Party,A61019
Royal Borough of Kingston,01/05/2024,90334478,"4,428.57",Alpha Care and Support Services Limited,SOCIAL SERVICES RESIDENTIAL,Adult Social Care & Health,S-L non - framework - other support,A56159
Royal Borough of Kingston,30/04/2024,70071045,"1,250.00",ALTAIR CONSULTANCY AND ADVISORY SERVICES LTD,LEGAL & PROFESSIONAL SERVICES,Housing Revenue Account,Consultancy Services - Other,A44065
Royal Borough of Kingston,01/05/2024,90333965,"6,457.50",Alwdo Assist Ltd,SOCIAL SERVICES DAY CARE,Adult Social Care & Health,Other Private Contractors - Third Party,A56080
Royal Borough of Kingston,07/05/2024,90328251,500.00,REDACTED - PERSONAL DATA,CHARITIES & VOLUNTARY ORGNS,Adult Social Care & Health,"Grants, Contributions & Donations",A47005
Royal Borough of Kingston,24/05/2024,90335346,"1,136.00",REDACTED - PERSONAL DATA,PLS LANDLORDS,Place,PSL Payments To Landlords,A22031
Royal Borough of Kingston,31/03/2024,70069444,695.00,ANA TREATMENT CENTRES LTD,SOCIAL SERVICES RESIDENTIAL,Adult Social Care & Health,Independent Placements,A56006
Royal Borough of Kingston,30/04/2024,70070458,"2,978.57",ANA TREATMENT CENTRES LTD,SOCIAL SERVICES RESIDENTIAL,Adult Social Care & Health,Independent Placements,A56006
Royal Borough of Kingston,30/04/2024,70070460,"2,978.57",ANA TREATMENT CENTRES LTD,SOCIAL SERVICES RESIDENTIAL,Adult Social Care & Health,Independent Placements,A56006
Royal Borough of Kingston,30/04/2024,70070461,"2,978.57",ANA TREATMENT CENTRES LTD,SOCIAL SERVICES RESIDENTIAL,Adult Social Care & Health,Independent Placements,A56006
Royal Borough of Kingston,30/04/2024,70070522,"2,978.57",ANA TREATMENT CENTRES LTD,SOCIAL SERVICES RESIDENTIAL,Adult Social Care & Health,Independent Placements,A56006
Royal Borough of Kingston,01/05/2024,90335780,"3,923.77",ANCHOR TRUST ,SOCIAL SERVICES RESIDENTIAL,Adult Social Care & Health,Independent Placements,A56006
Royal Borough of Kingston,01/05/2024,90335781,"4,678.34",ANCHOR TRUST ,SOCIAL SERVICES RESIDENTIAL,Adult Social Care & Health,Independent Placements,A56006
Royal Borough of Kingston,24/05/2024,90335680,"1,383.33",REDACTED - PERSONAL DATA,PLS LANDLORDS,Place,PSL Payments To Landlords,A22031
Royal Borough of Kingston,24/05/2024,90335658,"1,458.33",REDACTED - PERSONAL DATA,PLS LANDLORDS,Place,PSL Payments To Landlords,A22031
Royal Borough of Kingston,24/05/2024,90335581,"1,094.00",REDACTED - PERSONAL DATA,PLS LANDLORDS,Place,PSL Payments To Landlords,A22031
Royal Borough of Kingston,18/05/2024,70071639,"10,032.94",ANGLIAN WATER BUSINESS NATIONAL LTD,UTILITIES,Corporate & Communities,Water Services,A24005
Royal Borough of Kingston,18/05/2024,70071640,879.47,ANGLIAN WATER BUSINESS NATIONAL LTD,UTILITIES,Corporate & Communities,Water Services,A24005
Royal Borough of Kingston,18/05/2024,70071642,562.09,ANGLIAN WATER BUSINESS NATIONAL LTD,UTILITIES,Corporate & Communities,Water Services,A24005
Royal Borough of Kingston,18/05/2024,70071643,"8,792.94",ANGLIAN WATER BUSINESS NATIONAL LTD,UTILITIES,Place,Water Services,A24005
Royal Borough of Kingston,18/05/2024,70071703,"1,286.12",ANGLIAN WATER BUSINESS NATIONAL LTD,UTILITIES,Housing Revenue Account,Water Services,A24005
Royal Borough of Kingston,18/05/2024,70071704,"1,617.12",ANGLIAN WATER BUSINESS NATIONAL LTD,UTILITIES,Housing Revenue Account,Water Services,A24005
Royal Borough of Kingston,12/07/2022,70072003,778.23,ANGLIAN WATER BUSINESS NATIONAL LTD,UTILITIES,Housing Revenue Account,Water Services,A24005
Royal Borough of Kingston,24/05/2024,90335370,"1,150.00",REDACTED - PERSONAL DATA,PLS LANDLORDS,Place,PSL Payments To Landlords,A22031
Royal Borough of Kingston,24/05/2024,90335701,"1,047.00",REDACTED - PERSONAL DATA,PLS LANDLORDS,Place,PSL Payments To Landlords,A22031
Royal Borough of Kingston,09/05/2024,90330725,843.75,REDACTED - PERSONAL DATA,ACADEMIC INSTNS - OTHER,Schools,PVI Providers,A60014
Royal Borough of Kingston,30/03/2024,70071146,"4,688.99",AON UK LTD,FINANCIAL / INSURANCE INSTNS,Corporate & Communities,General Insurance (Excl Premises & Transport),A44260
Royal Borough of Kingston,30/03/2024,70071147,"220,983.65",AON UK LTD,FINANCIAL / INSURANCE INSTNS,Corporate & Communities,General Insurance (Excl Premises & Transport),A44260
Royal Borough of Kingston,30/03/2024,70071148,"23,520.00",AON UK LTD,FINANCIAL / INSURANCE INSTNS,Corporate & Communities,General Insurance (Excl Premises & Transport),A44260
Royal Borough of Kingston,30/03/2024,70071149,"35,662.08",AON UK LTD,FINANCIAL / INSURANCE INSTNS,Corporate & Communities,General Insurance (Excl Premises & Transport),A44260
Royal Borough of Kingston,30/03/2024,70071150,"3,080.00",AON UK LTD,FINANCIAL / INSURANCE INSTNS,Corporate & Communities,General Insurance (Excl Premises & Transport),A44260
Royal Borough of Kingston,08/05/2024,70070764,"1,600.00",AP RENTAL INC LTD,LANDLORDS,Adult Social Care & Health,Housing Benefit - Rent Allowances -Private Tenants Only,A62009
Royal Borough of Kingston,08/05/2024,70070765,"1,400.00",AP RENTAL INC LTD,LANDLORDS,Adult Social Care & Health,Housing Benefit - Rent Allowances -Private Tenants Only,A62009
Royal Borough of Kingston,08/05/2024,70070766,"1,500.00",AP RENTAL INC LTD,LANDLORDS,Adult Social Care & Health,Housing Benefit - Rent Allowances -Private Tenants Only,A62009
Royal Borough of Kingston,08/05/2024,70070767,"1,600.00",AP RENTAL INC LTD,LANDLORDS,Adult Social Care & Health,Housing Benefit - Rent Allowances -Private Tenants Only,A62009
Royal Borough of Kingston,08/05/2024,70070768,"1,600.00",AP RENTAL INC LTD,LANDLORDS,Adult Social Care & Health,Housing Benefit - Rent Allowances -Private Tenants Only,A62009
Royal Borough of Kingston,08/05/2024,70070769,"1,600.00",AP RENTAL INC LTD,LANDLORDS,Adult Social Care & Health,Housing Benefit - Rent Allowances -Private Tenants Only,A62009
Royal Borough of Kingston,08/05/2024,70070770,"1,300.00",AP RENTAL INC LTD,LANDLORDS,Adult Social Care & Health,Housing Benefit - Rent Allowances -Private Tenants Only,A62009
Royal Borough of Kingston,30/04/2024,70070975,"32,820.00",APEX HOUSING SOLUTIONS LTD,ACCOMMODATION BED & BREAKFAST,Place,Bed & Breakfast,A56000
Royal Borough of Kingston,03/05/2024,70070617,"5,756.00",AQUASITION (UK) LIMITED,LEGAL & PROFESSIONAL SERVICES,Place,Land Drainage,A56040
Royal Borough of Kingston,13/05/2024,70071115,"6,600.00",AQUAVENT LIMITED,BUILDING MNTCE - SERVICES,Housing Revenue Account,Water Testing & Treatment,A20037
Royal Borough of Kingston,01/05/2024,90333792,"3,616.90",Aria Healthcare Group Ltd,SOCIAL SERVICES-HOME CARE,Adult Social Care & Health,Independent Placements,A56006
Royal Borough of Kingston,01/05/2024,90333794,"3,963.93",Aria Healthcare Group Ltd,SOCIAL SERVICES-HOME CARE,Adult Social Care & Health,Independent Placements,A56006
Royal Borough of Kingston,02/05/2024,70071023,"6,233.00",ASCENDIT LIFTS LTD,BUILDING MNTCE - SERVICES,Place,Grants Given For Capital Purposes,C20004
Royal Borough of Kingston,26/04/2024,70071832,"2,700.00",ASCENDIT LIFTS LTD,BUILDING MNTCE - SERVICES,Place,Grants Given For Capital Purposes,C20004
Royal Borough of Kingston,07/05/2024,90328253,500.00,REDACTED - PERSONAL DATA,CHARITIES & VOLUNTARY ORGNS,Adult Social Care & Health,"Grants, Contributions & Donations",A47005
Royal Borough of Kingston,01/05/2024,90333924,"10,354.00",ASHCROFT CARE SERVICES LIMITED,SOCIAL SERVICES RESIDENTIAL,Adult Social Care & Health,Independent Placements,A56006
Royal Borough of Kingston,01/05/2024,90334951,-570.84,ASHCROFT CARE SERVICES LIMITED,SOCIAL SERVICES RESIDENTIAL,Adult Social Care & Health,Financially Assessed Contributions clients � Non VAT,A92047
Royal Borough of Kingston,01/05/2024,90334879,"1,000.06",ASHINGTON HOUSE LTD,SOCIAL SERVICES RESIDENTIAL,Adult Social Care & Health,Personal Budget - Third Party,A61019
Royal Borough of Kingston,01/05/2024,90334752,"1,456.11",ASHPRIME PROPERTIES LTD,SOCIAL SERVICES RESIDENTIAL,Adult Social Care & Health,Personal Budget - Third Party,A61019
Royal Borough of Kingston,24/05/2024,90335587,"1,595.92",REDACTED - PERSONAL DATA,PLS LANDLORDS,Place,PSL Payments To Landlords,A22031
Royal Borough of Kingston,06/05/2024,70070815,"4,278.75",ASKEWS AND HOLTS LIBRARY SERVICES LTD,BOOKS PUBLICATIONS STATIONERY,Corporate & Communities,Books,A43050
Royal Borough of Kingston,29/04/2024,70071034,"3,717.69",ASKEWS AND HOLTS LIBRARY SERVICES LTD,BOOKS PUBLICATIONS STATIONERY,Corporate & Communities,Books,A43050
Royal Borough of Kingston,01/05/2024,90334838,"2,788.27",Aspirations Care Ltd,SOCIAL SERVICES - OTHER,Adult Social Care & Health,Personal Budget - Third Party,A61019
Royal Borough of Kingston,01/05/2024,90333829,"4,291.60",ASPREY HEALTHCARE LTD,SOCIAL SERVICES RESIDENTIAL,Adult Social Care & Health,Independent Placements,A56006
Royal Borough of Kingston,22/04/2024,70069998,"1,000.00",Assessment and Services Innovation Ltd,TEMP STAFF & CONSULTANCY,Adult Social Care & Health,Other Private Contractors - Third Party,A56080
Royal Borough of Kingston,03/05/2024,70070979,"6,471.00",Aston Pearl Ltd,ACCOMMODATION BED & BREAKFAST,Place,Bed & Breakfast,A56000
Royal Borough of Kingston,01/05/2024,90333796,"4,852.08",ASTORIA HEALTHCARE LTD,SOCIAL SERVICES RESIDENTIAL,Adult Social Care & Health,Independent Placements,A56006
Royal Borough of Kingston,07/05/2024,90328246,500.00,REDACTED - PERSONAL DATA,CHARITIES & VOLUNTARY ORGNS,Adult Social Care & Health,"Grants, Contributions & Donations",A47005
Royal Borough of Kingston,20/05/2024,70071583,767.50,Atira,MANAGEMENT & TRAINING SERVICES,Adult Social Care & Health,Other Private Contractors - Third Party,A56080
Royal Borough of Kingston,19/04/2024,70070583,"3,729.99",ATLANTIC DATA LIMITED,TEMP STAFF & CONSULTANCY,Corporate & Communities,DBS Checks,A15029
Royal Borough of Kingston,19/04/2024,70070583,"1,070.00",ATLANTIC DATA LIMITED,TEMP STAFF & CONSULTANCY,Corporate & Communities,DBS Checks,A15029
Royal Borough of Kingston,19/04/2024,70070583,138.51,ATLANTIC DATA LIMITED,TEMP STAFF & CONSULTANCY,Corporate & Communities,DBS Checks,A15029
Royal Borough of Kingston,24/05/2024,90335525,"1,094.34",AUMKARA INVESTMENTS LTD,PLS LANDLORDS,Place,PSL Payments To Landlords,A22031
Royal Borough of Kingston,24/05/2024,90335526,"1,094.34",AUMKARA INVESTMENTS LTD,PLS LANDLORDS,Place,PSL Payments To Landlords,A22031
Royal Borough of Kingston,24/05/2024,90335527,"1,094.34",AUMKARA INVESTMENTS LTD,PLS LANDLORDS,Place,PSL Payments To Landlords,A22031
Royal Borough of Kingston,01/05/2024,90333861,"11,912.28",AUTISM CONSULTANTS LTD,SOCIAL SERVICES RESIDENTIAL,Adult Social Care & Health,Independent Placements,A56006
Royal Borough of Kingston,23/04/2024,70070091,"1,249.25",AVICENNA PSYCHIATRY,SOCIAL SERVICES - OTHER,Adult Social Care & Health,Other Private Contractors - Third Party,A56080
Royal Borough of Kingston,15/05/2024,70071698,"1,410.10",AVICENNA PSYCHIATRY,SOCIAL SERVICES - OTHER,Adult Social Care & Health,Other Private Contractors - Third Party,A56080
Royal Borough of Kingston,02/05/2024,70071699,"1,410.10",AVICENNA PSYCHIATRY,SOCIAL SERVICES - OTHER,Adult Social Care & Health,Other Private Contractors - Third Party,A56080
Royal Borough of Kingston,06/05/2024,70071700,"1,414.60",AVICENNA PSYCHIATRY,SOCIAL SERVICES - OTHER,Adult Social Care & Health,Other Private Contractors - Third Party,A56080
Royal Borough of Kingston,23/03/2024,70070437,"7,381.21",AXA PPP HEALTHCARE LTD,SOCIAL SERVICES - OTHER,Corporate & Communities,Insurance Premiums,A44296
Royal Borough of Kingston,20/03/2024,70067885,"7,209.13",AXIS EUROPE PLC,CONSTRUCTION INDUSTRY,Housing Revenue Account,Cyclical Maintenance Programme,A20001
Royal Borough of Kingston,22/04/2024,70069895,637.07,AXIS EUROPE PLC,CONSTRUCTION INDUSTRY,Housing Revenue Account,Contract Cleaning,A27010
Royal Borough of Kingston,18/03/2024,70070264,"3,296.11",AXIS EUROPE PLC,CONSTRUCTION INDUSTRY,Housing Revenue Account,Asbestos Removal,C10000
Royal Borough of Kingston,29/04/2024,70070283,"1,776.06",AXIS EUROPE PLC,CONSTRUCTION INDUSTRY,Housing Revenue Account,Asbestos Removal,C10000
Royal Borough of Kingston,29/04/2024,70070284,875.16,AXIS EUROPE PLC,CONSTRUCTION INDUSTRY,Housing Revenue Account,Asbestos Removal,C10000
Royal Borough of Kingston,30/04/2024,70070442,"102,000.94",AXIS EUROPE PLC,CONSTRUCTION INDUSTRY,Housing Revenue Account,Housing - Heating & Ventilation,A20045
Royal Borough of Kingston,30/04/2024,70070443,"5,826.34",AXIS EUROPE PLC,CONSTRUCTION INDUSTRY,Housing Revenue Account,Void Property Repairs,A20036
Royal Borough of Kingston,30/04/2024,70070444,"36,375.62",AXIS EUROPE PLC,CONSTRUCTION INDUSTRY,Place,Void Property Repairs,A20036
Royal Borough of Kingston,30/04/2024,70070445,"310,507.69",AXIS EUROPE PLC,CONSTRUCTION INDUSTRY,Housing Revenue Account,Property Repairs & Maintenance & Alterations - Responsive,A20011
Royal Borough of Kingston,30/04/2024,70070446,"25,674.13",AXIS EUROPE PLC,CONSTRUCTION INDUSTRY,Housing Revenue Account,Void Property Repairs,A20036
Royal Borough of Kingston,30/04/2024,70070447,"52,088.22",AXIS EUROPE PLC,CONSTRUCTION INDUSTRY,Housing Revenue Account,Electrical Repairs,A20002
Royal Borough of Kingston,30/04/2024,70070448,"107,217.96",AXIS EUROPE PLC,CONSTRUCTION INDUSTRY,Housing Revenue Account,Council Dwellings - Construction & Renovation,C10002
Royal Borough of Kingston,30/04/2024,70070449,"5,400.00",AXIS EUROPE PLC,CONSTRUCTION INDUSTRY,Housing Revenue Account,Gas,A21003
Royal Borough of Kingston,30/04/2024,70070450,"2,462.92",AXIS EUROPE PLC,CONSTRUCTION INDUSTRY,Housing Revenue Account,Council Dwellings - Construction & Renovation,C10002
Royal Borough of Kingston,30/04/2024,70070451,"2,727.05",AXIS EUROPE PLC,CONSTRUCTION INDUSTRY,Housing Revenue Account,Council Dwellings - Construction & Renovation,C10002
Royal Borough of Kingston,30/04/2024,70070452,"2,556.20",AXIS EUROPE PLC,CONSTRUCTION INDUSTRY,Housing Revenue Account,Council Dwellings - Construction & Renovation,C10002
Royal Borough of Kingston,30/04/2024,70070453,"4,050.99",AXIS EUROPE PLC,CONSTRUCTION INDUSTRY,Housing Revenue Account,Council Dwellings - Construction & Renovation,C10002
Royal Borough of Kingston,30/04/2024,70070454,"3,359.84",AXIS EUROPE PLC,CONSTRUCTION INDUSTRY,Housing Revenue Account,Council Dwellings - Construction & Renovation,C10002
Royal Borough of Kingston,07/05/2024,70070774,"4,401.23",AXIS EUROPE PLC,CONSTRUCTION INDUSTRY,Housing Revenue Account,Council Dwellings - Construction & Renovation,C10002
Royal Borough of Kingston,07/05/2024,70070776,"3,658.68",AXIS EUROPE PLC,CONSTRUCTION INDUSTRY,Housing Revenue Account,Buildings - Project Management,C14003
Royal Borough of Kingston,07/05/2024,70070777,"1,083.65",AXIS EUROPE PLC,CONSTRUCTION INDUSTRY,Housing Revenue Account,Asbestos Removal,C10000
Royal Borough of Kingston,07/05/2024,70070780,523.40,AXIS EUROPE PLC,CONSTRUCTION INDUSTRY,Housing Revenue Account,Disabled Adaptations,C20003
Royal Borough of Kingston,07/05/2024,70070781,765.77,AXIS EUROPE PLC,CONSTRUCTION INDUSTRY,Housing Revenue Account,Council Dwellings - Capitalised Voids,C10001
Royal Borough of Kingston,07/05/2024,70070782,517.79,AXIS EUROPE PLC,CONSTRUCTION INDUSTRY,Housing Revenue Account,Disabled Adaptations,C20003
Royal Borough of Kingston,07/05/2024,70070783,726.26,AXIS EUROPE PLC,CONSTRUCTION INDUSTRY,Housing Revenue Account,Other Property Repairs & Maintenance,A20007
Royal Borough of Kingston,07/05/2024,70070788,962.41,AXIS EUROPE PLC,CONSTRUCTION INDUSTRY,Housing Revenue Account,Council Dwellings - Fire Safety,C10004
Royal Borough of Kingston,07/05/2024,70070789,"2,575.67",AXIS EUROPE PLC,CONSTRUCTION INDUSTRY,Housing Revenue Account,Council Dwellings - Construction & Renovation,C10002
Royal Borough of Kingston,07/05/2024,70070790,"1,930.50",AXIS EUROPE PLC,CONSTRUCTION INDUSTRY,Place,Contract Cleaning,A27010
Royal Borough of Kingston,07/05/2024,70070791,962.41,AXIS EUROPE PLC,CONSTRUCTION INDUSTRY,Housing Revenue Account,Council Dwellings - Fire Safety,C10004
Royal Borough of Kingston,07/05/2024,70070794,"16,049.25",AXIS EUROPE PLC,CONSTRUCTION INDUSTRY,Housing Revenue Account,Council Dwellings - Construction & Renovation,C10002
Royal Borough of Kingston,08/05/2024,70070817,"2,820.56",AXIS EUROPE PLC,CONSTRUCTION INDUSTRY,Housing Revenue Account,Council Dwellings - Construction & Renovation,C10002
Royal Borough of Kingston,08/05/2024,70070818,"27,927.26",AXIS EUROPE PLC,CONSTRUCTION INDUSTRY,Housing Revenue Account,Council Dwellings - Construction & Renovation,C10002
Royal Borough of Kingston,08/05/2024,70070839,"27,927.26",AXIS EUROPE PLC,CONSTRUCTION INDUSTRY,Housing Revenue Account,Council Dwellings - Construction & Renovation,C10002
Royal Borough of Kingston,08/05/2024,70070840,"79,743.53",AXIS EUROPE PLC,CONSTRUCTION INDUSTRY,Housing Revenue Account,Council Dwellings - Construction & Renovation,C10002
Royal Borough of Kingston,08/05/2024,70070841,"63,789.51",AXIS EUROPE PLC,CONSTRUCTION INDUSTRY,Housing Revenue Account,Council Dwellings - Construction & Renovation,C10002
Royal Borough of Kingston,08/05/2024,70070853,"90,111.16",AXIS EUROPE PLC,CONSTRUCTION INDUSTRY,Housing Revenue Account,Property Repairs & Maintenance & Alterations - Responsive,A20011
Royal Borough of Kingston,08/05/2024,70070854,"2,326.92",AXIS EUROPE PLC,CONSTRUCTION INDUSTRY,Housing Revenue Account,Void Property Repairs,A20036
Royal Borough of Kingston,08/05/2024,70070855,"15,006.05",AXIS EUROPE PLC,CONSTRUCTION INDUSTRY,Housing Revenue Account,Property Repairs & Maintenance & Alterations - Responsive,A20011
Royal Borough of Kingston,08/05/2024,70070856,"66,069.98",AXIS EUROPE PLC,CONSTRUCTION INDUSTRY,Housing Revenue Account,Electrical Repairs,A20002
Royal Borough of Kingston,08/05/2024,70070857,"3,071.58",AXIS EUROPE PLC,CONSTRUCTION INDUSTRY,Housing Revenue Account,Electrical Repairs,A20002
Royal Borough of Kingston,08/05/2024,70070858,"1,619.35",AXIS EUROPE PLC,CONSTRUCTION INDUSTRY,Place,Void Property Repairs,A20036
Royal Borough of Kingston,08/05/2024,70070859,"7,366.27",AXIS EUROPE PLC,CONSTRUCTION INDUSTRY,Housing Revenue Account,Housing - Heating & Ventilation,A20045
Royal Borough of Kingston,08/05/2024,70070860,"4,518.42",AXIS EUROPE PLC,CONSTRUCTION INDUSTRY,Housing Revenue Account,Void Property Repairs,A20036
Royal Borough of Kingston,08/05/2024,70070861,523.44,AXIS EUROPE PLC,CONSTRUCTION INDUSTRY,Housing Revenue Account,Void Property Repairs,A20036
Royal Borough of Kingston,13/05/2024,70071060,"2,543.28",AXIS EUROPE PLC,CONSTRUCTION INDUSTRY,Housing Revenue Account,Council Dwellings - Construction & Renovation,C10002
Royal Borough of Kingston,13/05/2024,70071061,"3,604.24",AXIS EUROPE PLC,CONSTRUCTION INDUSTRY,Housing Revenue Account,Council Dwellings - Construction & Renovation,C10002
Royal Borough of Kingston,13/05/2024,70071062,"2,545.36",AXIS EUROPE PLC,CONSTRUCTION INDUSTRY,Housing Revenue Account,Council Dwellings - Construction & Renovation,C10002
Royal Borough of Kingston,13/05/2024,70071063,"3,444.42",AXIS EUROPE PLC,CONSTRUCTION INDUSTRY,Housing Revenue Account,Council Dwellings - Construction & Renovation,C10002
Royal Borough of Kingston,13/05/2024,70071064,"2,520.19",AXIS EUROPE PLC,CONSTRUCTION INDUSTRY,Housing Revenue Account,Council Dwellings - Construction & Renovation,C10002
Royal Borough of Kingston,13/05/2024,70071065,"2,704.41",AXIS EUROPE PLC,CONSTRUCTION INDUSTRY,Housing Revenue Account,Council Dwellings - Construction & Renovation,C10002
Royal Borough of Kingston,13/05/2024,70071066,"2,576.10",AXIS EUROPE PLC,CONSTRUCTION INDUSTRY,Housing Revenue Account,Council Dwellings - Construction & Renovation,C10002
Royal Borough of Kingston,13/05/2024,70071067,"4,228.26",AXIS EUROPE PLC,CONSTRUCTION INDUSTRY,Housing Revenue Account,Council Dwellings - Construction & Renovation,C10002
Royal Borough of Kingston,13/05/2024,70071068,"2,646.75",AXIS EUROPE PLC,CONSTRUCTION INDUSTRY,Housing Revenue Account,Council Dwellings - Construction & Renovation,C10002
Royal Borough of Kingston,13/05/2024,70071071,"8,871.07",AXIS EUROPE PLC,CONSTRUCTION INDUSTRY,Housing Revenue Account,Council Dwellings - Construction & Renovation,C10002
Royal Borough of Kingston,13/05/2024,70071072,527.67,AXIS EUROPE PLC,CONSTRUCTION INDUSTRY,Place,Contract Cleaning,A27010
Royal Borough of Kingston,13/05/2024,70071073,566.28,AXIS EUROPE PLC,CONSTRUCTION INDUSTRY,Housing Revenue Account,Road Markings,A20022
Royal Borough of Kingston,13/05/2024,70071074,"1,398.58",AXIS EUROPE PLC,CONSTRUCTION INDUSTRY,Housing Revenue Account,Council Dwellings - Capitalised Voids,C10001
Royal Borough of Kingston,13/05/2024,70071075,"10,263.83",AXIS EUROPE PLC,CONSTRUCTION INDUSTRY,Housing Revenue Account,Disabled Adaptations,C20003
Royal Borough of Kingston,13/05/2024,70071076,694.98,AXIS EUROPE PLC,CONSTRUCTION INDUSTRY,Housing Revenue Account,Asbestos Removal,C10000
Royal Borough of Kingston,13/05/2024,70071077,852.00,AXIS EUROPE PLC,CONSTRUCTION INDUSTRY,Housing Revenue Account,Asbestos Removal,C10000
Royal Borough of Kingston,13/05/2024,70071078,"8,871.07",AXIS EUROPE PLC,CONSTRUCTION INDUSTRY,Housing Revenue Account,Council Dwellings - Construction & Renovation,C10002
Royal Borough of Kingston,13/05/2024,70071170,"6,930.32",AXIS EUROPE PLC,CONSTRUCTION INDUSTRY,Housing Revenue Account,Council Dwellings - Capitalised Voids,C10001
Royal Borough of Kingston,17/05/2024,70071431,"2,617.95",AXIS EUROPE PLC,CONSTRUCTION INDUSTRY,Housing Revenue Account,Council Dwellings - Construction & Renovation,C10002
Royal Borough of Kingston,17/05/2024,70071432,"2,510.64",AXIS EUROPE PLC,CONSTRUCTION INDUSTRY,Housing Revenue Account,Council Dwellings - Construction & Renovation,C10002
Royal Borough of Kingston,17/05/2024,70071433,"2,773.16",AXIS EUROPE PLC,CONSTRUCTION INDUSTRY,Housing Revenue Account,Council Dwellings - Construction & Renovation,C10002
Royal Borough of Kingston,17/05/2024,70071434,"2,635.53",AXIS EUROPE PLC,CONSTRUCTION INDUSTRY,Housing Revenue Account,Council Dwellings - Construction & Renovation,C10002
Royal Borough of Kingston,17/05/2024,70071435,"2,484.65",AXIS EUROPE PLC,CONSTRUCTION INDUSTRY,Housing Revenue Account,Council Dwellings - Construction & Renovation,C10002
Royal Borough of Kingston,17/05/2024,70071436,"3,380.71",AXIS EUROPE PLC,CONSTRUCTION INDUSTRY,Housing Revenue Account,Council Dwellings - Construction & Renovation,C10002
Royal Borough of Kingston,17/05/2024,70071437,"2,902.14",AXIS EUROPE PLC,CONSTRUCTION INDUSTRY,Housing Revenue Account,Council Dwellings - Construction & Renovation,C10002
Royal Borough of Kingston,17/05/2024,70071460,"39,151.54",AXIS EUROPE PLC,CONSTRUCTION INDUSTRY,Housing Revenue Account,Council Dwellings - Construction & Renovation,C10002
Royal Borough of Kingston,20/05/2024,70071513,"1,934.62",AXIS EUROPE PLC,CONSTRUCTION INDUSTRY,Housing Revenue Account,Buildings - Project Management,C14003
Royal Borough of Kingston,20/05/2024,70071514,"10,911.27",AXIS EUROPE PLC,CONSTRUCTION INDUSTRY,Housing Revenue Account,Council Dwellings - Construction & Renovation,C10002
Royal Borough of Kingston,20/05/2024,70071516,"9,944.75",AXIS EUROPE PLC,CONSTRUCTION INDUSTRY,Housing Revenue Account,Council Dwellings - Construction & Renovation,C10002
Royal Borough of Kingston,20/05/2024,70071518,"8,871.07",AXIS EUROPE PLC,CONSTRUCTION INDUSTRY,Housing Revenue Account,Council Dwellings - Construction & Renovation,C10002
Royal Borough of Kingston,20/05/2024,70071519,"2,563.70",AXIS EUROPE PLC,CONSTRUCTION INDUSTRY,Housing Revenue Account,Disabled Adaptations,C20003
Royal Borough of Kingston,20/05/2024,70071520,"13,503.10",AXIS EUROPE PLC,CONSTRUCTION INDUSTRY,Housing Revenue Account,Disabled Adaptations,C20003
Royal Borough of Kingston,20/05/2024,70071521,"14,788.60",AXIS EUROPE PLC,CONSTRUCTION INDUSTRY,Housing Revenue Account,Disabled Adaptations,C20003
Royal Borough of Kingston,20/05/2024,70071522,"3,398.01",AXIS EUROPE PLC,CONSTRUCTION INDUSTRY,Housing Revenue Account,Council Dwellings - Construction & Renovation,C10002
Royal Borough of Kingston,20/05/2024,70071523,"5,258.30",AXIS EUROPE PLC,CONSTRUCTION INDUSTRY,Housing Revenue Account,Council Dwellings - Construction & Renovation,C10002
Royal Borough of Kingston,20/05/2024,70071525,875.16,AXIS EUROPE PLC,CONSTRUCTION INDUSTRY,Housing Revenue Account,Asbestos Removal,C10000
Royal Borough of Kingston,20/05/2024,70071526,"7,300.51",AXIS EUROPE PLC,CONSTRUCTION INDUSTRY,Housing Revenue Account,Disabled Adaptations,C20003
Royal Borough of Kingston,24/05/2024,70071847,"32,919.97",AXIS EUROPE PLC,CONSTRUCTION INDUSTRY,Housing Revenue Account,Council Dwellings - Construction & Renovation,C10002
Royal Borough of Kingston,24/05/2024,70071854,"51,319.13",AXIS EUROPE PLC,CONSTRUCTION INDUSTRY,Housing Revenue Account,Council Dwellings - Design & Planning,C10003
Royal Borough of Kingston,25/04/2024,70072129,"2,729.98",AXIS EUROPE PLC,CONSTRUCTION INDUSTRY,Housing Revenue Account,Council Dwellings - Construction & Renovation,C10002
Royal Borough of Kingston,30/04/2024,70070464,"18,000.00",AYUP DIGITAL LIMITED,LEGAL & PROFESSIONAL SERVICES,Adult Social Care & Health,IT Software Maintenance,A45045
Royal Borough of Kingston,24/05/2024,90335524,"1,314.00",REDACTED - PERSONAL DATA,PLS LANDLORDS,Place,PSL Payments To Landlords,A22031
Royal Borough of Kingston,24/05/2024,90335634,"1,094.00",REDACTED - PERSONAL DATA,PLS LANDLORDS,Place,PSL Payments To Landlords,A22031
Royal Borough of Kingston,10/04/2024,70071589,"2,720.00",Baily Garner LLP,TEMP STAFF & CONSULTANCY,Housing Revenue Account,Professional Fees,A44066
Royal Borough of Kingston,01/05/2024,90334000,"2,486.20",BALANCE (SUPPORT) C.I.C,SOCIAL SERVICES - OTHER,Adult Social Care & Health,Supported Living - new framework,A56126
Royal Borough of Kingston,01/05/2024,90334001,618.28,BALANCE (SUPPORT) C.I.C,SOCIAL SERVICES - OTHER,Adult Social Care & Health,Supported Living - new framework,A56126
Royal Borough of Kingston,01/05/2024,90334005,"1,864.64",BALANCE (SUPPORT) C.I.C,SOCIAL SERVICES - OTHER,Adult Social Care & Health,Supported Living - new framework,A56126
Royal Borough of Kingston,01/05/2024,90334006,"1,396.40",BALANCE (SUPPORT) C.I.C,SOCIAL SERVICES - OTHER,Adult Social Care & Health,Supported Living - new framework,A56126
Royal Borough of Kingston,01/05/2024,90334010,"-1,621.62",BALANCE (SUPPORT) C.I.C,SOCIAL SERVICES - OTHER,Adult Social Care & Health,Supported Living - new framework,A56126
Royal Borough of Kingston,01/05/2024,90334020,930.93,BALANCE (SUPPORT) C.I.C,SOCIAL SERVICES - OTHER,Adult Social Care & Health,Supported Living - new framework,A56126
Royal Borough of Kingston,01/05/2024,90334021,"1,780.40",BALANCE (SUPPORT) C.I.C,SOCIAL SERVICES - OTHER,Adult Social Care & Health,Supported Living - new framework,A56126
Royal Borough of Kingston,01/05/2024,90334030,"2,373.87",BALANCE (SUPPORT) C.I.C,SOCIAL SERVICES - OTHER,Adult Social Care & Health,Supported Living - new framework,A56126
Royal Borough of Kingston,01/05/2024,90334031,583.83,BALANCE (SUPPORT) C.I.C,SOCIAL SERVICES - OTHER,Adult Social Care & Health,Supported Living - new framework,A56126
Royal Borough of Kingston,01/05/2024,90334039,"1,210.21",BALANCE (SUPPORT) C.I.C,SOCIAL SERVICES - OTHER,Adult Social Care & Health,Supported Living - new framework,A56126
Royal Borough of Kingston,01/05/2024,90334040,"2,373.87",BALANCE (SUPPORT) C.I.C,SOCIAL SERVICES - OTHER,Adult Social Care & Health,Supported Living - new framework,A56126
Royal Borough of Kingston,01/05/2024,90334041,583.83,BALANCE (SUPPORT) C.I.C,SOCIAL SERVICES - OTHER,Adult Social Care & Health,Supported Living - new framework,A56126
Royal Borough of Kingston,01/05/2024,90334042,"1,864.64",BALANCE (SUPPORT) C.I.C,SOCIAL SERVICES - OTHER,Adult Social Care & Health,Supported Living - new framework,A56126
Royal Borough of Kingston,01/05/2024,90334043,701.98,BALANCE (SUPPORT) C.I.C,SOCIAL SERVICES - OTHER,Adult Social Care & Health,Supported Living - new framework,A56126
Royal Borough of Kingston,01/05/2024,90334044,744.74,BALANCE (SUPPORT) C.I.C,SOCIAL SERVICES - OTHER,Adult Social Care & Health,Supported Living - new framework,A56126
Royal Borough of Kingston,01/05/2024,90334046,"2,373.87",BALANCE (SUPPORT) C.I.C,SOCIAL SERVICES - OTHER,Adult Social Care & Health,Supported Living - new framework,A56126
Royal Borough of Kingston,01/05/2024,90334047,583.83,BALANCE (SUPPORT) C.I.C,SOCIAL SERVICES - OTHER,Adult Social Care & Health,Supported Living - new framework,A56126
Royal Borough of Kingston,01/05/2024,90334048,651.65,BALANCE (SUPPORT) C.I.C,SOCIAL SERVICES - OTHER,Adult Social Care & Health,Supported Living - new framework,A56126
Royal Borough of Kingston,01/05/2024,90334058,"9,774.77",BALANCE (SUPPORT) C.I.C,SOCIAL SERVICES - OTHER,Adult Social Care & Health,Supported Living - new framework,A56126
Royal Borough of Kingston,01/05/2024,90334059,"1,751.50",BALANCE (SUPPORT) C.I.C,SOCIAL SERVICES - OTHER,Adult Social Care & Health,Supported Living - new framework,A56126
Royal Borough of Kingston,01/05/2024,90334060,"1,024.02",BALANCE (SUPPORT) C.I.C,SOCIAL SERVICES - OTHER,Adult Social Care & Health,Supported Living - new framework,A56126
Royal Borough of Kingston,01/05/2024,90334061,"1,780.40",BALANCE (SUPPORT) C.I.C,SOCIAL SERVICES - OTHER,Adult Social Care & Health,Supported Living - new framework,A56126
Royal Borough of Kingston,01/05/2024,90334069,"1,780.40",BALANCE (SUPPORT) C.I.C,SOCIAL SERVICES - OTHER,Adult Social Care & Health,Supported Living - new framework,A56126
Royal Borough of Kingston,29/04/2024,90334082,630.60,BALANCE (SUPPORT) C.I.C,SOCIAL SERVICES - OTHER,Adult Social Care & Health,Supported Living - new framework,A56126
Royal Borough of Kingston,29/04/2024,90334083,504.48,BALANCE (SUPPORT) C.I.C,SOCIAL SERVICES - OTHER,Adult Social Care & Health,Supported Living - new framework,A56126
Royal Borough of Kingston,29/04/2024,90334085,840.80,BALANCE (SUPPORT) C.I.C,SOCIAL SERVICES - OTHER,Adult Social Care & Health,Supported Living - new framework,A56126
Royal Borough of Kingston,29/04/2024,90334087,840.80,BALANCE (SUPPORT) C.I.C,SOCIAL SERVICES - OTHER,Adult Social Care & Health,Supported Living - new framework,A56126
Royal Borough of Kingston,29/04/2024,90334088,588.56,BALANCE (SUPPORT) C.I.C,SOCIAL SERVICES - OTHER,Adult Social Care & Health,Supported Living - new framework,A56126
Royal Borough of Kingston,29/04/2024,90334090,"1,135.08",BALANCE (SUPPORT) C.I.C,SOCIAL SERVICES - OTHER,Adult Social Care & Health,Supported Living - new framework,A56126
Royal Borough of Kingston,29/04/2024,90334091,504.48,BALANCE (SUPPORT) C.I.C,SOCIAL SERVICES - OTHER,Adult Social Care & Health,Supported Living - new framework,A56126
Royal Borough of Kingston,29/04/2024,90334095,"1,261.20",BALANCE (SUPPORT) C.I.C,SOCIAL SERVICES - OTHER,Adult Social Care & Health,Supported Living - new framework,A56126
Royal Borough of Kingston,29/04/2024,90334096,"1,933.84",BALANCE (SUPPORT) C.I.C,SOCIAL SERVICES - OTHER,Adult Social Care & Health,Supported Living - new framework,A56126
Royal Borough of Kingston,29/04/2024,90334097,672.64,BALANCE (SUPPORT) C.I.C,SOCIAL SERVICES - OTHER,Adult Social Care & Health,Supported Living - new framework,A56126
Royal Borough of Kingston,29/04/2024,90334100,504.48,BALANCE (SUPPORT) C.I.C,SOCIAL SERVICES - OTHER,Adult Social Care & Health,Supported Living - new framework,A56126
Royal Borough of Kingston,29/04/2024,90334101,504.48,BALANCE (SUPPORT) C.I.C,SOCIAL SERVICES - OTHER,Adult Social Care & Health,Supported Living - new framework,A56126
Royal Borough of Kingston,29/04/2024,90334103,"1,345.28",BALANCE (SUPPORT) C.I.C,SOCIAL SERVICES - OTHER,Adult Social Care & Health,Supported Living - new framework,A56126
Royal Borough of Kingston,29/04/2024,90334106,588.56,BALANCE (SUPPORT) C.I.C,SOCIAL SERVICES - OTHER,Adult Social Care & Health,Supported Living - new framework,A56126
Royal Borough of Kingston,29/04/2024,90334107,672.64,BALANCE (SUPPORT) C.I.C,SOCIAL SERVICES - OTHER,Adult Social Care & Health,Supported Living - new framework,A56126
Royal Borough of Kingston,29/04/2024,90334108,"1,429.36",BALANCE (SUPPORT) C.I.C,SOCIAL SERVICES - OTHER,Adult Social Care & Health,Supported Living - new framework,A56126
Royal Borough of Kingston,29/04/2024,90334109,"1,261.20",BALANCE (SUPPORT) C.I.C,SOCIAL SERVICES - OTHER,Adult Social Care & Health,Supported Living - new framework,A56126
Royal Borough of Kingston,29/04/2024,90334110,756.72,BALANCE (SUPPORT) C.I.C,SOCIAL SERVICES - OTHER,Adult Social Care & Health,Supported Living - new framework,A56126
Royal Borough of Kingston,29/04/2024,90334112,504.48,BALANCE (SUPPORT) C.I.C,SOCIAL SERVICES - OTHER,Adult Social Care & Health,Supported Living - new framework,A56126
Royal Borough of Kingston,29/04/2024,90334113,504.48,BALANCE (SUPPORT) C.I.C,SOCIAL SERVICES - OTHER,Adult Social Care & Health,Supported Living - new framework,A56126
Royal Borough of Kingston,29/04/2024,90334118,756.72,BALANCE (SUPPORT) C.I.C,SOCIAL SERVICES - OTHER,Adult Social Care & Health,Supported Living - new framework,A56126
Royal Borough of Kingston,29/04/2024,90334122,672.64,BALANCE (SUPPORT) C.I.C,SOCIAL SERVICES - OTHER,Adult Social Care & Health,Supported Living - new framework,A56126
Royal Borough of Kingston,29/04/2024,90334123,"1,429.36",BALANCE (SUPPORT) C.I.C,SOCIAL SERVICES - OTHER,Adult Social Care & Health,Supported Living - new framework,A56126
Royal Borough of Kingston,29/04/2024,90334124,504.48,BALANCE (SUPPORT) C.I.C,SOCIAL SERVICES - OTHER,Adult Social Care & Health,Supported Living - new framework,A56126
Royal Borough of Kingston,29/04/2024,90334126,672.64,BALANCE (SUPPORT) C.I.C,SOCIAL SERVICES - OTHER,Adult Social Care & Health,Supported Living - new framework,A56126
Royal Borough of Kingston,29/04/2024,90334127,504.48,BALANCE (SUPPORT) C.I.C,SOCIAL SERVICES - OTHER,Adult Social Care & Health,Supported Living - new framework,A56126
Royal Borough of Kingston,29/04/2024,90334128,"1,177.12",BALANCE (SUPPORT) C.I.C,SOCIAL SERVICES - OTHER,Adult Social Care & Health,Supported Living - new framework,A56126
Royal Borough of Kingston,29/04/2024,90334129,504.48,BALANCE (SUPPORT) C.I.C,SOCIAL SERVICES - OTHER,Adult Social Care & Health,Supported Living - new framework,A56126
Royal Borough of Kingston,29/04/2024,90334131,"1,513.44",BALANCE (SUPPORT) C.I.C,SOCIAL SERVICES - OTHER,Adult Social Care & Health,Supported Living - new framework,A56126
Royal Borough of Kingston,29/04/2024,90334133,672.64,BALANCE (SUPPORT) C.I.C,SOCIAL SERVICES - OTHER,Adult Social Care & Health,Supported Living - new framework,A56126
Royal Borough of Kingston,29/04/2024,90334134,"1,681.60",BALANCE (SUPPORT) C.I.C,SOCIAL SERVICES - OTHER,Adult Social Care & Health,Supported Living - new framework,A56126
Royal Borough of Kingston,29/04/2024,90334187,504.48,BALANCE (SUPPORT) C.I.C,SOCIAL SERVICES - OTHER,Adult Social Care & Health,Supported Living - new framework,A56126
Royal Borough of Kingston,29/04/2024,90334200,"1,008.96",BALANCE (SUPPORT) C.I.C,SOCIAL SERVICES - OTHER,Adult Social Care & Health,Supported Living - new framework,A56126
Royal Borough of Kingston,29/04/2024,90334203,672.64,BALANCE (SUPPORT) C.I.C,SOCIAL SERVICES - OTHER,Adult Social Care & Health,Supported Living - new framework,A56126
Royal Borough of Kingston,22/04/2024,90334279,624.00,BALANCE (SUPPORT) C.I.C,SOCIAL SERVICES - OTHER,Adult Social Care & Health,Day Opps / Day Care -� Community-based�,A56145
Royal Borough of Kingston,22/04/2024,90334280,832.00,BALANCE (SUPPORT) C.I.C,SOCIAL SERVICES - OTHER,Adult Social Care & Health,Day Opps / Day Care -� Community-based�,A56145
Royal Borough of Kingston,29/04/2024,90334481,504.48,BALANCE (SUPPORT) C.I.C,SOCIAL SERVICES - OTHER,Adult Social Care & Health,S-L non - framework - other support,A56159
Royal Borough of Kingston,29/04/2024,90334483,"1,072.02",BALANCE (SUPPORT) C.I.C,SOCIAL SERVICES - OTHER,Adult Social Care & Health,S-L non - framework - other support,A56159
Royal Borough of Kingston,29/04/2024,90334485,840.80,BALANCE (SUPPORT) C.I.C,SOCIAL SERVICES - OTHER,Adult Social Care & Health,S-L non - framework - other support,A56159
Royal Borough of Kingston,29/04/2024,90334487,"1,387.32",BALANCE (SUPPORT) C.I.C,SOCIAL SERVICES - OTHER,Adult Social Care & Health,S-L non - framework - other support,A56159
Royal Borough of Kingston,29/04/2024,90334488,"1,261.20",BALANCE (SUPPORT) C.I.C,SOCIAL SERVICES - OTHER,Adult Social Care & Health,S-L non - framework - other support,A56159
Royal Borough of Kingston,29/04/2024,90334490,"1,429.36",BALANCE (SUPPORT) C.I.C,SOCIAL SERVICES - OTHER,Adult Social Care & Health,S-L non - framework - other support,A56159
Royal Borough of Kingston,01/05/2024,90334563,548.27,BALANCE (SUPPORT) C.I.C,SOCIAL SERVICES - OTHER,Adult Social Care & Health,Personal Budget - Third Party,A61019
Royal Borough of Kingston,01/05/2024,90334564,548.27,BALANCE (SUPPORT) C.I.C,SOCIAL SERVICES - OTHER,Adult Social Care & Health,Personal Budget - Third Party,A61019
Royal Borough of Kingston,01/05/2024,90334565,"12,933.64",BALANCE (SUPPORT) C.I.C,SOCIAL SERVICES - OTHER,Adult Social Care & Health,Personal Budget - Third Party,A61019
Royal Borough of Kingston,22/04/2024,90334666,"1,040.00",BALANCE (SUPPORT) C.I.C,SOCIAL SERVICES - OTHER,Adult Social Care & Health,Personal Budget - Third Party,A61019
Royal Borough of Kingston,22/04/2024,90334667,832.00,BALANCE (SUPPORT) C.I.C,SOCIAL SERVICES - OTHER,Adult Social Care & Health,Personal Budget - Third Party,A61019
Royal Borough of Kingston,22/04/2024,90334674,"1,040.00",BALANCE (SUPPORT) C.I.C,SOCIAL SERVICES - OTHER,Adult Social Care & Health,Personal Budget - Third Party,A61019
Royal Borough of Kingston,01/05/2024,90334734,"2,776.98",BALANCE (SUPPORT) C.I.C,SOCIAL SERVICES - OTHER,Adult Social Care & Health,Personal Budget - Third Party,A61019
Royal Borough of Kingston,01/05/2024,90333788,"3,861.49",BARCHESTER HEALTHCARE,SOCIAL SERVICES RESIDENTIAL,Adult Social Care & Health,Independent Placements,A56006
Royal Borough of Kingston,07/05/2024,90328254,500.00,REDACTED - PERSONAL DATA,CHARITIES & VOLUNTARY ORGNS,Adult Social Care & Health,"Grants, Contributions & Donations",A47005
Royal Borough of Kingston,01/05/2024,90333831,"4,710.58",BAVANI CARE HOME LIMITED,SOCIAL SERVICES RESIDENTIAL,Adult Social Care & Health,Independent Placements,A56006
Royal Borough of Kingston,01/05/2024,90333832,"4,185.00",BAVANI CARE HOME LIMITED,SOCIAL SERVICES RESIDENTIAL,Adult Social Care & Health,Independent Placements,A56006
Royal Borough of Kingston,01/05/2024,90333835,"5,978.57",BAVANI CARE HOME LIMITED,SOCIAL SERVICES RESIDENTIAL,Adult Social Care & Health,Independent Placements,A56006
Royal Borough of Kingston,29/02/2024,70066409,"1,409.25",BDT HEALTHCARE LTD,SOCIAL SERVICES - OTHER,Adult Social Care & Health,Other Private Contractors - Third Party,A56080
Royal Borough of Kingston,10/04/2024,70070564,"1,680.00",BEVAN BRITTAN LLP CLIENT,LEGAL & PROFESSIONAL SERVICES,Housing Revenue Account,Professional Fees,A44066
Royal Borough of Kingston,09/05/2024,70070918,"1,024.03",BFS GROUP LIMITED,CATERING SERVICES,Adult Social Care & Health,Purchases for resale,A49004
Royal Borough of Kingston,24/05/2024,90335316,"1,595.63",REDACTED - PERSONAL DATA,PLS LANDLORDS,Place,PSL Payments To Landlords,A22031
Royal Borough of Kingston,30/04/2024,70070871,"2,146.34",BIO COLLECTORS LTD,REFUSE COLLECTION / DISPOSAL,Corporate & Communities,Compostables,A56055
Royal Borough of Kingston,29/12/2023,70071418,"4,757.00",BLAKE MORGAN LLP,LEGAL & PROFESSIONAL SERVICES,Place,External Fees and Consultants,C20000
Royal Borough of Kingston,29/12/2023,70071419,"5,915.00",BLAKE MORGAN LLP,LEGAL & PROFESSIONAL SERVICES,Place,External Fees and Consultants,C20000
Royal Borough of Kingston,15/04/2024,90329746,782.62,BLUE ARROW CARE LTD,SOCIAL SERVICES-HOME CARE,Adult Social Care & Health,Homecare - non - Framework - single - handed,A56165
Royal Borough of Kingston,15/04/2024,90330621,521.75,BLUE ARROW CARE LTD,SOCIAL SERVICES-HOME CARE,Adult Social Care & Health,Personal Budget - Third Party,A61019
Royal Borough of Kingston,15/04/2024,90330634,521.75,BLUE ARROW CARE LTD,SOCIAL SERVICES-HOME CARE,Adult Social Care & Health,Personal Budget - Third Party,A61019
Royal Borough of Kingston,15/04/2024,90330638,586.97,BLUE ARROW CARE LTD,SOCIAL SERVICES-HOME CARE,Adult Social Care & Health,Personal Budget - Third Party,A61019
Royal Borough of Kingston,15/04/2024,90330647,782.62,BLUE ARROW CARE LTD,SOCIAL SERVICES-HOME CARE,Adult Social Care & Health,Personal Budget - Third Party,A61019
Royal Borough of Kingston,22/04/2024,90332665,782.62,BLUE ARROW CARE LTD,SOCIAL SERVICES-HOME CARE,Adult Social Care & Health,Homecare - non - Framework - single - handed,A56165
Royal Borough of Kingston,22/04/2024,90332685,521.75,BLUE ARROW CARE LTD,SOCIAL SERVICES-HOME CARE,Adult Social Care & Health,Personal Budget - Third Party,A61019
Royal Borough of Kingston,22/04/2024,90332692,521.75,BLUE ARROW CARE LTD,SOCIAL SERVICES-HOME CARE,Adult Social Care & Health,Personal Budget - Third Party,A61019
Royal Borough of Kingston,22/04/2024,90332696,586.97,BLUE ARROW CARE LTD,SOCIAL SERVICES-HOME CARE,Adult Social Care & Health,Personal Budget - Third Party,A61019
Royal Borough of Kingston,22/04/2024,90332705,782.62,BLUE ARROW CARE LTD,SOCIAL SERVICES-HOME CARE,Adult Social Care & Health,Personal Budget - Third Party,A61019
Royal Borough of Kingston,29/04/2024,90333613,782.62,BLUE ARROW CARE LTD,SOCIAL SERVICES-HOME CARE,Adult Social Care & Health,Homecare - non - Framework - single - handed,A56165
Royal Borough of Kingston,29/04/2024,90333646,521.75,BLUE ARROW CARE LTD,SOCIAL SERVICES-HOME CARE,Adult Social Care & Health,Personal Budget - Third Party,A61019
Royal Borough of Kingston,29/04/2024,90333653,521.75,BLUE ARROW CARE LTD,SOCIAL SERVICES-HOME CARE,Adult Social Care & Health,Personal Budget - Third Party,A61019
Royal Borough of Kingston,29/04/2024,90333657,586.97,BLUE ARROW CARE LTD,SOCIAL SERVICES-HOME CARE,Adult Social Care & Health,Personal Budget - Third Party,A61019
Royal Borough of Kingston,29/04/2024,90333667,782.62,BLUE ARROW CARE LTD,SOCIAL SERVICES-HOME CARE,Adult Social Care & Health,Personal Budget - Third Party,A61019
Royal Borough of Kingston,06/05/2024,90336394,782.62,BLUE ARROW CARE LTD,SOCIAL SERVICES-HOME CARE,Adult Social Care & Health,Homecare - non - Framework - single - handed,A56165
Royal Borough of Kingston,06/05/2024,90336431,521.75,BLUE ARROW CARE LTD,SOCIAL SERVICES-HOME CARE,Adult Social Care & Health,Personal Budget - Third Party,A61019
Royal Borough of Kingston,06/05/2024,90336438,521.75,BLUE ARROW CARE LTD,SOCIAL SERVICES-HOME CARE,Adult Social Care & Health,Personal Budget - Third Party,A61019
Royal Borough of Kingston,06/05/2024,90336442,568.33,BLUE ARROW CARE LTD,SOCIAL SERVICES-HOME CARE,Adult Social Care & Health,Personal Budget - Third Party,A61019
Royal Borough of Kingston,06/05/2024,90336451,782.62,BLUE ARROW CARE LTD,SOCIAL SERVICES-HOME CARE,Adult Social Care & Health,Personal Budget - Third Party,A61019
Royal Borough of Kingston,30/04/2024,70071263,"13,324.42",BNP PARIBAS REAL ESTATE ADVISORY & PROPERTY MANAGEMENT UK LTD,LEGAL & PROFESSIONAL SERVICES,Place,Professional Fees,A44066
Royal Borough of Kingston,01/05/2024,90333784,"3,549.10",BONDCARE (LONDON) LTD,SOCIAL SERVICES RESIDENTIAL,Adult Social Care & Health,Independent Placements,A56006
Royal Borough of Kingston,24/05/2024,90335477,916.66,BONSOR PENNINGTONS LTD,PLS LANDLORDS,Place,PSL Payments To Landlords,A22031
Royal Borough of Kingston,31/03/2024,70070343,550.10,BOOTS UK LIMITED,GENERAL GOODS / DEPT. STORES,Adult Social Care & Health,Other Private Contractors - Third Party,A56080
Royal Borough of Kingston,12/04/2024,70069417,"3,314.29",Bosence Farm Community Ltd,SOCIAL SERVICES - OTHER,Adult Social Care & Health,Independent Placements,A56006
Royal Borough of Kingston,12/04/2024,70069768,"3,314.29",Bosence Farm Community Ltd,SOCIAL SERVICES - OTHER,Adult Social Care & Health,Independent Placements,A56006
Royal Borough of Kingston,08/05/2024,70071141,"3,771.43",Bosence Farm Community Ltd,SOCIAL SERVICES - OTHER,Adult Social Care & Health,Independent Placements,A56006
Royal Borough of Kingston,24/05/2024,90335479,900.00,BR INVESTMENTS LIMITED,PLS LANDLORDS,Place,PSL Payments To Landlords,A22031
Royal Borough of Kingston,09/05/2024,90330693,"14,151.56",BRIGHT HORIZONS FAMILY SOLUTIONS,ACADEMIC INSTNS - OTHER,Schools,PVI Providers,A60014
Royal Borough of Kingston,09/05/2024,90330774,"7,910.16",BRIGHT HORIZONS FAMILY SOLUTIONS,ACADEMIC INSTNS - OTHER,Schools,PVI Providers,A60014
Royal Borough of Kingston,09/05/2024,90330786,"13,898.44",BRIGHT HORIZONS FAMILY SOLUTIONS,ACADEMIC INSTNS - OTHER,Schools,PVI Providers,A60014
Royal Borough of Kingston,09/05/2024,90330790,"12,726.56",BRIGHT HORIZONS FAMILY SOLUTIONS,ACADEMIC INSTNS - OTHER,Schools,PVI Providers,A60014
Royal Borough of Kingston,09/05/2024,90330793,"12,196.88",BRIGHT HORIZONS FAMILY SOLUTIONS,ACADEMIC INSTNS - OTHER,Schools,PVI Providers,A60014
Royal Borough of Kingston,09/05/2024,90330815,"7,290.00",BRIGHT HORIZONS FAMILY SOLUTIONS,ACADEMIC INSTNS - OTHER,Schools,2 Yr Old Place Funding,A60000
Royal Borough of Kingston,09/05/2024,90330878,"8,262.00",BRIGHT HORIZONS FAMILY SOLUTIONS,ACADEMIC INSTNS - OTHER,Schools,2 Yr Old Place Funding,A60000
Royal Borough of Kingston,09/05/2024,90330889,"10,125.00",BRIGHT HORIZONS FAMILY SOLUTIONS,ACADEMIC INSTNS - OTHER,Schools,2 Yr Old Place Funding,A60000
Royal Borough of Kingston,09/05/2024,90330892,"3,240.00",BRIGHT HORIZONS FAMILY SOLUTIONS,ACADEMIC INSTNS - OTHER,Schools,2 Yr Old Place Funding,A60000
Royal Borough of Kingston,09/05/2024,90330894,"8,479.69",BRIGHT HORIZONS FAMILY SOLUTIONS,ACADEMIC INSTNS - OTHER,Schools,2 Yr Old Place Funding,A60000
Royal Borough of Kingston,30/04/2024,70071524,"1,285.00",BRITISH PARKING ASSOCIATION,MANAGEMENT & TRAINING SERVICES,Corporate & Communities,PCFL - Levy,A51007
Royal Borough of Kingston,06/04/2024,70070945,"2,413.99",BRITISH TELECOMMUNICATIONS PLC,TELECOMS,Corporate & Communities,Telephones,A45020
Royal Borough of Kingston,06/05/2024,70070949,"2,380.46",BRITISH TELECOMMUNICATIONS PLC,TELECOMS,Corporate & Communities,Telephones,A45020
Royal Borough of Kingston,17/05/2024,70071696,"12,047.93",BRITISH TELECOMMUNICATIONS PLC,TELECOMS,Corporate & Communities,Telephones,A45020
Royal Borough of Kingston,25/05/2024,70071872,"12,590.54",BRITISH TELECOMMUNICATIONS PLC,TELECOMS,Corporate & Communities,Telephones,A45020
Royal Borough of Kingston,17/05/2024,70071873,"6,964.98",BRITISH TELECOMMUNICATIONS PLC,TELECOMS,Corporate & Communities,Telephones,A45020
Royal Borough of Kingston,17/05/2024,70071874,"2,599.71",BRITISH TELECOMMUNICATIONS PLC,TELECOMS,Corporate & Communities,Telephones,A45020
Royal Borough of Kingston,09/05/2024,90330795,843.75,REDACTED - PERSONAL DATA,ACADEMIC INSTNS - OTHER,Schools,PVI Providers,A60014
Royal Borough of Kingston,01/05/2024,90333837,"4,871.43",Brownlow Enterprises Limited,SOCIAL SERVICES RESIDENTIAL,Adult Social Care & Health,Independent Placements,A56006
Royal Borough of Kingston,06/05/2024,70070972,"24,234.00","Buildvantage Management Limited,",ACCOMMODATION BED & BREAKFAST,Place,Bed & Breakfast,A56000
Royal Borough of Kingston,06/05/2024,70070972,"23,890.00","Buildvantage Management Limited,",ACCOMMODATION BED & BREAKFAST,Place,Bed & Breakfast,A56000
Royal Borough of Kingston,01/05/2024,90333798,"9,458.37",BUPA CARE HOMES (AKW) LIMITED,SOCIAL SERVICES RESIDENTIAL,Adult Social Care & Health,Independent Placements,A56006
Royal Borough of Kingston,01/05/2024,90333817,"3,945.02",BUPA CARE HOMES (AKW) LIMITED,SOCIAL SERVICES RESIDENTIAL,Adult Social Care & Health,Independent Placements,A56006
Royal Borough of Kingston,01/05/2024,90333931,"5,591.43",BUPA CARE HOMES (AKW) LIMITED,SOCIAL SERVICES RESIDENTIAL,Adult Social Care & Health,Independent Placements,A56006
Royal Borough of Kingston,02/05/2024,90328132,"153,306.88",BURLINGTON INFANT AND NURSERY SCHOOL,SCHOOL FUNDS,Schools,Miscellaneous Expenses,A49000
Royal Borough of Kingston,03/05/2024,90328196,"2,314.77",BURLINGTON INFANT AND NURSERY SCHOOL,SCHOOL FUNDS,Schools,PVI Providers,A60014
Royal Borough of Kingston,09/05/2024,90330746,"35,437.50",BURLINGTON INFANT AND NURSERY SCHOOL,SCHOOL FUNDS,Schools,PVI Providers,A60014
Royal Borough of Kingston,09/05/2024,90330861,"4,050.00",BURLINGTON INFANT AND NURSERY SCHOOL,SCHOOL FUNDS,Schools,2 Yr Old Place Funding,A60000
Royal Borough of Kingston,02/05/2024,90328133,"194,807.45",BURLINGTON JUNIOR SCHOOL,SCHOOL FUNDS,Schools,Miscellaneous Expenses,A49000
Royal Borough of Kingston,25/04/2024,70070165,"5,000.00",BYTES SOFTWARE SERVICES LTD,BUSINESS & COMPUTER SYSTEMS,Corporate & Communities,Purchase of IT Hardware,C16001
Royal Borough of Kingston,30/04/2024,70070562,"1,349.97",BYTES SOFTWARE SERVICES LTD,BUSINESS & COMPUTER SYSTEMS,Corporate & Communities,IT Hardware Purchase,A45005
Royal Borough of Kingston,30/04/2024,70070608,450.00,BYTES SOFTWARE SERVICES LTD,BUSINESS & COMPUTER SYSTEMS,Corporate & Communities,Staff Development And Training,A15022
Royal Borough of Kingston,07/05/2024,70070740,514.07,BYTES SOFTWARE SERVICES LTD,BUSINESS & COMPUTER SYSTEMS,Place,IT Software Purchase,A45040
Royal Borough of Kingston,30/04/2024,70071042,"14,789.32",BYTES SOFTWARE SERVICES LTD,BUSINESS & COMPUTER SYSTEMS,Corporate & Communities,Cloud Services,A45007
Royal Borough of Kingston,16/05/2024,70071397,"48,129.04",BYTES SOFTWARE SERVICES LTD,BUSINESS & COMPUTER SYSTEMS,Corporate & Communities,Infrastructure Assets - Project Management,C12000
Royal Borough of Kingston,22/05/2024,70071773,680.66,BYTES SOFTWARE SERVICES LTD,BUSINESS & COMPUTER SYSTEMS,Corporate & Communities,IT Hardware Purchase,A45005
Royal Borough of Kingston,22/05/2024,70071786,"1,771.40",BYTES SOFTWARE SERVICES LTD,BUSINESS & COMPUTER SYSTEMS,Corporate & Communities,IT Hardware Purchase,A45005
Royal Borough of Kingston,28/03/2024,70071906,"14,282.96",BYTES SOFTWARE SERVICES LTD,BUSINESS & COMPUTER SYSTEMS,Corporate & Communities,Cloud Services,A45007
Royal Borough of Kingston,29/05/2024,70072008,868.00,BYTES SOFTWARE SERVICES LTD,BUSINESS & COMPUTER SYSTEMS,Corporate & Communities,IT Software Purchase,A45040
Royal Borough of Kingston,20/05/2024,70071559,"8,715.00",C & C Builders Limited,SUNDRY SUPPLIER - HOUSING,Place,Grants Given For Capital Purposes,C20004
Royal Borough of Kingston,24/05/2024,90335428,"1,314.08",REDACTED - PERSONAL DATA,PLS LANDLORDS,Place,PSL Payments To Landlords,A22031
Royal Borough of Kingston,24/05/2024,90335430,"1,094.00",REDACTED - PERSONAL DATA,PLS LANDLORDS,Place,PSL Payments To Landlords,A22031
Royal Borough of Kingston,24/05/2024,90335545,"1,314.08",REDACTED - PERSONAL DATA,PLS LANDLORDS,Place,PSL Payments To Landlords,A22031
Royal Borough of Kingston,24/05/2024,90335546,"1,314.08",REDACTED - PERSONAL DATA,PLS LANDLORDS,Place,PSL Payments To Landlords,A22031
Royal Borough of Kingston,24/05/2024,90335547,"1,314.08",REDACTED - PERSONAL DATA,PLS LANDLORDS,Place,PSL Payments To Landlords,A22031
Royal Borough of Kingston,24/05/2024,90335548,"1,314.08",REDACTED - PERSONAL DATA,PLS LANDLORDS,Place,PSL Payments To Landlords,A22031
Royal Borough of Kingston,03/05/2024,70070555,"5,000.00",REDACTED - PERSONAL DATA,PLS LANDLORDS,Place,Housing Incentives,A62025
Royal Borough of Kingston,24/05/2024,90335491,"1,400.00",REDACTED - PERSONAL DATA,PLS LANDLORDS,Place,PSL Payments To Landlords,A22031
Royal Borough of Kingston,24/05/2024,90335625,"1,679.75",REDACTED - PERSONAL DATA,PLS LANDLORDS,Place,PSL Payments To Landlords,A22031
Royal Borough of Kingston,09/05/2024,70071002,"10,010.00",CABLES DIRECT LIMITED,IT EQUIPMENT MAINTENANCE,Corporate & Communities,IT Hardware Purchase,A45005
Royal Borough of Kingston,10/04/2024,70069500,"1,903,768.00",Cambridge Road Estate (RBK) LLP,LEGAL & PROFESSIONAL SERVICES,Place,Other Capital Expenditure,C20002
Royal Borough of Kingston,25/04/2024,70070585,"107,799.50",Cambridge Road Estate (RBK) LLP,LEGAL & PROFESSIONAL SERVICES,Housing Revenue Account,Council Dwellings - Acquisition,C10006
Royal Borough of Kingston,25/04/2024,70070813,"68,220.96",Cambridge Road Estate (RBK) LLP,LEGAL & PROFESSIONAL SERVICES,Housing Revenue Account,Council Dwellings - Acquisition,C10006
Royal Borough of Kingston,25/04/2024,70070875,"774,214.00",Cambridge Road Estate (RBK) LLP,LEGAL & PROFESSIONAL SERVICES,Housing Revenue Account,Council Dwellings - Acquisition,C10006
Royal Borough of Kingston,23/05/2024,70071841,"1,362,025.00",Cambridge Road Estate (RBK) LLP,LEGAL & PROFESSIONAL SERVICES,Place,Other Capital Expenditure,C20002
Royal Borough of Kingston,26/04/2024,70070294,"1,500.00",Campbell Reith Hill LLP,LEGAL & PROFESSIONAL SERVICES,Place,Payments to Contractors,C14000
Royal Borough of Kingston,01/05/2024,90334672,981.99,Camphill Village Trust Ltd,SOCIAL SERVICES RESIDENTIAL,Adult Social Care & Health,Personal Budget - Third Party,A61019
Royal Borough of Kingston,01/05/2024,90334881,"11,846.43",Camphill Village Trust Ltd,SOCIAL SERVICES RESIDENTIAL,Adult Social Care & Health,Personal Budget - Third Party,A61019
Royal Borough of Kingston,01/05/2024,90334882,"3,458.67",Camphill Village Trust Ltd,SOCIAL SERVICES RESIDENTIAL,Adult Social Care & Health,Personal Budget - Third Party,A61019
Royal Borough of Kingston,15/05/2024,70071319,525.00,Canbury Park Church,TRAINING,Corporate & Communities,Leadership Development,A15023
Royal Borough of Kingston,09/05/2024,70071440,"3,133.75",CANON (UK) LTD,OPERATIONAL EQUIPMENT/MATERIAL,Corporate & Communities,Printing And Photocopying,A43005
Royal Borough of Kingston,01/05/2024,90334742,"5,697.09",CARE MANAGEMENT GROUP LTD,SOCIAL SERVICES RESIDENTIAL,Adult Social Care & Health,Personal Budget - Third Party,A61019
Royal Borough of Kingston,01/05/2024,90328512,"4,539.99",CARE UK COMMUNITY PARTNERSHIPS LTD,SOCIAL SERVICES RESIDENTIAL,Adult Social Care & Health,Independent Placements,A56006
Royal Borough of Kingston,01/05/2024,90328513,"-4,539.29",CARE UK COMMUNITY PARTNERSHIPS LTD,SOCIAL SERVICES RESIDENTIAL,Adult Social Care & Health,Independent Placements,A56006
Royal Borough of Kingston,01/05/2024,90328514,"4,438.16",CARE UK COMMUNITY PARTNERSHIPS LTD,SOCIAL SERVICES RESIDENTIAL,Adult Social Care & Health,Independent Placements,A56006
Royal Borough of Kingston,01/05/2024,90328515,"-4,392.86",CARE UK COMMUNITY PARTNERSHIPS LTD,SOCIAL SERVICES RESIDENTIAL,Adult Social Care & Health,Independent Placements,A56006
Royal Borough of Kingston,01/05/2024,90333816,"3,387.86",CARE UK COMMUNITY PARTNERSHIPS LTD,SOCIAL SERVICES RESIDENTIAL,Adult Social Care & Health,Independent Placements,A56006
Royal Borough of Kingston,01/05/2024,90333819,"5,850.14",CARE UK COMMUNITY PARTNERSHIPS LTD,SOCIAL SERVICES RESIDENTIAL,Adult Social Care & Health,Independent Placements,A56006
Royal Borough of Kingston,01/05/2024,90333838,"4,508.60",CARE UK COMMUNITY PARTNERSHIPS LTD,SOCIAL SERVICES RESIDENTIAL,Adult Social Care & Health,Independent Placements,A56006
Royal Borough of Kingston,01/05/2024,90333842,"3,511.28",CARE UK COMMUNITY PARTNERSHIPS LTD,SOCIAL SERVICES RESIDENTIAL,Adult Social Care & Health,Independent Placements,A56006
Royal Borough of Kingston,01/05/2024,90333959,"2,214.29",CARE UK COMMUNITY PARTNERSHIPS LTD,SOCIAL SERVICES RESIDENTIAL,Adult Social Care & Health,Other Private Contractors - Third Party,A56080
Royal Borough of Kingston,01/05/2024,90333960,"2,214.29",CARE UK COMMUNITY PARTNERSHIPS LTD,SOCIAL SERVICES RESIDENTIAL,Adult Social Care & Health,Other Private Contractors - Third Party,A56080
Royal Borough of Kingston,01/05/2024,90333961,"2,214.29",CARE UK COMMUNITY PARTNERSHIPS LTD,SOCIAL SERVICES RESIDENTIAL,Adult Social Care & Health,Other Private Contractors - Third Party,A56080
Royal Borough of Kingston,01/05/2024,90333962,"2,214.29",CARE UK COMMUNITY PARTNERSHIPS LTD,SOCIAL SERVICES RESIDENTIAL,Adult Social Care & Health,Other Private Contractors - Third Party,A56080
Royal Borough of Kingston,01/05/2024,90333963,"2,214.29",CARE UK COMMUNITY PARTNERSHIPS LTD,SOCIAL SERVICES RESIDENTIAL,Adult Social Care & Health,Other Private Contractors - Third Party,A56080
Royal Borough of Kingston,01/05/2024,90333964,"2,214.29",CARE UK COMMUNITY PARTNERSHIPS LTD,SOCIAL SERVICES RESIDENTIAL,Adult Social Care & Health,Other Private Contractors - Third Party,A56080
Royal Borough of Kingston,01/05/2024,90335148,"4,585.65",CARE UK COMMUNITY PARTNERSHIPS LTD,SOCIAL SERVICES RESIDENTIAL,Adult Social Care & Health,Independent Placements,A56006
Royal Borough of Kingston,01/05/2024,90335161,"4,586.10",CARE UK COMMUNITY PARTNERSHIPS LTD,SOCIAL SERVICES RESIDENTIAL,Adult Social Care & Health,Independent Placements,A56006
Royal Borough of Kingston,01/05/2024,90335163,"2,400.00",CARE UK COMMUNITY PARTNERSHIPS LTD,SOCIAL SERVICES RESIDENTIAL,Adult Social Care & Health,Independent Placements,A56006
Royal Borough of Kingston,01/05/2024,90335208,"7,391.29",CARE UK COMMUNITY PARTNERSHIPS LTD,SOCIAL SERVICES RESIDENTIAL,Adult Social Care & Health,Independent Placements,A56006
Royal Borough of Kingston,01/05/2024,90333830,"5,115.00",CARELODGES GROUP LTD,SOCIAL SERVICES RESIDENTIAL,Adult Social Care & Health,Independent Placements,A56006
Royal Borough of Kingston,01/05/2024,90333887,"5,847.44",CARELODGES GROUP LTD,SOCIAL SERVICES RESIDENTIAL,Adult Social Care & Health,Independent Placements,A56006
Royal Borough of Kingston,09/05/2024,90330690,"7,931.25",CAREROOM LTD ,ACADEMIC INSTNS - OTHER,Schools,PVI Providers,A60014
Royal Borough of Kingston,08/04/2024,90329194,794.14,CARLCARE LTD,SOCIAL SERVICES-HOME CARE,Adult Social Care & Health,Homecare - new framework,A56127
Royal Borough of Kingston,08/04/2024,90329216,529.43,CARLCARE LTD,SOCIAL SERVICES-HOME CARE,Adult Social Care & Health,Homecare - new framework,A56127
Royal Borough of Kingston,08/04/2024,90329358,538.88,CARLCARE LTD,SOCIAL SERVICES-HOME CARE,Adult Social Care & Health,Homecare - new framework,A56127
Royal Borough of Kingston,08/04/2024,90329473,661.78,CARLCARE LTD,SOCIAL SERVICES-HOME CARE,Adult Social Care & Health,Homecare - Framework - double-handed,A56131
Royal Borough of Kingston,08/04/2024,90329477,595.60,CARLCARE LTD,SOCIAL SERVICES-HOME CARE,Adult Social Care & Health,Homecare - Framework - double-handed,A56131
Royal Borough of Kingston,29/04/2024,90330660,"1,339.50",CARLCARE LTD,SOCIAL SERVICES-HOME CARE,Adult Social Care & Health,Personal Budget - Third Party,A61019
Royal Borough of Kingston,29/04/2024,90330661,"-1,275.71",CARLCARE LTD,SOCIAL SERVICES-HOME CARE,Adult Social Care & Health,Personal Budget - Third Party,A61019
Royal Borough of Kingston,29/04/2024,90330662,"1,339.50",CARLCARE LTD,SOCIAL SERVICES-HOME CARE,Adult Social Care & Health,Personal Budget - Third Party,A61019
Royal Borough of Kingston,29/04/2024,90330663,"-1,275.71",CARLCARE LTD,SOCIAL SERVICES-HOME CARE,Adult Social Care & Health,Personal Budget - Third Party,A61019
Royal Borough of Kingston,29/04/2024,90330664,"1,339.50",CARLCARE LTD,SOCIAL SERVICES-HOME CARE,Adult Social Care & Health,Personal Budget - Third Party,A61019
Royal Borough of Kingston,29/04/2024,90330665,"-1,275.71",CARLCARE LTD,SOCIAL SERVICES-HOME CARE,Adult Social Care & Health,Personal Budget - Third Party,A61019
Royal Borough of Kingston,29/04/2024,90330666,"1,339.50",CARLCARE LTD,SOCIAL SERVICES-HOME CARE,Adult Social Care & Health,Personal Budget - Third Party,A61019
Royal Borough of Kingston,29/04/2024,90330667,"-1,275.71",CARLCARE LTD,SOCIAL SERVICES-HOME CARE,Adult Social Care & Health,Personal Budget - Third Party,A61019
Royal Borough of Kingston,29/04/2024,90330668,"1,339.50",CARLCARE LTD,SOCIAL SERVICES-HOME CARE,Adult Social Care & Health,Personal Budget - Third Party,A61019
Royal Borough of Kingston,15/04/2024,90332128,794.14,CARLCARE LTD,SOCIAL SERVICES-HOME CARE,Adult Social Care & Health,Homecare - new framework,A56127
Royal Borough of Kingston,15/04/2024,90332149,529.43,CARLCARE LTD,SOCIAL SERVICES-HOME CARE,Adult Social Care & Health,Homecare - new framework,A56127
Royal Borough of Kingston,15/04/2024,90332281,538.88,CARLCARE LTD,SOCIAL SERVICES-HOME CARE,Adult Social Care & Health,Homecare - new framework,A56127
Royal Borough of Kingston,15/04/2024,90332393,661.78,CARLCARE LTD,SOCIAL SERVICES-HOME CARE,Adult Social Care & Health,Homecare - Framework - double-handed,A56131
Royal Borough of Kingston,15/04/2024,90332397,529.43,CARLCARE LTD,SOCIAL SERVICES-HOME CARE,Adult Social Care & Health,Homecare - Framework - double-handed,A56131
Royal Borough of Kingston,06/05/2024,90332717,"1,339.50",CARLCARE LTD,SOCIAL SERVICES-HOME CARE,Adult Social Care & Health,Personal Budget - Third Party,A61019
Royal Borough of Kingston,22/04/2024,90332960,794.14,CARLCARE LTD,SOCIAL SERVICES-HOME CARE,Adult Social Care & Health,Homecare - new framework,A56127
Royal Borough of Kingston,22/04/2024,90332981,529.43,CARLCARE LTD,SOCIAL SERVICES-HOME CARE,Adult Social Care & Health,Homecare - new framework,A56127
Royal Borough of Kingston,22/04/2024,90333125,538.88,CARLCARE LTD,SOCIAL SERVICES-HOME CARE,Adult Social Care & Health,Homecare - new framework,A56127
Royal Borough of Kingston,22/04/2024,90333263,661.78,CARLCARE LTD,SOCIAL SERVICES-HOME CARE,Adult Social Care & Health,Homecare - Framework - double-handed,A56131
Royal Borough of Kingston,22/04/2024,90333268,595.60,CARLCARE LTD,SOCIAL SERVICES-HOME CARE,Adult Social Care & Health,Homecare - Framework - double-handed,A56131
Royal Borough of Kingston,13/05/2024,90333623,"1,339.45",CARLCARE LTD,SOCIAL SERVICES-HOME CARE,Adult Social Care & Health,Homecare - non - Framework - 24 hour care & live-in,A56166
Royal Borough of Kingston,13/05/2024,90333624,"1,339.45",CARLCARE LTD,SOCIAL SERVICES-HOME CARE,Adult Social Care & Health,Homecare - non - Framework - 24 hour care & live-in,A56166
Royal Borough of Kingston,13/05/2024,90333625,"1,339.45",CARLCARE LTD,SOCIAL SERVICES-HOME CARE,Adult Social Care & Health,Homecare - non - Framework - 24 hour care & live-in,A56166
Royal Borough of Kingston,13/05/2024,90333694,"1,339.50",CARLCARE LTD,SOCIAL SERVICES-HOME CARE,Adult Social Care & Health,Personal Budget - Third Party,A61019
Royal Borough of Kingston,29/04/2024,90335865,794.14,CARLCARE LTD,SOCIAL SERVICES-HOME CARE,Adult Social Care & Health,Homecare - new framework,A56127
Royal Borough of Kingston,29/04/2024,90335886,529.43,CARLCARE LTD,SOCIAL SERVICES-HOME CARE,Adult Social Care & Health,Homecare - new framework,A56127
Royal Borough of Kingston,29/04/2024,90336010,548.33,CARLCARE LTD,SOCIAL SERVICES-HOME CARE,Adult Social Care & Health,Homecare - new framework,A56127
Royal Borough of Kingston,29/04/2024,90336110,595.60,CARLCARE LTD,SOCIAL SERVICES-HOME CARE,Adult Social Care & Health,Homecare - Framework - double-handed,A56131
Royal Borough of Kingston,20/05/2024,90336403,"1,339.45",CARLCARE LTD,SOCIAL SERVICES-HOME CARE,Adult Social Care & Health,Homecare - non - Framework - 24 hour care & live-in,A56166
Royal Borough of Kingston,20/05/2024,90336462,"1,339.50",CARLCARE LTD,SOCIAL SERVICES-HOME CARE,Adult Social Care & Health,Personal Budget - Third Party,A61019
Royal Borough of Kingston,24/05/2024,90335520,"1,550.00",CARLISLE SECURITIES LTD,PLS LANDLORDS,Place,PSL Payments To Landlords,A22031
Royal Borough of Kingston,20/05/2024,70071601,"2,700.00",REDACTED - PERSONAL DATA,SUNDRY SUPPLIER - HOUSING,Place,Housing Incentives,A62025
Royal Borough of Kingston,21/05/2024,70071602,"1,795.00",REDACTED - PERSONAL DATA,SUNDRY SUPPLIER - HOUSING,Place,Prevention Of Homelessness,A44141
Royal Borough of Kingston,24/05/2024,90335352,"1,185.00",REDACTED - PERSONAL DATA,PLS LANDLORDS,Place,PSL Payments To Landlords,A22031
Royal Borough of Kingston,09/05/2024,90330694,"1,687.50",REDACTED - PERSONAL DATA,ACADEMIC INSTNS - OTHER,Schools,PVI Providers,A60014
Royal Borough of Kingston,09/05/2024,90330816,810.00,REDACTED - PERSONAL DATA,ACADEMIC INSTNS - OTHER,Schools,2 Yr Old Place Funding,A60000
Royal Borough of Kingston,09/05/2024,90330728,"1,462.50",REDACTED - PERSONAL DATA,ACADEMIC INSTNS - OTHER,Schools,PVI Providers,A60014
Royal Borough of Kingston,07/05/2024,90328257,500.00,REDACTED - PERSONAL DATA,CHARITIES & VOLUNTARY ORGNS,Adult Social Care & Health,"Grants, Contributions & Donations",A47005
Royal Borough of Kingston,01/05/2024,90333888,"9,943.96",CARTREF HOMES,SOCIAL SERVICES RESIDENTIAL,Adult Social Care & Health,Independent Placements,A56006
Royal Borough of Kingston,01/05/2024,90333863,"14,724.87",CAS CARE SERVICES LTD,SOCIAL SERVICES - OTHER,Adult Social Care & Health,Independent Placements,A56006
Royal Borough of Kingston,01/05/2024,90333905,"14,724.87",CAS CARE SERVICES LTD,SOCIAL SERVICES - OTHER,Adult Social Care & Health,Independent Placements,A56006
Royal Borough of Kingston,03/05/2024,90328197,950.41,CASTLE HILL SCHOOL,SCHOOL FUNDS,Schools,Miscellaneous Expenses,A49000
Royal Borough of Kingston,09/05/2024,90330747,"37,125.00",CASTLE HILL SCHOOL,SCHOOL FUNDS,Schools,Miscellaneous Expenses,A49000
Royal Borough of Kingston,09/05/2024,90330782,"3,037.50",CASTLE HILL SCHOOL,SCHOOL FUNDS,Schools,PVI Providers,A60014
Royal Borough of Kingston,09/05/2024,90330885,"20,898.00",CASTLE HILL SCHOOL,SCHOOL FUNDS,Schools,2 Yr Old Place Funding,A60000
Royal Borough of Kingston,24/05/2024,70071749,"6,250.00",Castle Residential Properties,SUNDRY SUPPLIER - HOUSING,Place,Compensation (In Lieu Of Works),A20039
Royal Borough of Kingston,24/05/2024,90335323,"2,543.06",CASTLE RESIDENTIAL PROPERTIES LTD,PLS LANDLORDS,Place,PSL Payments To Landlords,A22031
Royal Borough of Kingston,24/05/2024,90335324,"1,540.00",CASTLE RESIDENTIAL PROPERTIES LTD,PLS LANDLORDS,Place,PSL Payments To Landlords,A22031
Royal Borough of Kingston,24/05/2024,90335429,"1,321.00",CASTLE RESIDENTIAL PROPERTIES LTD,PLS LANDLORDS,Place,PSL Payments To Landlords,A22031
Royal Borough of Kingston,24/05/2024,90335431,"1,049.98",CASTLE RESIDENTIAL PROPERTIES LTD,PLS LANDLORDS,Place,PSL Payments To Landlords,A22031
Royal Borough of Kingston,24/05/2024,90335586,"2,543.06",CASTLE RESIDENTIAL PROPERTIES LTD,PLS LANDLORDS,Place,PSL Payments To Landlords,A22031
Royal Borough of Kingston,24/05/2024,90335657,"2,543.06",CASTLE RESIDENTIAL PROPERTIES LTD,PLS LANDLORDS,Place,PSL Payments To Landlords,A22031
Royal Borough of Kingston,24/05/2024,90335322,"1,094.34",CASTLE WILDISH RESI LTD,PLS LANDLORDS,Place,PSL Payments To Landlords,A22031
Royal Borough of Kingston,24/05/2024,90335637,"2,100.00",CASTLE WILDISH RESI LTD,PLS LANDLORDS,Place,PSL Payments To Landlords,A22031
Royal Borough of Kingston,24/05/2024,90335638,"2,100.00",CASTLE WILDISH RESI LTD,PLS LANDLORDS,Place,PSL Payments To Landlords,A22031
Royal Borough of Kingston,29/02/2024,70070178,"20,412.01",Causeway Technologies Limited,IT EQUIPMENT MAINTENANCE,Place,IT Software Maintenance,A45045
Royal Borough of Kingston,01/05/2024,90333880,"11,709.72",Gresham Care Operations Limited,SOCIAL SERVICES RESIDENTIAL,Adult Social Care & Health,Independent Placements,A56006
Royal Borough of Kingston,29/05/2024,70071984,602.65,REDACTED - PERSONAL DATA,PLS LANDLORDS,Place,Water Services,A24005
Royal Borough of Kingston,24/05/2024,90335457,867.83,REDACTED - PERSONAL DATA,PLS LANDLORDS,Place,PSL Payments To Landlords,A22031
Royal Borough of Kingston,14/05/2024,70071415,540.00,CHRIST CHURCH AND ST JOHN'S NEW MALDEN,OFFICE SERVICES,Corporate & Communities,Building Rents,A22005
Royal Borough of Kingston,01/05/2024,90333839,"6,642.86",CENTRAL AND CECIL HOUSING TRUST,SOCIAL SERVICES - OTHER,Adult Social Care & Health,Independent Placements,A56006
Royal Borough of Kingston,22/04/2024,70069914,"8,708.96",Change Please Foundation,CHARITIES & VOLUNTARY ORGNS,Adult Social Care & Health,Other Private Contractors - Third Party,A56080
Royal Borough of Kingston,26/03/2024,70070749,"27,094.88",CHARLES TAYLOR SERVICES LIMITED,FINANCIAL / INSURANCE INSTNS,Corporate & Communities,General Insurance (Excl Premises & Transport),A44260
Royal Borough of Kingston,30/04/2024,70070863,"1,042.50",CHAWTON HILL ASSOCIATES LIMITED,LEGAL & PROFESSIONAL SERVICES,Place,Payments to Contractors,C14000
Royal Borough of Kingston,30/04/2024,70070864,"1,100.00",CHAWTON HILL ASSOCIATES LIMITED,LEGAL & PROFESSIONAL SERVICES,Place,Payments to Contractors,C14000
Royal Borough of Kingston,30/04/2024,70070865,"3,375.00",CHAWTON HILL ASSOCIATES LIMITED,LEGAL & PROFESSIONAL SERVICES,Place,Buildings - Design & Planning,C14001
Royal Borough of Kingston,30/04/2024,70070866,810.00,CHAWTON HILL ASSOCIATES LIMITED,LEGAL & PROFESSIONAL SERVICES,Place,Buildings - Design & Planning,C14001
Royal Borough of Kingston,30/04/2024,70070868,721.21,CHAWTON HILL ASSOCIATES LIMITED,LEGAL & PROFESSIONAL SERVICES,Place,Payments to Contractors,C14000
Royal Borough of Kingston,30/04/2024,70070937,"1,050.19",CHAWTON HILL ASSOCIATES LIMITED,LEGAL & PROFESSIONAL SERVICES,Place,Payments to Contractors,C14000
Royal Borough of Kingston,30/04/2024,70070950,960.00,CHAWTON HILL ASSOCIATES LIMITED,LEGAL & PROFESSIONAL SERVICES,Place,Property-Related Professional Fees,A20035
Royal Borough of Kingston,30/04/2024,70071358,500.00,CHAWTON HILL ASSOCIATES LIMITED,LEGAL & PROFESSIONAL SERVICES,Place,Payments to Contractors,C14000
Royal Borough of Kingston,30/04/2024,70071468,"4,650.00",CHAWTON HILL ASSOCIATES LIMITED,LEGAL & PROFESSIONAL SERVICES,Place,Payments to Contractors,C14000
Royal Borough of Kingston,01/05/2024,90333812,"3,865.08",CHD (CARE HOMES) LTD,SOCIAL SERVICES RESIDENTIAL,Adult Social Care & Health,Independent Placements,A56006
Royal Borough of Kingston,01/05/2024,90333841,"5,456.00",CHD (CARE HOMES) LTD,SOCIAL SERVICES RESIDENTIAL,Adult Social Care & Health,Independent Placements,A56006
Royal Borough of Kingston,01/05/2024,90333844,"3,995.15",CHD (CARE HOMES) LTD,SOCIAL SERVICES RESIDENTIAL,Adult Social Care & Health,Independent Placements,A56006
Royal Borough of Kingston,01/05/2024,90333804,"4,423.26",CHD CARE LTD,SOCIAL SERVICES RESIDENTIAL,Adult Social Care & Health,Independent Placements,A56006
Royal Borough of Kingston,01/05/2024,90333949,"2,435.71",CHD CARE LTD,SOCIAL SERVICES RESIDENTIAL,Adult Social Care & Health,Other Private Contractors - Third Party,A56080
Royal Borough of Kingston,01/05/2024,90333950,"2,435.71",CHD CARE LTD,SOCIAL SERVICES RESIDENTIAL,Adult Social Care & Health,Other Private Contractors - Third Party,A56080
Royal Borough of Kingston,01/05/2024,90333951,"2,435.71",CHD CARE LTD,SOCIAL SERVICES RESIDENTIAL,Adult Social Care & Health,Other Private Contractors - Third Party,A56080
Royal Borough of Kingston,01/05/2024,90333952,"2,435.71",CHD CARE LTD,SOCIAL SERVICES RESIDENTIAL,Adult Social Care & Health,Other Private Contractors - Third Party,A56080
Royal Borough of Kingston,01/05/2024,90333953,"2,435.71",CHD CARE LTD,SOCIAL SERVICES RESIDENTIAL,Adult Social Care & Health,Other Private Contractors - Third Party,A56080
Royal Borough of Kingston,01/05/2024,90333954,"2,435.71",CHD CARE LTD,SOCIAL SERVICES RESIDENTIAL,Adult Social Care & Health,Other Private Contractors - Third Party,A56080
Royal Borough of Kingston,01/05/2024,90333955,"2,435.71",CHD CARE LTD,SOCIAL SERVICES RESIDENTIAL,Adult Social Care & Health,Other Private Contractors - Third Party,A56080
Royal Borough of Kingston,01/05/2024,90333956,"2,435.71",CHD CARE LTD,SOCIAL SERVICES RESIDENTIAL,Adult Social Care & Health,Other Private Contractors - Third Party,A56080
Royal Borough of Kingston,01/05/2024,90333957,"2,435.71",CHD CARE LTD,SOCIAL SERVICES RESIDENTIAL,Adult Social Care & Health,Other Private Contractors - Third Party,A56080
Royal Borough of Kingston,01/05/2024,90333958,"2,435.71",CHD CARE LTD,SOCIAL SERVICES RESIDENTIAL,Adult Social Care & Health,Other Private Contractors - Third Party,A56080
Royal Borough of Kingston,03/05/2024,70070633,"1,716.67",Chessington Hotel,CONFERENCES,Place,Hire of Rooms,A22010
Royal Borough of Kingston,08/05/2024,70071029,"1,000.00",CHESSINGTON NURSERIES LIMITED,AGRICULTURAL & ESTATE SERVICES,Corporate & Communities,Building Rents,A22005
Royal Borough of Kingston,09/05/2024,90330701,"9,843.75",CHILDS PLAY NURSERY SCHOOL LTD,ACADEMIC INSTNS - OTHER,Schools,PVI Providers,A60014
Royal Borough of Kingston,09/05/2024,90330823,"1,215.00",CHILDS PLAY NURSERY SCHOOL LTD,ACADEMIC INSTNS - OTHER,Schools,2 Yr Old Place Funding,A60000
Royal Borough of Kingston,01/05/2024,90333813,"3,755.03",CHISWICK NURSING CENTRE,SOCIAL SERVICES RESIDENTIAL,Adult Social Care & Health,Independent Placements,A56006
Royal Borough of Kingston,01/05/2024,90333824,"3,434.40",CHISWICK NURSING CENTRE,SOCIAL SERVICES RESIDENTIAL,Adult Social Care & Health,Independent Placements,A56006
Royal Borough of Kingston,01/05/2024,90333900,"8,824.06",CHOICE LTD,SOCIAL SERVICES RESIDENTIAL,Adult Social Care & Health,Independent Placements,A56006
Royal Borough of Kingston,01/05/2024,90333909,"7,797.03",CHOICE LTD,SOCIAL SERVICES RESIDENTIAL,Adult Social Care & Health,Independent Placements,A56006
Royal Borough of Kingston,02/05/2024,90328135,"164,975.16",CHRIST CHURCH  C. OF E.  PRIMARY SCHOOL (NEW MALDEN),SCHOOL FUNDS,Schools,Miscellaneous Expenses,A49000
Royal Borough of Kingston,09/05/2024,90330748,"10,406.25",CHRIST CHURCH  C. OF E.  PRIMARY SCHOOL (NEW MALDEN),SCHOOL FUNDS,Schools,Miscellaneous Expenses,A49000
Royal Borough of Kingston,02/05/2024,90328134,"172,478.25",CHRIST CHURCH C.OF E. PRIMARY SCHOOL - (SURBITON),ACADEMIC INSTNS - OTHER,Schools,Miscellaneous Expenses,A49000
Royal Borough of Kingston,22/04/2024,90329756,"1,478.60",CHRISTIES CARE LTD,SOCIAL SERVICES RESIDENTIAL,Adult Social Care & Health,Homecare - non - Framework - 24 hour care & live-in,A56166
Royal Borough of Kingston,22/04/2024,90329757,"-1,408.19",CHRISTIES CARE LTD,SOCIAL SERVICES RESIDENTIAL,Adult Social Care & Health,Homecare - non - Framework - 24 hour care & live-in,A56166
Royal Borough of Kingston,22/04/2024,90329758,"1,478.60",CHRISTIES CARE LTD,SOCIAL SERVICES RESIDENTIAL,Adult Social Care & Health,Homecare - non - Framework - 24 hour care & live-in,A56166
Royal Borough of Kingston,22/04/2024,90329759,"-1,408.19",CHRISTIES CARE LTD,SOCIAL SERVICES RESIDENTIAL,Adult Social Care & Health,Homecare - non - Framework - 24 hour care & live-in,A56166
Royal Borough of Kingston,22/04/2024,90329760,"1,478.60",CHRISTIES CARE LTD,SOCIAL SERVICES RESIDENTIAL,Adult Social Care & Health,Homecare - non - Framework - 24 hour care & live-in,A56166
Royal Borough of Kingston,22/04/2024,90329761,"-1,408.19",CHRISTIES CARE LTD,SOCIAL SERVICES RESIDENTIAL,Adult Social Care & Health,Homecare - non - Framework - 24 hour care & live-in,A56166
Royal Borough of Kingston,22/04/2024,90329762,"1,478.60",CHRISTIES CARE LTD,SOCIAL SERVICES RESIDENTIAL,Adult Social Care & Health,Homecare - non - Framework - 24 hour care & live-in,A56166
Royal Borough of Kingston,22/04/2024,90329763,"1,382.22",CHRISTIES CARE LTD,SOCIAL SERVICES RESIDENTIAL,Adult Social Care & Health,Homecare - non - Framework - 24 hour care & live-in,A56166
Royal Borough of Kingston,22/04/2024,90329764,"-1,316.40",CHRISTIES CARE LTD,SOCIAL SERVICES RESIDENTIAL,Adult Social Care & Health,Homecare - non - Framework - 24 hour care & live-in,A56166
Royal Borough of Kingston,22/04/2024,90329765,"1,382.22",CHRISTIES CARE LTD,SOCIAL SERVICES RESIDENTIAL,Adult Social Care & Health,Homecare - non - Framework - 24 hour care & live-in,A56166
Royal Borough of Kingston,22/04/2024,90329766,"-1,316.40",CHRISTIES CARE LTD,SOCIAL SERVICES RESIDENTIAL,Adult Social Care & Health,Homecare - non - Framework - 24 hour care & live-in,A56166
Royal Borough of Kingston,22/04/2024,90329767,"1,382.22",CHRISTIES CARE LTD,SOCIAL SERVICES RESIDENTIAL,Adult Social Care & Health,Homecare - non - Framework - 24 hour care & live-in,A56166
Royal Borough of Kingston,22/04/2024,90329768,"-1,316.40",CHRISTIES CARE LTD,SOCIAL SERVICES RESIDENTIAL,Adult Social Care & Health,Homecare - non - Framework - 24 hour care & live-in,A56166
Royal Borough of Kingston,22/04/2024,90329769,"1,382.22",CHRISTIES CARE LTD,SOCIAL SERVICES RESIDENTIAL,Adult Social Care & Health,Homecare - non - Framework - 24 hour care & live-in,A56166
Royal Borough of Kingston,22/04/2024,90329770,"1,438.19",CHRISTIES CARE LTD,SOCIAL SERVICES RESIDENTIAL,Adult Social Care & Health,Homecare - non - Framework - 24 hour care & live-in,A56166
Royal Borough of Kingston,22/04/2024,90329771,"-1,369.70",CHRISTIES CARE LTD,SOCIAL SERVICES RESIDENTIAL,Adult Social Care & Health,Homecare - non - Framework - 24 hour care & live-in,A56166
Royal Borough of Kingston,22/04/2024,90329772,"1,438.19",CHRISTIES CARE LTD,SOCIAL SERVICES RESIDENTIAL,Adult Social Care & Health,Homecare - non - Framework - 24 hour care & live-in,A56166
Royal Borough of Kingston,22/04/2024,90329773,"-1,369.70",CHRISTIES CARE LTD,SOCIAL SERVICES RESIDENTIAL,Adult Social Care & Health,Homecare - non - Framework - 24 hour care & live-in,A56166
Royal Borough of Kingston,22/04/2024,90329774,"1,438.19",CHRISTIES CARE LTD,SOCIAL SERVICES RESIDENTIAL,Adult Social Care & Health,Homecare - non - Framework - 24 hour care & live-in,A56166
Royal Borough of Kingston,22/04/2024,90329775,"-1,369.70",CHRISTIES CARE LTD,SOCIAL SERVICES RESIDENTIAL,Adult Social Care & Health,Homecare - non - Framework - 24 hour care & live-in,A56166
Royal Borough of Kingston,22/04/2024,90329776,"1,438.19",CHRISTIES CARE LTD,SOCIAL SERVICES RESIDENTIAL,Adult Social Care & Health,Homecare - non - Framework - 24 hour care & live-in,A56166
Royal Borough of Kingston,22/04/2024,90329785,"1,387.73",CHRISTIES CARE LTD,SOCIAL SERVICES RESIDENTIAL,Adult Social Care & Health,Homecare - non - Framework - 24 hour care & live-in,A56166
Royal Borough of Kingston,22/04/2024,90329786,"-1,321.65",CHRISTIES CARE LTD,SOCIAL SERVICES RESIDENTIAL,Adult Social Care & Health,Homecare - non - Framework - 24 hour care & live-in,A56166
Royal Borough of Kingston,22/04/2024,90329787,"1,387.73",CHRISTIES CARE LTD,SOCIAL SERVICES RESIDENTIAL,Adult Social Care & Health,Homecare - non - Framework - 24 hour care & live-in,A56166
Royal Borough of Kingston,22/04/2024,90329788,"-1,321.65",CHRISTIES CARE LTD,SOCIAL SERVICES RESIDENTIAL,Adult Social Care & Health,Homecare - non - Framework - 24 hour care & live-in,A56166
Royal Borough of Kingston,22/04/2024,90329789,"1,387.73",CHRISTIES CARE LTD,SOCIAL SERVICES RESIDENTIAL,Adult Social Care & Health,Homecare - non - Framework - 24 hour care & live-in,A56166
Royal Borough of Kingston,22/04/2024,90329790,"-1,321.65",CHRISTIES CARE LTD,SOCIAL SERVICES RESIDENTIAL,Adult Social Care & Health,Homecare - non - Framework - 24 hour care & live-in,A56166
Royal Borough of Kingston,22/04/2024,90329791,"1,387.73",CHRISTIES CARE LTD,SOCIAL SERVICES RESIDENTIAL,Adult Social Care & Health,Homecare - non - Framework - 24 hour care & live-in,A56166
Royal Borough of Kingston,29/04/2024,90332674,"1,478.60",CHRISTIES CARE LTD,SOCIAL SERVICES RESIDENTIAL,Adult Social Care & Health,Homecare - non - Framework - 24 hour care & live-in,A56166
Royal Borough of Kingston,29/04/2024,90332675,"1,382.22",CHRISTIES CARE LTD,SOCIAL SERVICES RESIDENTIAL,Adult Social Care & Health,Homecare - non - Framework - 24 hour care & live-in,A56166
Royal Borough of Kingston,29/04/2024,90332676,"1,438.19",CHRISTIES CARE LTD,SOCIAL SERVICES RESIDENTIAL,Adult Social Care & Health,Homecare - non - Framework - 24 hour care & live-in,A56166
Royal Borough of Kingston,29/04/2024,90332678,"1,387.73",CHRISTIES CARE LTD,SOCIAL SERVICES RESIDENTIAL,Adult Social Care & Health,Homecare - non - Framework - 24 hour care & live-in,A56166
Royal Borough of Kingston,06/05/2024,90333626,"1,478.60",CHRISTIES CARE LTD,SOCIAL SERVICES RESIDENTIAL,Adult Social Care & Health,Homecare - non - Framework - 24 hour care & live-in,A56166
Royal Borough of Kingston,06/05/2024,90333627,"1,382.22",CHRISTIES CARE LTD,SOCIAL SERVICES RESIDENTIAL,Adult Social Care & Health,Homecare - non - Framework - 24 hour care & live-in,A56166
Royal Borough of Kingston,06/05/2024,90333628,"1,438.19",CHRISTIES CARE LTD,SOCIAL SERVICES RESIDENTIAL,Adult Social Care & Health,Homecare - non - Framework - 24 hour care & live-in,A56166
Royal Borough of Kingston,06/05/2024,90333640,"1,387.73",CHRISTIES CARE LTD,SOCIAL SERVICES RESIDENTIAL,Adult Social Care & Health,Homecare - non - Framework - 24 hour care & live-in,A56166
Royal Borough of Kingston,13/05/2024,90336404,"1,478.60",CHRISTIES CARE LTD,SOCIAL SERVICES RESIDENTIAL,Adult Social Care & Health,Homecare - non - Framework - 24 hour care & live-in,A56166
Royal Borough of Kingston,13/05/2024,90336405,"1,382.22",CHRISTIES CARE LTD,SOCIAL SERVICES RESIDENTIAL,Adult Social Care & Health,Homecare - non - Framework - 24 hour care & live-in,A56166
Royal Borough of Kingston,13/05/2024,90336406,"1,438.19",CHRISTIES CARE LTD,SOCIAL SERVICES RESIDENTIAL,Adult Social Care & Health,Homecare - non - Framework - 24 hour care & live-in,A56166
Royal Borough of Kingston,13/05/2024,90336408,"1,387.73",CHRISTIES CARE LTD,SOCIAL SERVICES RESIDENTIAL,Adult Social Care & Health,Homecare - non - Framework - 24 hour care & live-in,A56166
Royal Borough of Kingston,09/05/2024,90330913,"1,620.00",REDACTED - PERSONAL DATA,ACADEMIC INSTNS - OTHER,Schools,2 Yr Old Place Funding,A60000
Royal Borough of Kingston,07/05/2024,90328258,500.00,REDACTED - PERSONAL DATA,GRANTS & EX GRATIA PAYMENTS,Adult Social Care & Health,"Grants, Contributions & Donations",A47005
Royal Borough of Kingston,16/05/2024,70071373,"17,500.00",CITIZEN ZOO CIC,CHARITIES & VOLUNTARY ORGNS,Corporate & Communities,Infrastructure Assets - Purchase & Enhancement,C12001
Royal Borough of Kingston,16/05/2024,70071374,"14,625.00",CITIZEN ZOO CIC,CHARITIES & VOLUNTARY ORGNS,Corporate & Communities,Infrastructure Assets - Purchase & Enhancement,C12001
Royal Borough of Kingston,25/04/2024,70070742,"141,450.00",CITY CHANGER PROJECTS,GRANTS & EX GRATIA PAYMENTS,Adult Social Care & Health,Miscellaneous Expenses,A49000
Royal Borough of Kingston,15/12/2023,70070521,"17,110.12",CITY OF LONDON,CENTRAL & LOCAL GOVERNMENT,Adult Social Care & Health,Other Private Contractors - Third Party,A56080
Royal Borough of Kingston,14/05/2024,70071111,"112,294.51",CityAxis,CONSTRUCTION INDUSTRY,Place,Payments to Contractors,C14000
Royal Borough of Kingston,19/04/2024,70071587,"228,373.48",CityAxis,CONSTRUCTION INDUSTRY,Place,Payments to Contractors,C14000
Royal Borough of Kingston,21/05/2024,70071595,"174,525.67",CityAxis,CONSTRUCTION INDUSTRY,Place,Payments to Contractors,C14000
Royal Borough of Kingston,25/04/2024,70070336,886.95,CITYSPRINT (UK) LTD,OFFICE SERVICES,Corporate & Communities,Books,A43050
Royal Borough of Kingston,22/04/2024,70071000,"3,918.26",CIVICA UK LTD,BUSINESS & COMPUTER SYSTEMS,Corporate & Communities,Subscriptions,A47010
Royal Borough of Kingston,09/05/2024,90330904,810.00,REDACTED - PERSONAL DATA,ACADEMIC INSTNS - OTHER,Schools,2 Yr Old Place Funding,A60000
Royal Borough of Kingston,09/05/2024,90330906,810.00,REDACTED - PERSONAL DATA,ACADEMIC INSTNS - OTHER,Schools,2 Yr Old Place Funding,A60000
Royal Borough of Kingston,09/05/2024,90330704,"1,406.25",REDACTED - PERSONAL DATA,ACADEMIC INSTNS - OTHER,Schools,PVI Providers,A60014
Royal Borough of Kingston,09/05/2024,90330825,810.00,REDACTED - PERSONAL DATA,ACADEMIC INSTNS - OTHER,Schools,2 Yr Old Place Funding,A60000
Royal Borough of Kingston,01/05/2024,90333821,"7,750.00",Claremont Care Services Ltd,SOCIAL SERVICES RESIDENTIAL,Adult Social Care & Health,Independent Placements,A56006
Royal Borough of Kingston,01/05/2024,90333846,"14,136.00",Claremont Care Services Ltd,SOCIAL SERVICES RESIDENTIAL,Adult Social Care & Health,Independent Placements,A56006
Royal Borough of Kingston,01/05/2024,90333912,"9,252.04",CLEARWATER CARE (HACKNEY) LTD,SOCIAL SERVICES RESIDENTIAL,Adult Social Care & Health,Independent Placements,A56006
Royal Borough of Kingston,29/02/2024,70071113,750.00,Clearway Environmental Services (UK) Ltd,CONSTRUCTION INDUSTRY,Place,Equipment Purchase & Hire,A40050
Royal Borough of Kingston,31/03/2024,70071114,480.00,Clearway Environmental Services (UK) Ltd,CONSTRUCTION INDUSTRY,Place,Equipment Purchase & Hire,A40050
Royal Borough of Kingston,30/04/2024,70071215,"1,450.00",Clearway Environmental Services (UK) Ltd,CONSTRUCTION INDUSTRY,Place,Equipment Purchase & Hire,A40050
Royal Borough of Kingston,30/04/2024,70071220,600.00,Clearway Environmental Services (UK) Ltd,CONSTRUCTION INDUSTRY,Place,Equipment Purchase & Hire,A40050
Royal Borough of Kingston,02/04/2024,70070560,"9,000.00",CLEMENTS ENVIRONMENTAL SERVICES LTD,PEST CONTROL SERVICES,Place,Other Private Contractors - Third Party,A56080
Royal Borough of Kingston,18/03/2024,70071168,"6,823.00",Clemlec Group Ltd,SUNDRY SUPPLIER - HOUSING,Place,Grants Given For Capital Purposes,C20004
Royal Borough of Kingston,19/04/2024,70070111,"1,994.00",Clemlec Group Ltd,SUNDRY SUPPLIER - HOUSING,Place,Grants Given For Capital Purposes,C20004
Royal Borough of Kingston,01/05/2024,90334927,"6,632.85",CLIA Care Ltd,ACCOMMODATION - OTHER,Adult Social Care & Health,Personal Budget - Third Party,A61019
Royal Borough of Kingston,13/05/2024,70071264,"3,023.00",CLICKON IT LONDON LTD,IT EQUIPMENT MAINTENANCE,Corporate & Communities,IT Hardware Purchase,A45005
Royal Borough of Kingston,13/05/2024,70071279,"5,250.97",CLICKON IT LONDON LTD,IT EQUIPMENT MAINTENANCE,Corporate & Communities,IT Hardware Purchase,A45005
Royal Borough of Kingston,13/05/2024,70071288,"3,351.35",CLICKON IT LONDON LTD,IT EQUIPMENT MAINTENANCE,Corporate & Communities,IT Hardware Purchase,A45005
Royal Borough of Kingston,24/05/2024,90335543,"1,094.00",CLIFFE &  ROCHFORD,PLS LANDLORDS,Place,PSL Payments To Landlords,A22031
Royal Borough of Kingston,24/05/2024,90335378,"1,435.50",CLIQUE 187 LTD,PLS LANDLORDS,Place,PSL Payments To Landlords,A22031
Royal Borough of Kingston,20/05/2024,70071596,"64,472.00",CLOUD TECHNOLOGY SOLUTIONS LTD,BUSINESS & COMPUTER SYSTEMS,Corporate & Communities,IT Software Maintenance,A45045
Royal Borough of Kingston,01/05/2024,90334498,"6,191.14",CM CARE LTD,SOCIAL SERVICES RESIDENTIAL,Adult Social Care & Health,S-L non - framework - other support,A56159
Royal Borough of Kingston,01/05/2024,90334499,"12,647.69",CM CARE LTD,SOCIAL SERVICES RESIDENTIAL,Adult Social Care & Health,S-L non - framework - other support,A56159
Royal Borough of Kingston,01/05/2024,90334500,"5,499.27",CM CARE LTD,SOCIAL SERVICES RESIDENTIAL,Adult Social Care & Health,S-L non - framework - other support,A56159
Royal Borough of Kingston,01/05/2024,90334502,"5,203.57",CM CARE LTD,SOCIAL SERVICES RESIDENTIAL,Adult Social Care & Health,S-L non - framework - other support,A56159
Royal Borough of Kingston,01/05/2024,90334745,"5,810.73",CMG LIMITED,SOCIAL SERVICES - OTHER,Adult Social Care & Health,Personal Budget - Third Party,A61019
Royal Borough of Kingston,01/05/2024,90334746,"5,776.27",CMG LIMITED,SOCIAL SERVICES - OTHER,Adult Social Care & Health,Personal Budget - Third Party,A61019
Royal Borough of Kingston,01/05/2024,90334751,"6,342.56",CMG LIMITED,SOCIAL SERVICES - OTHER,Adult Social Care & Health,Personal Budget - Third Party,A61019
Royal Borough of Kingston,01/05/2024,90334805,976.77,CMG LIMITED,SOCIAL SERVICES - OTHER,Adult Social Care & Health,Personal Budget - Third Party,A61019
Royal Borough of Kingston,01/05/2024,90334806,"4,219.99",CMG LIMITED,SOCIAL SERVICES - OTHER,Adult Social Care & Health,Personal Budget - Third Party,A61019
Royal Borough of Kingston,01/05/2024,90334880,"5,033.96",CMG LIMITED,SOCIAL SERVICES - OTHER,Adult Social Care & Health,Personal Budget - Third Party,A61019
Royal Borough of Kingston,15/04/2024,90329235,595.60,CN Healthcare,SOCIAL SERVICES - OTHER,Adult Social Care & Health,Homecare - new framework,A56127
Royal Borough of Kingston,15/04/2024,90329274,661.78,CN Healthcare,SOCIAL SERVICES - OTHER,Adult Social Care & Health,Homecare - new framework,A56127
Royal Borough of Kingston,15/04/2024,90329381,727.96,CN Healthcare,SOCIAL SERVICES - OTHER,Adult Social Care & Health,Homecare - new framework,A56127
Royal Borough of Kingston,15/04/2024,90329495,529.43,CN Healthcare,SOCIAL SERVICES - OTHER,Adult Social Care & Health,Homecare - Framework - double-handed,A56131
Royal Borough of Kingston,15/04/2024,90329579,529.42,CN Healthcare,SOCIAL SERVICES - OTHER,Adult Social Care & Health,Homecare - Framework - single - handed,A56132
Royal Borough of Kingston,15/04/2024,90329700,595.60,CN Healthcare,SOCIAL SERVICES - OTHER,Adult Social Care & Health,Homecare - Framework - D2A,A56133
Royal Borough of Kingston,15/04/2024,90329726,661.78,CN Healthcare,SOCIAL SERVICES - OTHER,Adult Social Care & Health,Homecare - Framework - D2A,A56133
Royal Borough of Kingston,15/04/2024,90329736,661.85,CN Healthcare,SOCIAL SERVICES - OTHER,Adult Social Care & Health,Homecare - Framework - D2A,A56133
Royal Borough of Kingston,22/04/2024,90332168,595.60,CN Healthcare,SOCIAL SERVICES - OTHER,Adult Social Care & Health,Homecare - new framework,A56127
Royal Borough of Kingston,22/04/2024,90332303,727.96,CN Healthcare,SOCIAL SERVICES - OTHER,Adult Social Care & Health,Homecare - new framework,A56127
Royal Borough of Kingston,22/04/2024,90332418,529.43,CN Healthcare,SOCIAL SERVICES - OTHER,Adult Social Care & Health,Homecare - Framework - double-handed,A56131
Royal Borough of Kingston,22/04/2024,90332513,529.42,CN Healthcare,SOCIAL SERVICES - OTHER,Adult Social Care & Health,Homecare - Framework - single - handed,A56132
Royal Borough of Kingston,22/04/2024,90332636,595.60,CN Healthcare,SOCIAL SERVICES - OTHER,Adult Social Care & Health,Homecare - Framework - D2A,A56133
Royal Borough of Kingston,22/04/2024,90332649,926.49,CN Healthcare,SOCIAL SERVICES - OTHER,Adult Social Care & Health,Homecare - Framework - D2A,A56133
Royal Borough of Kingston,22/04/2024,90332655,661.85,CN Healthcare,SOCIAL SERVICES - OTHER,Adult Social Care & Health,Homecare - Framework - D2A,A56133
Royal Borough of Kingston,29/04/2024,90332997,595.60,CN Healthcare,SOCIAL SERVICES - OTHER,Adult Social Care & Health,Homecare - new framework,A56127
Royal Borough of Kingston,29/04/2024,90333147,727.96,CN Healthcare,SOCIAL SERVICES - OTHER,Adult Social Care & Health,Homecare - new framework,A56127
Royal Borough of Kingston,29/04/2024,90333290,529.43,CN Healthcare,SOCIAL SERVICES - OTHER,Adult Social Care & Health,Homecare - Framework - double-handed,A56131
Royal Borough of Kingston,29/04/2024,90333428,529.42,CN Healthcare,SOCIAL SERVICES - OTHER,Adult Social Care & Health,Homecare - Framework - single - handed,A56132
Royal Borough of Kingston,29/04/2024,90333558,595.60,CN Healthcare,SOCIAL SERVICES - OTHER,Adult Social Care & Health,Homecare - Framework - D2A,A56133
Royal Borough of Kingston,29/04/2024,90333571,"1,058.85",CN Healthcare,SOCIAL SERVICES - OTHER,Adult Social Care & Health,Homecare - Framework - D2A,A56133
Royal Borough of Kingston,29/04/2024,90333579,661.85,CN Healthcare,SOCIAL SERVICES - OTHER,Adult Social Care & Health,Homecare - Framework - D2A,A56133
Royal Borough of Kingston,06/05/2024,90335903,595.60,CN Healthcare,SOCIAL SERVICES - OTHER,Adult Social Care & Health,Homecare - new framework,A56127
Royal Borough of Kingston,06/05/2024,90335935,661.78,CN Healthcare,SOCIAL SERVICES - OTHER,Adult Social Care & Health,Homecare - new framework,A56127
Royal Borough of Kingston,06/05/2024,90336032,727.96,CN Healthcare,SOCIAL SERVICES - OTHER,Adult Social Care & Health,Homecare - new framework,A56127
Royal Borough of Kingston,06/05/2024,90336112,529.43,CN Healthcare,SOCIAL SERVICES - OTHER,Adult Social Care & Health,Homecare - Framework - double-handed,A56131
Royal Borough of Kingston,06/05/2024,90336137,529.43,CN Healthcare,SOCIAL SERVICES - OTHER,Adult Social Care & Health,Homecare - Framework - double-handed,A56131
Royal Borough of Kingston,06/05/2024,90336242,529.42,CN Healthcare,SOCIAL SERVICES - OTHER,Adult Social Care & Health,Homecare - Framework - single - handed,A56132
Royal Borough of Kingston,06/05/2024,90336365,595.60,CN Healthcare,SOCIAL SERVICES - OTHER,Adult Social Care & Health,Homecare - Framework - D2A,A56133
Royal Borough of Kingston,06/05/2024,90336378,"1,058.85",CN Healthcare,SOCIAL SERVICES - OTHER,Adult Social Care & Health,Homecare - Framework - D2A,A56133
Royal Borough of Kingston,06/05/2024,90336382,661.85,CN Healthcare,SOCIAL SERVICES - OTHER,Adult Social Care & Health,Homecare - Framework - D2A,A56133
Royal Borough of Kingston,24/05/2024,90335414,"1,215.00",REDACTED - PERSONAL DATA,PLS LANDLORDS,Place,PSL Payments To Landlords,A22031
Royal Borough of Kingston,24/05/2024,90335433,"1,094.00",REDACTED - PERSONAL DATA,PLS LANDLORDS,Place,PSL Payments To Landlords,A22031
Royal Borough of Kingston,30/05/2024,70070753,514.39,COMETT LIMITED,ENTERTAINMENTS INDUSTRY,Adult Social Care & Health,Consultancy Services - Other,A44065
Royal Borough of Kingston,31/05/2024,70071770,584.59,COMETT LIMITED,ENTERTAINMENTS INDUSTRY,Adult Social Care & Health,Consultancy Services - Other,A44065
Royal Borough of Kingston,01/05/2024,90333971,"1,482.19",COMFORT CARE SERVICES UK LTD,SOCIAL SERVICES-HOME CARE,Adult Social Care & Health,Supported Living - new framework,A56126
Royal Borough of Kingston,01/05/2024,90333972,"3,163.98",COMFORT CARE SERVICES UK LTD,SOCIAL SERVICES-HOME CARE,Adult Social Care & Health,Supported Living - new framework,A56126
Royal Borough of Kingston,01/05/2024,90333976,"2,937.87",COMFORT CARE SERVICES UK LTD,SOCIAL SERVICES-HOME CARE,Adult Social Care & Health,Supported Living - new framework,A56126
Royal Borough of Kingston,01/05/2024,90333978,"1,843.84",COMFORT CARE SERVICES UK LTD,SOCIAL SERVICES-HOME CARE,Adult Social Care & Health,Supported Living - new framework,A56126
Royal Borough of Kingston,01/05/2024,90333979,921.92,COMFORT CARE SERVICES UK LTD,SOCIAL SERVICES-HOME CARE,Adult Social Care & Health,Supported Living - new framework,A56126
Royal Borough of Kingston,01/05/2024,90333981,"1,843.84",COMFORT CARE SERVICES UK LTD,SOCIAL SERVICES-HOME CARE,Adult Social Care & Health,Supported Living - new framework,A56126
Royal Borough of Kingston,01/05/2024,90333982,921.92,COMFORT CARE SERVICES UK LTD,SOCIAL SERVICES-HOME CARE,Adult Social Care & Health,Supported Living - new framework,A56126
Royal Borough of Kingston,01/05/2024,90334136,"1,976.25",COMFORT CARE SERVICES UK LTD,SOCIAL SERVICES-HOME CARE,Adult Social Care & Health,Supported Living - new framework,A56126
Royal Borough of Kingston,01/05/2024,90334137,790.50,COMFORT CARE SERVICES UK LTD,SOCIAL SERVICES-HOME CARE,Adult Social Care & Health,Supported Living - new framework,A56126
Royal Borough of Kingston,01/05/2024,90334139,933.72,COMFORT CARE SERVICES UK LTD,SOCIAL SERVICES-HOME CARE,Adult Social Care & Health,Supported Living - new framework,A56126
Royal Borough of Kingston,01/05/2024,90334141,"1,843.84",COMFORT CARE SERVICES UK LTD,SOCIAL SERVICES-HOME CARE,Adult Social Care & Health,Supported Living - new framework,A56126
Royal Borough of Kingston,01/05/2024,90334142,921.92,COMFORT CARE SERVICES UK LTD,SOCIAL SERVICES-HOME CARE,Adult Social Care & Health,Supported Living - new framework,A56126
Royal Borough of Kingston,01/05/2024,90334143,592.81,COMFORT CARE SERVICES UK LTD,SOCIAL SERVICES-HOME CARE,Adult Social Care & Health,Supported Living - new framework,A56126
Royal Borough of Kingston,01/05/2024,90334144,"1,185.75",COMFORT CARE SERVICES UK LTD,SOCIAL SERVICES-HOME CARE,Adult Social Care & Health,Supported Living - new framework,A56126
Royal Borough of Kingston,01/05/2024,90334148,"1,843.84",COMFORT CARE SERVICES UK LTD,SOCIAL SERVICES-HOME CARE,Adult Social Care & Health,Supported Living - new framework,A56126
Royal Borough of Kingston,01/05/2024,90334149,921.92,COMFORT CARE SERVICES UK LTD,SOCIAL SERVICES-HOME CARE,Adult Social Care & Health,Supported Living - new framework,A56126
Royal Borough of Kingston,01/05/2024,90334151,"2,213.40",COMFORT CARE SERVICES UK LTD,SOCIAL SERVICES-HOME CARE,Adult Social Care & Health,Supported Living - new framework,A56126
Royal Borough of Kingston,01/05/2024,90334152,553.35,COMFORT CARE SERVICES UK LTD,SOCIAL SERVICES-HOME CARE,Adult Social Care & Health,Supported Living - new framework,A56126
Royal Borough of Kingston,01/05/2024,90334154,"1,843.84",COMFORT CARE SERVICES UK LTD,SOCIAL SERVICES-HOME CARE,Adult Social Care & Health,Supported Living - new framework,A56126
Royal Borough of Kingston,01/05/2024,90334155,921.92,COMFORT CARE SERVICES UK LTD,SOCIAL SERVICES-HOME CARE,Adult Social Care & Health,Supported Living - new framework,A56126
Royal Borough of Kingston,01/05/2024,90334158,883.50,COMFORT CARE SERVICES UK LTD,SOCIAL SERVICES-HOME CARE,Adult Social Care & Health,Supported Living - new framework,A56126
Royal Borough of Kingston,01/05/2024,90334159,"2,213.40",COMFORT CARE SERVICES UK LTD,SOCIAL SERVICES-HOME CARE,Adult Social Care & Health,Supported Living - new framework,A56126
Royal Borough of Kingston,01/05/2024,90334160,553.35,COMFORT CARE SERVICES UK LTD,SOCIAL SERVICES-HOME CARE,Adult Social Care & Health,Supported Living - new framework,A56126
Royal Borough of Kingston,01/05/2024,90334162,933.72,COMFORT CARE SERVICES UK LTD,SOCIAL SERVICES-HOME CARE,Adult Social Care & Health,Supported Living - new framework,A56126
Royal Borough of Kingston,01/05/2024,90334164,-713.75,COMFORT CARE SERVICES UK LTD,SOCIAL SERVICES-HOME CARE,Adult Social Care & Health,Supported Living - new framework,A56126
Royal Borough of Kingston,01/05/2024,90334167,"1,843.84",COMFORT CARE SERVICES UK LTD,SOCIAL SERVICES-HOME CARE,Adult Social Care & Health,Supported Living - new framework,A56126
Royal Borough of Kingston,01/05/2024,90334168,921.92,COMFORT CARE SERVICES UK LTD,SOCIAL SERVICES-HOME CARE,Adult Social Care & Health,Supported Living - new framework,A56126
Royal Borough of Kingston,01/05/2024,90334170,"1,843.84",COMFORT CARE SERVICES UK LTD,SOCIAL SERVICES-HOME CARE,Adult Social Care & Health,Supported Living - new framework,A56126
Royal Borough of Kingston,01/05/2024,90334171,921.92,COMFORT CARE SERVICES UK LTD,SOCIAL SERVICES-HOME CARE,Adult Social Care & Health,Supported Living - new framework,A56126
Royal Borough of Kingston,01/05/2024,90334173,"1,843.84",COMFORT CARE SERVICES UK LTD,SOCIAL SERVICES-HOME CARE,Adult Social Care & Health,Supported Living - new framework,A56126
Royal Borough of Kingston,01/05/2024,90334174,921.92,COMFORT CARE SERVICES UK LTD,SOCIAL SERVICES-HOME CARE,Adult Social Care & Health,Supported Living - new framework,A56126
Royal Borough of Kingston,01/05/2024,90334179,"1,843.84",COMFORT CARE SERVICES UK LTD,SOCIAL SERVICES-HOME CARE,Adult Social Care & Health,Supported Living - new framework,A56126
Royal Borough of Kingston,01/05/2024,90334180,921.92,COMFORT CARE SERVICES UK LTD,SOCIAL SERVICES-HOME CARE,Adult Social Care & Health,Supported Living - new framework,A56126
Royal Borough of Kingston,01/05/2024,90334182,"2,213.40",COMFORT CARE SERVICES UK LTD,SOCIAL SERVICES-HOME CARE,Adult Social Care & Health,Supported Living - new framework,A56126
Royal Borough of Kingston,01/05/2024,90334183,553.35,COMFORT CARE SERVICES UK LTD,SOCIAL SERVICES-HOME CARE,Adult Social Care & Health,Supported Living - new framework,A56126
Royal Borough of Kingston,01/05/2024,90334185,"2,213.40",COMFORT CARE SERVICES UK LTD,SOCIAL SERVICES-HOME CARE,Adult Social Care & Health,Supported Living - new framework,A56126
Royal Borough of Kingston,01/05/2024,90334186,553.35,COMFORT CARE SERVICES UK LTD,SOCIAL SERVICES-HOME CARE,Adult Social Care & Health,Supported Living - new framework,A56126
Royal Borough of Kingston,01/05/2024,90334188,592.81,COMFORT CARE SERVICES UK LTD,SOCIAL SERVICES-HOME CARE,Adult Social Care & Health,Supported Living - new framework,A56126
Royal Borough of Kingston,01/05/2024,90334189,"1,185.75",COMFORT CARE SERVICES UK LTD,SOCIAL SERVICES-HOME CARE,Adult Social Care & Health,Supported Living - new framework,A56126
Royal Borough of Kingston,01/05/2024,90334194,"1,843.84",COMFORT CARE SERVICES UK LTD,SOCIAL SERVICES-HOME CARE,Adult Social Care & Health,Supported Living - new framework,A56126
Royal Borough of Kingston,01/05/2024,90334195,921.92,COMFORT CARE SERVICES UK LTD,SOCIAL SERVICES-HOME CARE,Adult Social Care & Health,Supported Living - new framework,A56126
Royal Borough of Kingston,01/05/2024,90334198,"1,843.84",COMFORT CARE SERVICES UK LTD,SOCIAL SERVICES-HOME CARE,Adult Social Care & Health,Supported Living - new framework,A56126
Royal Borough of Kingston,01/05/2024,90334199,921.92,COMFORT CARE SERVICES UK LTD,SOCIAL SERVICES-HOME CARE,Adult Social Care & Health,Supported Living - new framework,A56126
Royal Borough of Kingston,01/05/2024,90334472,501.97,COMFORT CARE SERVICES UK LTD,SOCIAL SERVICES-HOME CARE,Adult Social Care & Health,S-L framework - Accom - Day hours,A56156
Royal Borough of Kingston,01/05/2024,90334473,"3,112.22",COMFORT CARE SERVICES UK LTD,SOCIAL SERVICES-HOME CARE,Adult Social Care & Health,S-L framework - Accom - Day hours,A56156
Royal Borough of Kingston,01/05/2024,90334505,582.63,COMFORT CARE SERVICES UK LTD,SOCIAL SERVICES-HOME CARE,Adult Social Care & Health,S-L non - framework - Managed Service - S - L,A56162
Royal Borough of Kingston,01/05/2024,90334506,"1,344.54",COMFORT CARE SERVICES UK LTD,SOCIAL SERVICES-HOME CARE,Adult Social Care & Health,S-L non - framework - Managed Service - S - L,A56162
Royal Borough of Kingston,01/05/2024,90334507,"1,389.35",COMFORT CARE SERVICES UK LTD,SOCIAL SERVICES-HOME CARE,Adult Social Care & Health,S-L non - framework - Managed Service - S - L,A56162
Royal Borough of Kingston,01/05/2024,90334519,"3,110.01",COMFORT CARE SERVICES UK LTD,SOCIAL SERVICES-HOME CARE,Adult Social Care & Health,S-L non - framework - Managed Service - S - L,A56162
Royal Borough of Kingston,01/05/2024,90334521,"2,032.71",COMFORT CARE SERVICES UK LTD,SOCIAL SERVICES-HOME CARE,Adult Social Care & Health,S-L non - framework - Managed Service - S - L,A56162
Royal Borough of Kingston,01/05/2024,90334683,"1,132.00",COMFORT CARE SERVICES UK LTD,SOCIAL SERVICES-HOME CARE,Adult Social Care & Health,Personal Budget - Third Party,A61019
Royal Borough of Kingston,01/05/2024,90334684,"4,509.52",COMFORT CARE SERVICES UK LTD,SOCIAL SERVICES-HOME CARE,Adult Social Care & Health,Personal Budget - Third Party,A61019
Royal Borough of Kingston,01/05/2024,90334686,"1,095.17",COMFORT CARE SERVICES UK LTD,SOCIAL SERVICES-HOME CARE,Adult Social Care & Health,Personal Budget - Third Party,A61019
Royal Borough of Kingston,01/05/2024,90334688,966.32,COMFORT CARE SERVICES UK LTD,SOCIAL SERVICES-HOME CARE,Adult Social Care & Health,Personal Budget - Third Party,A61019
Royal Borough of Kingston,01/05/2024,90334689,"4,509.52",COMFORT CARE SERVICES UK LTD,SOCIAL SERVICES-HOME CARE,Adult Social Care & Health,Personal Budget - Third Party,A61019
Royal Borough of Kingston,01/05/2024,90334691,"1,095.17",COMFORT CARE SERVICES UK LTD,SOCIAL SERVICES-HOME CARE,Adult Social Care & Health,Personal Budget - Third Party,A61019
Royal Borough of Kingston,01/05/2024,90334697,"1,132.00",COMFORT CARE SERVICES UK LTD,SOCIAL SERVICES-HOME CARE,Adult Social Care & Health,Personal Budget - Third Party,A61019
Royal Borough of Kingston,01/05/2024,90334698,"4,509.52",COMFORT CARE SERVICES UK LTD,SOCIAL SERVICES-HOME CARE,Adult Social Care & Health,Personal Budget - Third Party,A61019
Royal Borough of Kingston,01/05/2024,90334700,"1,095.17",COMFORT CARE SERVICES UK LTD,SOCIAL SERVICES-HOME CARE,Adult Social Care & Health,Personal Budget - Third Party,A61019
Royal Borough of Kingston,01/05/2024,90334808,"1,490.93",COMFORT CARE SERVICES UK LTD,SOCIAL SERVICES-HOME CARE,Adult Social Care & Health,Personal Budget - Third Party,A61019
Royal Borough of Kingston,01/05/2024,90334809,"4,509.52",COMFORT CARE SERVICES UK LTD,SOCIAL SERVICES-HOME CARE,Adult Social Care & Health,Personal Budget - Third Party,A61019
Royal Borough of Kingston,01/05/2024,90334811,"1,095.17",COMFORT CARE SERVICES UK LTD,SOCIAL SERVICES-HOME CARE,Adult Social Care & Health,Personal Budget - Third Party,A61019
Royal Borough of Kingston,01/05/2024,90334832,"1,518.50",COMFORT CARE SERVICES UK LTD,SOCIAL SERVICES-HOME CARE,Adult Social Care & Health,Personal Budget - Third Party,A61019
Royal Borough of Kingston,01/05/2024,90334833,"4,509.52",COMFORT CARE SERVICES UK LTD,SOCIAL SERVICES-HOME CARE,Adult Social Care & Health,Personal Budget - Third Party,A61019
Royal Borough of Kingston,01/05/2024,90334835,"1,095.17",COMFORT CARE SERVICES UK LTD,SOCIAL SERVICES-HOME CARE,Adult Social Care & Health,Personal Budget - Third Party,A61019
Royal Borough of Kingston,01/05/2024,90334842,"1,601.32",COMFORT CARE SERVICES UK LTD,SOCIAL SERVICES-HOME CARE,Adult Social Care & Health,Personal Budget - Third Party,A61019
Royal Borough of Kingston,01/05/2024,90334843,"4,509.52",COMFORT CARE SERVICES UK LTD,SOCIAL SERVICES-HOME CARE,Adult Social Care & Health,Personal Budget - Third Party,A61019
Royal Borough of Kingston,01/05/2024,90334845,"1,095.17",COMFORT CARE SERVICES UK LTD,SOCIAL SERVICES-HOME CARE,Adult Social Care & Health,Personal Budget - Third Party,A61019
Royal Borough of Kingston,01/05/2024,90334911,"3,084.77",COMFORT CARE SERVICES UK LTD,SOCIAL SERVICES-HOME CARE,Adult Social Care & Health,Personal Budget - Third Party,A61019
Royal Borough of Kingston,24/05/2024,90335695,842.00,REDACTED - PERSONAL DATA,PLS LANDLORDS,Place,PSL Payments To Landlords,A22031
Royal Borough of Kingston,02/05/2024,90328160,"5,528.00",COOMBE ACADEMY TRUST,SCHOOL FUNDS,Schools,Miscellaneous Expenses,A49000
Royal Borough of Kingston,02/05/2024,90328174,"5,528.00",COOMBE ACADEMY TRUST,SCHOOL FUNDS,Schools,Miscellaneous Expenses,A49000
Royal Borough of Kingston,03/05/2024,90328223,"1,306.81",COOMBE ACADEMY TRUST,SCHOOL FUNDS,Schools,Miscellaneous Expenses,A49000
Royal Borough of Kingston,09/05/2024,90330759,"7,875.00",COOMBE ACADEMY TRUST,SCHOOL FUNDS,Schools,Miscellaneous Expenses,A49000
Royal Borough of Kingston,23/05/2024,90334964,"5,203.00",COOMBE ACADEMY TRUST,SCHOOL FUNDS,Schools,Miscellaneous Expenses,A49000
Royal Borough of Kingston,12/04/2024,70069713,500.00,Coombe Boys School,SCHOOL FUNDS,Corporate & Communities,"Grants, Contributions & Donations",A47005
Royal Borough of Kingston,23/05/2024,90334968,"4,167.00",COOMBE GIRLS SCHOOL,SCHOOL FUNDS,Schools,Miscellaneous Expenses,A49000
Royal Borough of Kingston,02/05/2024,90328136,"119,812.44",COOMBE HILL INFANTS SCHOOL,SCHOOL FUNDS,Schools,Miscellaneous Expenses,A49000
Royal Borough of Kingston,02/05/2024,90328137,"158,112.72",COOMBE HILL JUNIOR SCHOOL,SCHOOL FUNDS,Schools,Miscellaneous Expenses,A49000
Royal Borough of Kingston,05/04/2024,70068947,793.33,CORPUS CHRISTI CATHOLIC PRIMARY SCHOOL ,SCHOOL FUNDS,Childrens Services,MSF Claims Support Staff - Internal Trading,A46108
Royal Borough of Kingston,02/05/2024,90328138,"160,593.88",CORPUS CHRISTI CATHOLIC PRIMARY SCHOOL ,SCHOOL FUNDS,Schools,Miscellaneous Expenses,A49000
Royal Borough of Kingston,02/05/2024,90328163,"2,500.00",CORPUS CHRISTI CATHOLIC PRIMARY SCHOOL ,SCHOOL FUNDS,Schools,Miscellaneous Expenses,A49000
Royal Borough of Kingston,02/05/2024,90328177,"2,500.00",CORPUS CHRISTI CATHOLIC PRIMARY SCHOOL ,SCHOOL FUNDS,Schools,Miscellaneous Expenses,A49000
Royal Borough of Kingston,09/05/2024,90330749,"10,406.25",CORPUS CHRISTI CATHOLIC PRIMARY SCHOOL ,SCHOOL FUNDS,Schools,Miscellaneous Expenses,A49000
Royal Borough of Kingston,23/05/2024,90334967,"2,500.00",CORPUS CHRISTI CATHOLIC PRIMARY SCHOOL ,SCHOOL FUNDS,Schools,Miscellaneous Expenses,A49000
Royal Borough of Kingston,01/05/2024,90329064,"3,825.00",COUNTRY COURT CARE HOMES 2 LTD,SOCIAL SERVICES RESIDENTIAL,Adult Social Care & Health,Independent Placements,A56006
Royal Borough of Kingston,01/05/2024,90329065,"-3,642.86",COUNTRY COURT CARE HOMES 2 LTD,SOCIAL SERVICES RESIDENTIAL,Adult Social Care & Health,Independent Placements,A56006
Royal Borough of Kingston,01/05/2024,90329066,"3,952.50",COUNTRY COURT CARE HOMES 2 LTD,SOCIAL SERVICES RESIDENTIAL,Adult Social Care & Health,Independent Placements,A56006
Royal Borough of Kingston,01/05/2024,90329067,"-3,764.29",COUNTRY COURT CARE HOMES 2 LTD,SOCIAL SERVICES RESIDENTIAL,Adult Social Care & Health,Independent Placements,A56006
Royal Borough of Kingston,01/05/2024,90329068,"3,825.00",COUNTRY COURT CARE HOMES 2 LTD,SOCIAL SERVICES RESIDENTIAL,Adult Social Care & Health,Independent Placements,A56006
Royal Borough of Kingston,01/05/2024,90329069,"-3,642.86",COUNTRY COURT CARE HOMES 2 LTD,SOCIAL SERVICES RESIDENTIAL,Adult Social Care & Health,Independent Placements,A56006
Royal Borough of Kingston,01/05/2024,90329070,"3,952.50",COUNTRY COURT CARE HOMES 2 LTD,SOCIAL SERVICES RESIDENTIAL,Adult Social Care & Health,Independent Placements,A56006
Royal Borough of Kingston,01/05/2024,90329071,"-3,764.29",COUNTRY COURT CARE HOMES 2 LTD,SOCIAL SERVICES RESIDENTIAL,Adult Social Care & Health,Independent Placements,A56006
Royal Borough of Kingston,01/05/2024,90329072,"3,952.50",COUNTRY COURT CARE HOMES 2 LTD,SOCIAL SERVICES RESIDENTIAL,Adult Social Care & Health,Independent Placements,A56006
Royal Borough of Kingston,01/05/2024,90329073,"-3,764.29",COUNTRY COURT CARE HOMES 2 LTD,SOCIAL SERVICES RESIDENTIAL,Adult Social Care & Health,Independent Placements,A56006
Royal Borough of Kingston,01/05/2024,90329074,"3,825.00",COUNTRY COURT CARE HOMES 2 LTD,SOCIAL SERVICES RESIDENTIAL,Adult Social Care & Health,Independent Placements,A56006
Royal Borough of Kingston,01/05/2024,90329075,"-3,642.86",COUNTRY COURT CARE HOMES 2 LTD,SOCIAL SERVICES RESIDENTIAL,Adult Social Care & Health,Independent Placements,A56006
Royal Borough of Kingston,01/05/2024,90329076,"3,952.50",COUNTRY COURT CARE HOMES 2 LTD,SOCIAL SERVICES RESIDENTIAL,Adult Social Care & Health,Independent Placements,A56006
Royal Borough of Kingston,01/05/2024,90329077,"-3,764.29",COUNTRY COURT CARE HOMES 2 LTD,SOCIAL SERVICES RESIDENTIAL,Adult Social Care & Health,Independent Placements,A56006
Royal Borough of Kingston,01/05/2024,90329078,"3,825.00",COUNTRY COURT CARE HOMES 2 LTD,SOCIAL SERVICES RESIDENTIAL,Adult Social Care & Health,Independent Placements,A56006
Royal Borough of Kingston,01/05/2024,90329079,"-3,642.86",COUNTRY COURT CARE HOMES 2 LTD,SOCIAL SERVICES RESIDENTIAL,Adult Social Care & Health,Independent Placements,A56006
Royal Borough of Kingston,01/05/2024,90329080,"3,952.50",COUNTRY COURT CARE HOMES 2 LTD,SOCIAL SERVICES RESIDENTIAL,Adult Social Care & Health,Independent Placements,A56006
Royal Borough of Kingston,01/05/2024,90329081,"-3,764.29",COUNTRY COURT CARE HOMES 2 LTD,SOCIAL SERVICES RESIDENTIAL,Adult Social Care & Health,Independent Placements,A56006
Royal Borough of Kingston,01/05/2024,90329082,"3,952.50",COUNTRY COURT CARE HOMES 2 LTD,SOCIAL SERVICES RESIDENTIAL,Adult Social Care & Health,Independent Placements,A56006
Royal Borough of Kingston,01/05/2024,90329083,"-3,764.29",COUNTRY COURT CARE HOMES 2 LTD,SOCIAL SERVICES RESIDENTIAL,Adult Social Care & Health,Independent Placements,A56006
Royal Borough of Kingston,01/05/2024,90329084,"3,697.50",COUNTRY COURT CARE HOMES 2 LTD,SOCIAL SERVICES RESIDENTIAL,Adult Social Care & Health,Independent Placements,A56006
Royal Borough of Kingston,01/05/2024,90329085,"-3,521.43",COUNTRY COURT CARE HOMES 2 LTD,SOCIAL SERVICES RESIDENTIAL,Adult Social Care & Health,Independent Placements,A56006
Royal Borough of Kingston,01/05/2024,90329086,"3,952.50",COUNTRY COURT CARE HOMES 2 LTD,SOCIAL SERVICES RESIDENTIAL,Adult Social Care & Health,Independent Placements,A56006
Royal Borough of Kingston,01/05/2024,90329087,"-3,764.29",COUNTRY COURT CARE HOMES 2 LTD,SOCIAL SERVICES RESIDENTIAL,Adult Social Care & Health,Independent Placements,A56006
Royal Borough of Kingston,01/05/2024,90329088,"3,825.00",COUNTRY COURT CARE HOMES 2 LTD,SOCIAL SERVICES RESIDENTIAL,Adult Social Care & Health,Independent Placements,A56006
Royal Borough of Kingston,01/05/2024,90329089,"-3,642.86",COUNTRY COURT CARE HOMES 2 LTD,SOCIAL SERVICES RESIDENTIAL,Adult Social Care & Health,Independent Placements,A56006
Royal Borough of Kingston,01/05/2024,90333790,"3,948.03",COUNTRY COURT CARE HOMES 2 LTD,SOCIAL SERVICES RESIDENTIAL,Adult Social Care & Health,Independent Placements,A56006
Royal Borough of Kingston,01/05/2024,90333803,"4,029.69",COUNTRY COURT CARE HOMES 2 LTD,SOCIAL SERVICES RESIDENTIAL,Adult Social Care & Health,Independent Placements,A56006
Royal Borough of Kingston,01/05/2024,90333805,"4,585.65",COUNTRY COURT CARE HOMES 2 LTD,SOCIAL SERVICES RESIDENTIAL,Adult Social Care & Health,Independent Placements,A56006
Royal Borough of Kingston,01/05/2024,90335107,"4,194.43",COUNTRY COURT CARE HOMES 2 LTD,SOCIAL SERVICES RESIDENTIAL,Adult Social Care & Health,Independent Placements,A56006
Royal Borough of Kingston,01/05/2024,90335134,"-2,782.14",COUNTRY COURT CARE HOMES 2 LTD,SOCIAL SERVICES RESIDENTIAL,Adult Social Care & Health,Independent Placements,A56006
Royal Borough of Kingston,01/05/2024,90335216,"4,539.29",COUNTRY COURT CARE HOMES 2 LTD,SOCIAL SERVICES RESIDENTIAL,Adult Social Care & Health,Independent Placements,A56006
Royal Borough of Kingston,01/05/2024,90335249,"3,952.50",COUNTRY COURT CARE HOMES 2 LTD,SOCIAL SERVICES RESIDENTIAL,Adult Social Care & Health,Independent Placements,A56006
Royal Borough of Kingston,22/04/2024,70071144,"366,613.46",COUNTRYSIDE PROPERTIES (UK) LTD,CONSTRUCTION INDUSTRY,Housing Revenue Account,Payments to Contractors,C14000
Royal Borough of Kingston,08/05/2024,70071145,"78,172.04",COUNTRYSIDE PROPERTIES (UK) LTD,CONSTRUCTION INDUSTRY,Housing Revenue Account,Payments to Contractors,C14000
Royal Borough of Kingston,30/04/2024,70071588,"22,754.47",Countrystyle Recycling Limited,REFUSE COLLECTION / DISPOSAL,Corporate & Communities,Compostables,A56055
Royal Borough of Kingston,01/01/2024,70070834,"13,674.00",County Private Client Ltd,ACCOMMODATION BED & BREAKFAST,Place,Bed & Breakfast,A56000
Royal Borough of Kingston,01/12/2023,70070835,"11,160.00",County Private Client Ltd,ACCOMMODATION BED & BREAKFAST,Place,Bed & Breakfast,A56000
Royal Borough of Kingston,01/03/2024,70070836,"15,938.00",County Private Client Ltd,ACCOMMODATION BED & BREAKFAST,Place,Bed & Breakfast,A56000
Royal Borough of Kingston,01/02/2024,70070837,"15,892.00",County Private Client Ltd,ACCOMMODATION BED & BREAKFAST,Place,Bed & Breakfast,A56000
Royal Borough of Kingston,01/04/2024,70070970,"14,190.00",County Private Client Ltd,ACCOMMODATION BED & BREAKFAST,Place,Bed & Breakfast,A56000
Royal Borough of Kingston,10/04/2024,70069419,"3,308.82",CRAVENCROFT LTD,CONSTRUCTION INDUSTRY,Place,Payments to Contractors,C14000
Royal Borough of Kingston,10/04/2024,70069598,"2,825.65",CRAVENCROFT LTD,CONSTRUCTION INDUSTRY,Place,Payments to Contractors,C14000
Royal Borough of Kingston,27/03/2024,70071080,"1,057.50",CRAVENCROFT LTD,CONSTRUCTION INDUSTRY,Place,Payments to Contractors,C14000
Royal Borough of Kingston,11/05/2024,70071056,"1,548.60",Credence Direct Limited,TEMP STAFF & CONSULTANCY,Adult Social Care & Health,Other Private Contractors - Third Party,A56080
Royal Borough of Kingston,08/05/2024,70070849,"7,156.32",CROMWOOD LIMITED,PLS LANDLORDS,Place,PSL Payments To Landlords,A22031
Royal Borough of Kingston,30/04/2024,70071638,"2,850.00",CROMWOOD LIMITED,PLS LANDLORDS,Place,Bed & Breakfast,A56000
Royal Borough of Kingston,24/05/2024,90335329,"2,090.00",CROMWOOD LIMITED,PLS LANDLORDS,Place,PSL Payments To Landlords,A22031
Royal Borough of Kingston,24/05/2024,90335330,"2,090.00",CROMWOOD LIMITED,PLS LANDLORDS,Place,PSL Payments To Landlords,A22031
Royal Borough of Kingston,24/05/2024,90335331,"2,800.00",CROMWOOD LIMITED,PLS LANDLORDS,Place,PSL Payments To Landlords,A22031
Royal Borough of Kingston,24/05/2024,90335332,"2,090.00",CROMWOOD LIMITED,PLS LANDLORDS,Place,PSL Payments To Landlords,A22031
Royal Borough of Kingston,24/05/2024,90335453,"2,144.08",CROMWOOD LIMITED,PLS LANDLORDS,Place,PSL Payments To Landlords,A22031
Royal Borough of Kingston,30/04/2024,70071197,770.00,CROWN PROMOTIONS & REMOVALS LTD,PREMISES - REMOVALS,Housing Revenue Account,Removal Services,A44075
Royal Borough of Kingston,30/04/2024,70071198,640.00,CROWN PROMOTIONS & REMOVALS LTD,PREMISES - REMOVALS,Housing Revenue Account,Buildings - Project Management,C14003
Royal Borough of Kingston,30/04/2024,70071199,880.00,CROWN PROMOTIONS & REMOVALS LTD,PREMISES - REMOVALS,Housing Revenue Account,Buildings - Project Management,C14003
Royal Borough of Kingston,30/04/2024,70071201,905.00,CROWN PROMOTIONS & REMOVALS LTD,PREMISES - REMOVALS,Place,Removal Services,A44075
Royal Borough of Kingston,30/04/2024,70071203,600.00,CROWN PROMOTIONS & REMOVALS LTD,PREMISES - REMOVALS,Housing Revenue Account,Removal Services,A44075
Royal Borough of Kingston,30/04/2024,70071204,640.00,CROWN PROMOTIONS & REMOVALS LTD,PREMISES - REMOVALS,Housing Revenue Account,Buildings - Project Management,C14003
Royal Borough of Kingston,30/04/2024,70071205,"1,080.00",CROWN PROMOTIONS & REMOVALS LTD,PREMISES - REMOVALS,Place,Removal Services,A44075
Royal Borough of Kingston,11/05/2024,70071089,"250,237.51",CROYDON COUNCIL,CENTRAL & LOCAL GOVERNMENT,Corporate & Communities,Waste Disposal Contract,A56074
Royal Borough of Kingston,01/05/2024,70070984,"10,050.00",CRYSTAL & CO,ACCOMMODATION BED & BREAKFAST,Place,Bed & Breakfast,A56000
Royal Borough of Kingston,01/05/2024,70070984,"16,320.00",CRYSTAL & CO,ACCOMMODATION BED & BREAKFAST,Place,Bed & Breakfast,A56000
Royal Borough of Kingston,09/05/2024,90330753,"9,900.00",KNOLLMEAD PRIMARY SCHOOL,SCHOOL FUNDS,Schools,Miscellaneous Expenses,A49000
Royal Borough of Kingston,30/04/2024,70070869,"1,150.00",CUBE CONTENT GOVERNANCE  LIMITED,TRAINING,Corporate & Communities,Infrastructure Assets - Project Management,C12000
Royal Borough of Kingston,23/04/2024,70070171,442.50,CYCLEHOOP LIMITED,CONSTRUCTION INDUSTRY,Housing Revenue Account,Housing - Key Cutting,A20049
Royal Borough of Kingston,02/05/2024,70070471,120.00,CYCLEHOOP LIMITED,CONSTRUCTION INDUSTRY,Housing Revenue Account,Housing - Key Cutting,A20049
Royal Borough of Kingston,02/05/2024,70070471,322.50,CYCLEHOOP LIMITED,CONSTRUCTION INDUSTRY,Housing Revenue Account,Housing - Key Cutting,A20049
Royal Borough of Kingston,24/05/2024,90335532,"1,421.09",REDACTED - PERSONAL DATA,PLS LANDLORDS,Place,PSL Payments To Landlords,A22031
Royal Borough of Kingston,26/04/2024,70070327,"1,974.00",D & L House Clearance Limited,BUILDING MNTCE - SERVICES,Place,Grants Given For Capital Purposes,C20004
Royal Borough of Kingston,05/05/2024,70070724,"1,989.60",D & L House Clearance Limited,BUILDING MNTCE - SERVICES,Place,Grants Given For Capital Purposes,C20004
Royal Borough of Kingston,11/05/2024,70071143,"1,953.60",D & L House Clearance Limited,BUILDING MNTCE - SERVICES,Place,Grants Given For Capital Purposes,C20004
Royal Borough of Kingston,13/05/2024,70071467,"1,041.60",D & L House Clearance Limited,BUILDING MNTCE - SERVICES,Place,Grants Given For Capital Purposes,C20004
Royal Borough of Kingston,24/05/2024,90335599,"1,321.66",REDACTED - PERSONAL DATA,PLS LANDLORDS,Place,PSL Payments To Landlords,A22031
Royal Borough of Kingston,09/05/2024,90330772,703.13,REDACTED - PERSONAL DATA,ACADEMIC INSTNS - OTHER,Schools,PVI Providers,A60014
Royal Borough of Kingston,01/05/2024,90334920,"5,523.40",Daniels care ltd,SOCIAL SERVICES RESIDENTIAL,Adult Social Care & Health,Personal Budget - Third Party,A61019
Royal Borough of Kingston,01/05/2024,90334518,"2,751.25",Darethealthcare UK Limited,ACCOMMODATION - OTHER,Adult Social Care & Health,S-L non - framework - Managed Service - S - L,A56162
Royal Borough of Kingston,01/05/2024,90334552,"2,878.44",Darethealthcare UK Limited,ACCOMMODATION - OTHER,Adult Social Care & Health,Personal Budget - Third Party,A61019
Royal Borough of Kingston,01/05/2024,90334930,"3,203.85",Darethealthcare UK Limited,ACCOMMODATION - OTHER,Adult Social Care & Health,Personal Budget - Third Party,A61019
Royal Borough of Kingston,19/03/2024,70070911,"1,447.87",DARIBA Design Limited,SUNDRY SUPPLIER - HOUSING,Place,Grants Given For Capital Purposes,C20004
Royal Borough of Kingston,07/05/2024,90328256,500.00,REDACTED - PERSONAL DATA,GRANTS & EX GRATIA PAYMENTS,Adult Social Care & Health,"Grants, Contributions & Donations",A47005
Royal Borough of Kingston,24/05/2024,90335354,"1,314.00",REDACTED - PERSONAL DATA,PLS LANDLORDS,Place,PSL Payments To Landlords,A22031
Royal Borough of Kingston,07/05/2024,90328261,500.00,REDACTED - PERSONAL DATA,CHARITIES & VOLUNTARY ORGNS,Adult Social Care & Health,"Grants, Contributions & Donations",A47005
Royal Borough of Kingston,24/05/2024,90335596,"1,094.00",REDACTED - PERSONAL DATA,PLS LANDLORDS,Place,PSL Payments To Landlords,A22031
Royal Borough of Kingston,24/05/2024,90335689,"1,000.00",REDACTED - PERSONAL DATA,PLS LANDLORDS,Place,PSL Payments To Landlords,A22031
Royal Borough of Kingston,07/05/2024,90328263,500.00,REDACTED - PERSONAL DATA,GRANTS & EX GRATIA PAYMENTS,Adult Social Care & Health,"Grants, Contributions & Donations",A47005
Royal Borough of Kingston,07/05/2024,90328262,550.00,REDACTED - PERSONAL DATA,CHARITIES & VOLUNTARY ORGNS,Adult Social Care & Health,"Grants, Contributions & Donations",A47005
Royal Borough of Kingston,24/05/2024,90335617,"1,094.00",REDACTED - PERSONAL DATA,PLS LANDLORDS,Place,PSL Payments To Landlords,A22031
Royal Borough of Kingston,01/05/2024,70070474,"3,500.00",Delco Safety Limited,TEMP STAFF & CONSULTANCY,Housing Revenue Account,Council Dwellings - Fire Safety,C10004
Royal Borough of Kingston,01/05/2024,70070475,"1,125.00",Delco Safety Limited,TEMP STAFF & CONSULTANCY,Housing Revenue Account,Council Dwellings - Fire Safety,C10004
Royal Borough of Kingston,02/05/2024,70070725,"23,966.00",Delta Wise Limited,ACCOMMODATION BED & BREAKFAST,Place,Bed & Breakfast,A56000
Royal Borough of Kingston,02/05/2024,70070725,"23,030.00",Delta Wise Limited,ACCOMMODATION BED & BREAKFAST,Place,Bed & Breakfast,A56000
Royal Borough of Kingston,01/05/2024,90334366,"5,084.00",Dephinus Healthcare Ltd,ACCOMMODATION - OTHER,Adult Social Care & Health,S-L framework - Accom - nights hours,A56151
Royal Borough of Kingston,01/05/2024,90334501,"6,182.29",Dephinus Healthcare Ltd,ACCOMMODATION - OTHER,Adult Social Care & Health,S-L non - framework - other support,A56159
Royal Borough of Kingston,01/05/2024,90334922,"7,803.32",Dephinus Healthcare Ltd,ACCOMMODATION - OTHER,Adult Social Care & Health,Personal Budget - Third Party,A61019
Royal Borough of Kingston,01/05/2024,90334923,"7,207.50",Dephinus Healthcare Ltd,ACCOMMODATION - OTHER,Adult Social Care & Health,Personal Budget - Third Party,A61019
Royal Borough of Kingston,01/05/2024,90334935,"6,184.94",Dephinus Healthcare Ltd,ACCOMMODATION - OTHER,Adult Social Care & Health,Personal Budget - Third Party,A61019
Royal Borough of Kingston,31/05/2024,90336504,"5,513.57",Dephinus Healthcare Ltd,ACCOMMODATION - OTHER,Adult Social Care & Health,S-L non - framework - Managed Service - S - L,A56162
Royal Borough of Kingston,07/05/2024,90328264,500.00,REDACTED - PERSONAL DATA,GRANTS & EX GRATIA PAYMENTS,Adult Social Care & Health,"Grants, Contributions & Donations",A47005
Royal Borough of Kingston,16/05/2024,70071332,"4,609.10",Design South East,TEMP STAFF & CONSULTANCY,Place,Professional Fees,A44066
Royal Borough of Kingston,17/05/2024,70071334,"4,609.10",Design South East,TEMP STAFF & CONSULTANCY,Place,Professional Fees,A44066
Royal Borough of Kingston,16/05/2024,70071335,"5,988.14",Design South East,TEMP STAFF & CONSULTANCY,Place,Professional Fees,A44066
Royal Borough of Kingston,15/05/2024,70071338,"3,201.69",Design South East,TEMP STAFF & CONSULTANCY,Place,Professional Fees,A44066
Royal Borough of Kingston,15/05/2024,70071342,"3,201.69",Design South East,TEMP STAFF & CONSULTANCY,Place,Professional Fees,A44066
Royal Borough of Kingston,08/05/2024,70070772,"1,150.00",DEXTERS LIMITED,LANDLORDS,Adult Social Care & Health,Building Rents,A22005
Royal Borough of Kingston,24/05/2024,90335349,"1,321.00",REDACTED - PERSONAL DATA,PLS LANDLORDS,Place,PSL Payments To Landlords,A22031
Royal Borough of Kingston,09/05/2024,90330692,"21,760.88",DICKY BIRDS PRE SCHOOL  NURSERIES LTD,ACADEMIC INSTNS - OTHER,Schools,PVI Providers,A60014
Royal Borough of Kingston,09/05/2024,90330719,"17,337.56",DICKY BIRDS PRE SCHOOL  NURSERIES LTD,ACADEMIC INSTNS - OTHER,Schools,PVI Providers,A60014
Royal Borough of Kingston,09/05/2024,90330785,"16,425.00",DICKY BIRDS PRE SCHOOL  NURSERIES LTD,ACADEMIC INSTNS - OTHER,Schools,PVI Providers,A60014
Royal Borough of Kingston,09/05/2024,90330814,"4,860.00",DICKY BIRDS PRE SCHOOL  NURSERIES LTD,ACADEMIC INSTNS - OTHER,Schools,2 Yr Old Place Funding,A60000
Royal Borough of Kingston,09/05/2024,90330839,"13,000.50",DICKY BIRDS PRE SCHOOL  NURSERIES LTD,ACADEMIC INSTNS - OTHER,Schools,2 Yr Old Place Funding,A60000
Royal Borough of Kingston,09/05/2024,90330888,"6,804.00",DICKY BIRDS PRE SCHOOL  NURSERIES LTD,ACADEMIC INSTNS - OTHER,Schools,2 Yr Old Place Funding,A60000
Royal Borough of Kingston,23/05/2024,90334979,910.00,DICKY BIRDS PRE SCHOOL  NURSERIES LTD,ACADEMIC INSTNS - OTHER,Schools,2 Yr Old Place Funding,A60000
Royal Borough of Kingston,07/05/2024,90328265,500.00,REDACTED - PERSONAL DATA,GRANTS & EX GRATIA PAYMENTS,Adult Social Care & Health,"Grants, Contributions & Donations",A47005
Royal Borough of Kingston,24/05/2024,90335667,"1,333.33",REDACTED - PERSONAL DATA,PLS LANDLORDS,Place,PSL Payments To Landlords,A22031
Royal Borough of Kingston,24/05/2024,90335668,"1,000.00",REDACTED - PERSONAL DATA,PLS LANDLORDS,Place,PSL Payments To Landlords,A22031
Royal Borough of Kingston,08/05/2024,70070843,"2,800.00",DOLPHIN MOBILITY LIMITED,CONSTRUCTION INDUSTRY,Place,Grants Given For Capital Purposes,C20004
Royal Borough of Kingston,11/04/2024,70071365,"6,372.00",DOLPHIN MOBILITY LIMITED,CONSTRUCTION INDUSTRY,Place,Grants Given For Capital Purposes,C20004
Royal Borough of Kingston,09/05/2024,90330827,"3,240.00",REDACTED - PERSONAL DATA,ACADEMIC INSTNS - OTHER,Schools,2 Yr Old Place Funding,A60000
Royal Borough of Kingston,03/05/2024,90328199,"1,373.09",DORIS VENNER PRE-SCHOOL,ACADEMIC INSTNS - OTHER,Schools,PVI Providers,A60014
Royal Borough of Kingston,09/05/2024,90330712,"20,503.12",DORIS VENNER PRE-SCHOOL,ACADEMIC INSTNS - OTHER,Schools,PVI Providers,A60014
Royal Borough of Kingston,09/05/2024,90330832,"2,430.00",DORIS VENNER PRE-SCHOOL,ACADEMIC INSTNS - OTHER,Schools,2 Yr Old Place Funding,A60000
Royal Borough of Kingston,23/05/2024,90334977,910.00,DORIS VENNER PRE-SCHOOL,ACADEMIC INSTNS - OTHER,Schools,2 Yr Old Place Funding,A60000
Royal Borough of Kingston,30/04/2024,70070524,"1,578.60",REDACTED - PERSONAL DATA,TEMP STAFF & CONSULTANCY,Adult Social Care & Health,Other Private Contractors - Third Party,A56080
Royal Borough of Kingston,13/05/2024,70071100,"1,065.90",REDACTED - PERSONAL DATA,TEMP STAFF & CONSULTANCY,Adult Social Care & Health,Other Private Contractors - Third Party,A56080
Royal Borough of Kingston,24/05/2024,90335335,"1,314.00",REDACTED - PERSONAL DATA,PLS LANDLORDS,Place,PSL Payments To Landlords,A22031
Royal Borough of Kingston,08/05/2024,70070851,"1,350.00",REDACTED - PERSONAL DATA,PLS LANDLORDS,Place,Compensation (In Lieu Of Works),A20039
Royal Borough of Kingston,24/05/2024,90335627,"1,094.00",REDACTED - PERSONAL DATA,PLS LANDLORDS,Place,PSL Payments To Landlords,A22031
Royal Borough of Kingston,13/05/2024,70071086,"1,100.00",Driscoll Kingston & Co Ltd ,SUNDRY SUPPLIER - FINANCE,Housing Revenue Account,Legal Services,A44025
Royal Borough of Kingston,30/04/2024,70071631,"1,650.00",Dunheved Hotel LTD,ACCOMMODATION BED & BREAKFAST,Place,Bed & Breakfast,A56000
Royal Borough of Kingston,30/04/2024,70070566,"8,361.53",DURADIAMOND HEALTHCARE LIMITED,LEGAL & PROFESSIONAL SERVICES,Corporate & Communities,Other Private Contractors - Third Party,A56080
Royal Borough of Kingston,30/04/2024,70070567,"8,971.90",DURADIAMOND HEALTHCARE LIMITED,LEGAL & PROFESSIONAL SERVICES,Corporate & Communities,Other Private Contractors - Third Party,A56080
Royal Borough of Kingston,09/05/2024,90330698,750.00,REDACTED - PERSONAL DATA,ACADEMIC INSTNS - OTHER,Schools,PVI Providers,A60014
Royal Borough of Kingston,09/05/2024,90330798,"1,406.25",REDACTED - PERSONAL DATA,ACADEMIC INSTNS - OTHER,Schools,PVI Providers,A60014
Royal Borough of Kingston,09/05/2024,70071087,"1,605.56",E.ON Next Energy Ltd,UTILITIES,Place,Electricity,A21000
Royal Borough of Kingston,06/03/2024,70071225,"2,780.24",E.ON Next Energy Ltd,UTILITIES,Place,Electricity,A21000
Royal Borough of Kingston,10/01/2024,70071227,"5,878.16",E.ON Next Energy Ltd,UTILITIES,Place,Electricity,A21000
Royal Borough of Kingston,06/02/2024,70071228,"2,106.09",E.ON Next Energy Ltd,UTILITIES,Place,Electricity,A21000
Royal Borough of Kingston,09/05/2024,70071532,526.50,Eagles Security Services Ltd,ELECTORAL SERVICES,Corporate & Communities,Security Services,A44080
Royal Borough of Kingston,24/05/2024,90335494,"1,094.00",EARLSFIELD PROPERTIES,PLS LANDLORDS,Place,PSL Payments To Landlords,A22031
Royal Borough of Kingston,24/05/2024,90335495,"1,094.00",EARLSFIELD PROPERTIES,PLS LANDLORDS,Place,PSL Payments To Landlords,A22031
Royal Borough of Kingston,24/05/2024,90335714,"1,047.00",EARLSFIELD PROPERTIES,PLS LANDLORDS,Place,PSL Payments To Landlords,A22031
Royal Borough of Kingston,09/04/2024,70071591,973.47,EDF ENERGY CUSTOMER PLC,UTILITIES,Housing Revenue Account,Electricity,A21000
Royal Borough of Kingston,14/05/2024,70071297,"1,950.00",EDGE TRAINING AND CONSULTANCY LTD,TRAINING,Adult Social Care & Health,Staff Development And Training,A15022
Royal Borough of Kingston,09/05/2024,90330733,"1,406.25",EDUCARE SMALL SCHOOL LTD,ACADEMIC INSTNS - OTHER,Schools,PVI Providers,A60014
Royal Borough of Kingston,24/05/2024,90335366,"1,050.00",REDACTED - PERSONAL DATA,PLS LANDLORDS,Place,PSL Payments To Landlords,A22031
Royal Borough of Kingston,24/05/2024,90335384,"1,200.00",REDACTED - PERSONAL DATA,PLS LANDLORDS,Place,PSL Payments To Landlords,A22031
Royal Borough of Kingston,26/02/2024,70069785,"3,810.80",ELDERCARE (UK) LTD,SOCIAL SERVICES - OTHER,Adult Social Care & Health,Equipment And Materials Purchase,A40000
Royal Borough of Kingston,07/05/2024,90328266,550.00,REDACTED - PERSONAL DATA,CHARITIES & VOLUNTARY ORGNS,Adult Social Care & Health,"Grants, Contributions & Donations",A47005
Royal Borough of Kingston,07/05/2024,90328267,500.00,REDACTED - PERSONAL DATA,CHARITIES & VOLUNTARY ORGNS,Adult Social Care & Health,"Grants, Contributions & Donations",A47005
Royal Borough of Kingston,09/05/2024,90330750,"4,500.00",ELLINGHAM PRIMARY SCHOOL,SCHOOL FUNDS,Schools,Miscellaneous Expenses,A49000
Royal Borough of Kingston,09/05/2024,90330862,"1,620.00",ELLINGHAM PRIMARY SCHOOL,SCHOOL FUNDS,Schools,2 Yr Old Place Funding,A60000
Royal Borough of Kingston,01/05/2024,90333858,"10,477.65",ELYSIUM HEALTHCARE LTD,SOCIAL SERVICES - OTHER,Adult Social Care & Health,Independent Placements,A56006
Royal Borough of Kingston,01/05/2024,90333865,"10,109.01",ELYSIUM HEALTHCARE LTD,SOCIAL SERVICES - OTHER,Adult Social Care & Health,Independent Placements,A56006
Royal Borough of Kingston,01/05/2024,90333867,"12,027.82",ELYSIUM HEALTHCARE LTD,SOCIAL SERVICES - OTHER,Adult Social Care & Health,Independent Placements,A56006
Royal Borough of Kingston,01/05/2024,90333871,"10,355.51",ELYSIUM HEALTHCARE LTD,SOCIAL SERVICES - OTHER,Adult Social Care & Health,Independent Placements,A56006
Royal Borough of Kingston,01/05/2024,90333894,"10,477.65",ELYSIUM HEALTHCARE LTD,SOCIAL SERVICES - OTHER,Adult Social Care & Health,Independent Placements,A56006
Royal Borough of Kingston,01/05/2024,90333941,"11,063.59",ELYSIUM HEALTHCARE LTD,SOCIAL SERVICES - OTHER,Adult Social Care & Health,Independent Placements,A56006
Royal Borough of Kingston,01/05/2024,90334008,"5,239.25",EMEZZIONS LIMITED,SOCIAL SERVICES - OTHER,Adult Social Care & Health,Supported Living - new framework,A56126
Royal Borough of Kingston,01/05/2024,90334009,"2,806.74",EMEZZIONS LIMITED,SOCIAL SERVICES - OTHER,Adult Social Care & Health,Supported Living - new framework,A56126
Royal Borough of Kingston,29/04/2024,90334120,800.40,EMEZZIONS LIMITED,SOCIAL SERVICES - OTHER,Adult Social Care & Health,Supported Living - new framework,A56126
Royal Borough of Kingston,29/04/2024,90334121,960.48,EMEZZIONS LIMITED,SOCIAL SERVICES - OTHER,Adult Social Care & Health,Supported Living - new framework,A56126
Royal Borough of Kingston,01/05/2024,90334175,"2,649.86",EMEZZIONS LIMITED,SOCIAL SERVICES - OTHER,Adult Social Care & Health,Supported Living - new framework,A56126
Royal Borough of Kingston,01/05/2024,90334176,"3,534.56",EMEZZIONS LIMITED,SOCIAL SERVICES - OTHER,Adult Social Care & Health,Supported Living - new framework,A56126
Royal Borough of Kingston,01/05/2024,90334177,"1,683.95",EMEZZIONS LIMITED,SOCIAL SERVICES - OTHER,Adult Social Care & Health,Supported Living - new framework,A56126
Royal Borough of Kingston,01/05/2024,90334191,"3,651.05",EMEZZIONS LIMITED,SOCIAL SERVICES - OTHER,Adult Social Care & Health,Supported Living - new framework,A56126
Royal Borough of Kingston,01/05/2024,90334192,"2,232.37",EMEZZIONS LIMITED,SOCIAL SERVICES - OTHER,Adult Social Care & Health,Supported Living - new framework,A56126
Royal Borough of Kingston,01/05/2024,90334551,"5,317.74",EMEZZIONS LIMITED,SOCIAL SERVICES - OTHER,Adult Social Care & Health,Personal Budget - Third Party,A61019
Royal Borough of Kingston,07/05/2024,90328268,500.00,REDACTED - PERSONAL DATA,CHARITIES & VOLUNTARY ORGNS,Adult Social Care & Health,"Grants, Contributions & Donations",A47005
Royal Borough of Kingston,09/05/2024,90330773,"1,125.00",REDACTED - PERSONAL DATA,ACADEMIC INSTNS - OTHER,Schools,PVI Providers,A60014
Royal Borough of Kingston,04/04/2024,70070457,"9,300.00",EMPATHY HOUSING LTD,ACCOMMODATION BED & BREAKFAST,Place,Bed & Breakfast,A56000
Royal Borough of Kingston,01/05/2024,70070921,"9,000.00",EMPATHY HOUSING LTD,ACCOMMODATION BED & BREAKFAST,Place,Bed & Breakfast,A56000
Royal Borough of Kingston,19/04/2024,70070503,549.00,ENGLISH SPEAKING (INTERNATIONAL) BOARD,TRAINING,Corporate & Communities,Examination Fees,A44200
Royal Borough of Kingston,19/04/2024,70070504,735.00,ENGLISH SPEAKING (INTERNATIONAL) BOARD,TRAINING,Corporate & Communities,Examination Fees,A44200
Royal Borough of Kingston,19/04/2024,70070505,765.00,ENGLISH SPEAKING (INTERNATIONAL) BOARD,TRAINING,Corporate & Communities,Examination Fees,A44200
Royal Borough of Kingston,01/05/2024,90333811,"3,349.68",ENHAM,SOCIAL SERVICES - OTHER,Adult Social Care & Health,Independent Placements,A56006
Royal Borough of Kingston,01/05/2024,90334936,-570.84,ENHAM,SOCIAL SERVICES - OTHER,Adult Social Care & Health,Financially Assessed Contributions clients � Non VAT,A92047
Royal Borough of Kingston,30/04/2024,70071006,659.20,ENHANCEABLE,SOCIAL SERVICES - OTHER,Adult Social Care & Health,Other Private Contractors - Third Party,A56080
Royal Borough of Kingston,01/05/2024,90333680,"1,576.53",ENHANCEABLE,SOCIAL SERVICES - OTHER,Adult Social Care & Health,Personal Budget - Third Party,A61019
Royal Borough of Kingston,01/05/2024,90333966,"32,788.79",ENHANCEABLE,SOCIAL SERVICES - OTHER,Adult Social Care & Health,Other Private Contractors - Third Party,A56080
Royal Borough of Kingston,01/05/2024,90333969,"1,575.02",ENHANCEABLE,SOCIAL SERVICES - OTHER,Adult Social Care & Health,Other Private Contractors - Third Party,A56080
Royal Borough of Kingston,02/05/2024,70070927,"4,805.00",EurohousingLTD,ACCOMMODATION BED & BREAKFAST,Place,Bed & Breakfast,A56000
Royal Borough of Kingston,30/04/2024,70070385,650.00,EVOLVE CONSULTING ENGINEERS LTD,LEGAL & PROFESSIONAL SERVICES,Place,Buildings - Design & Planning,C14001
Royal Borough of Kingston,30/04/2024,70070610,487.42,EXCHANGE SUPPLIES LTD,SOCIAL SERVICES - OTHER,Adult Social Care & Health,Other Private Contractors - Third Party,A56080
Royal Borough of Kingston,31/03/2024,70070371,655.35,EXCHANGING LTD,TCES RETAILERS (PHARMACYS),Adult Social Care & Health,Other Private Contractors - Third Party,A56080
Royal Borough of Kingston,01/05/2024,70071635,"4,500.00",EXCLUSIVE FINE HOMES LTD,ACCOMMODATION BED & BREAKFAST,Place,Bed & Breakfast,A56000
Royal Borough of Kingston,01/05/2024,70071636,"3,900.00",EXCLUSIVE FINE HOMES LTD,ACCOMMODATION BED & BREAKFAST,Place,Bed & Breakfast,A56000
Royal Borough of Kingston,01/05/2024,70071637,"2,700.00",EXCLUSIVE FINE HOMES LTD,ACCOMMODATION BED & BREAKFAST,Place,Bed & Breakfast,A56000
Royal Borough of Kingston,24/05/2024,90335595,823.33,REDACTED - PERSONAL DATA,PLS LANDLORDS,Place,PSL Payments To Landlords,A22031
Royal Borough of Kingston,21/05/2024,70071750,"5,000.00",REDACTED - PERSONAL DATA,PLS LANDLORDS,Place,Housing Incentives,A62025
Royal Borough of Kingston,24/05/2024,90335572,"1,551.00",REDACTED - PERSONAL DATA,PLS LANDLORDS,Place,PSL Payments To Landlords,A22031
Royal Borough of Kingston,24/05/2024,90335359,918.33,REDACTED - PERSONAL DATA,PLS LANDLORDS,Place,PSL Payments To Landlords,A22031
Royal Borough of Kingston,05/04/2024,70068977,"1,950.00",F H & G LIMITED,LEGAL & PROFESSIONAL SERVICES,Housing Revenue Account,Professional Fees,A44066
Royal Borough of Kingston,05/04/2024,70068978,650.00,F H & G LIMITED,LEGAL & PROFESSIONAL SERVICES,Housing Revenue Account,Professional Fees,A44066
Royal Borough of Kingston,12/04/2024,70069470,650.00,F H & G LIMITED,LEGAL & PROFESSIONAL SERVICES,Housing Revenue Account,Professional Fees,A44066
Royal Borough of Kingston,19/04/2024,70069780,"3,250.00",F H & G LIMITED,LEGAL & PROFESSIONAL SERVICES,Housing Revenue Account,Professional Fees,A44066
Royal Borough of Kingston,26/04/2024,70070166,"1,300.00",F H & G LIMITED,LEGAL & PROFESSIONAL SERVICES,Housing Revenue Account,Professional Fees,A44066
Royal Borough of Kingston,26/04/2024,70070167,650.00,F H & G LIMITED,LEGAL & PROFESSIONAL SERVICES,Housing Revenue Account,Professional Fees,A44066
Royal Borough of Kingston,10/05/2024,70071004,"1,300.00",F H & G LIMITED,LEGAL & PROFESSIONAL SERVICES,Housing Revenue Account,Professional Fees,A44066
Royal Borough of Kingston,17/05/2024,70071438,650.00,F H & G LIMITED,LEGAL & PROFESSIONAL SERVICES,Housing Revenue Account,Professional Fees,A44066
Royal Borough of Kingston,17/05/2024,70071439,"1,300.00",F H & G LIMITED,LEGAL & PROFESSIONAL SERVICES,Housing Revenue Account,Professional Fees,A44066
Royal Borough of Kingston,24/05/2024,70071756,"2,600.00",F H & G LIMITED,LEGAL & PROFESSIONAL SERVICES,Housing Revenue Account,Professional Fees,A44066
Royal Borough of Kingston,24/05/2024,70071788,650.00,F H & G LIMITED,LEGAL & PROFESSIONAL SERVICES,Housing Revenue Account,Professional Fees,A44066
Royal Borough of Kingston,24/05/2024,90335607,"1,675.00",REDACTED - PERSONAL DATA,PLS LANDLORDS,Place,PSL Payments To Landlords,A22031
Royal Borough of Kingston,28/03/2024,70070729,"6,464.11",F.M. CONWAY LTD,CONSTRUCTION INDUSTRY,Place,Infrastructure Assets - Project Management,C12000
Royal Borough of Kingston,28/03/2024,70070757,"7,426.84",F.M. CONWAY LTD,CONSTRUCTION INDUSTRY,Place,Infrastructure Assets - Project Management,C12000
Royal Borough of Kingston,02/05/2024,70070881,"33,222.72",F.M. CONWAY LTD,CONSTRUCTION INDUSTRY,Place,Infrastructure Assets - Project Management,C12000
Royal Borough of Kingston,02/05/2024,70070882,"27,482.68",F.M. CONWAY LTD,CONSTRUCTION INDUSTRY,Place,Infrastructure Assets - Project Management,C12000
Royal Borough of Kingston,02/05/2024,70070883,"32,701.42",F.M. CONWAY LTD,CONSTRUCTION INDUSTRY,Place,Infrastructure Assets - Project Management,C12000
Royal Borough of Kingston,02/05/2024,70070884,"52,933.24",F.M. CONWAY LTD,CONSTRUCTION INDUSTRY,Place,Infrastructure Assets - Project Management,C12000
Royal Borough of Kingston,02/05/2024,70070885,"41,872.62",F.M. CONWAY LTD,CONSTRUCTION INDUSTRY,Place,Infrastructure Assets - Project Management,C12000
Royal Borough of Kingston,02/05/2024,70070886,"46,723.50",F.M. CONWAY LTD,CONSTRUCTION INDUSTRY,Place,Infrastructure Assets - Project Management,C12000
Royal Borough of Kingston,04/03/2024,70070944,"9,459.83",F.M. CONWAY LTD,CONSTRUCTION INDUSTRY,Place,Vehicle Crossings,A56043
Royal Borough of Kingston,10/05/2024,70071041,624.23,F.M. CONWAY LTD,CONSTRUCTION INDUSTRY,Place,TMS - General,A56085
Royal Borough of Kingston,15/05/2024,70071299,"7,390.54",F.M. CONWAY LTD,CONSTRUCTION INDUSTRY,Place,Infrastructure Assets - Project Management,C12000
Royal Borough of Kingston,16/05/2024,70071362,"10,169.98",F.M. CONWAY LTD,CONSTRUCTION INDUSTRY,Place,Infrastructure Assets - Project Management,C12000
Royal Borough of Kingston,16/05/2024,70071380,"1,193.21",F.M. CONWAY LTD,CONSTRUCTION INDUSTRY,Place,Infrastructure Assets - Project Management,C12000
Royal Borough of Kingston,09/05/2024,90330715,"1,237.50",FAIRFIELD PLAYBOX PLAYGROUP,ACADEMIC INSTNS - OTHER,Schools,PVI Providers,A60014
Royal Borough of Kingston,09/05/2024,90330834,"6,088.50",FAIRFIELD PLAYBOX PLAYGROUP,ACADEMIC INSTNS - OTHER,Schools,2 Yr Old Place Funding,A60000
Royal Borough of Kingston,23/05/2024,90334978,910.00,FAIRFIELD PLAYBOX PLAYGROUP,ACADEMIC INSTNS - OTHER,Schools,2 Yr Old Place Funding,A60000
Royal Borough of Kingston,01/05/2024,90333914,"5,233.73",FAMILY INVESTMENT (THREE) LIMITED,SOCIAL SERVICES RESIDENTIAL,Adult Social Care & Health,Independent Placements,A56006
Royal Borough of Kingston,24/05/2024,90335340,"1,333.33",REDACTED - PERSONAL DATA,PLS LANDLORDS,Place,PSL Payments To Landlords,A22031
Royal Borough of Kingston,30/04/2024,70070340,"6,000.00",FARRER HUXLEY LIMITED,CONSULTING ARCHITECTS ENGINEER,Place,Infrastructure Assets - Detailed Design,C12003
Royal Borough of Kingston,09/05/2024,90330767,"1,518.75",REDACTED - PERSONAL DATA,ACADEMIC INSTNS - OTHER,Schools,PVI Providers,A60014
Royal Borough of Kingston,09/05/2024,90330867,"1,215.00",REDACTED - PERSONAL DATA,ACADEMIC INSTNS - OTHER,Schools,2 Yr Old Place Funding,A60000
Royal Borough of Kingston,09/05/2024,90330783,"10,504.69",Fern Hill Primary School,ACADEMIC INSTNS - OTHER,Schools,PVI Providers,A60014
Royal Borough of Kingston,01/05/2024,90333802,"4,703.14",Fir Ridge Care Home Ltd,SOCIAL SERVICES RESIDENTIAL,Adult Social Care & Health,Independent Placements,A56006
Royal Borough of Kingston,01/05/2024,90333840,"4,694.29",Fir Ridge Care Home Ltd,SOCIAL SERVICES RESIDENTIAL,Adult Social Care & Health,Independent Placements,A56006
Royal Borough of Kingston,13/05/2024,70071017,"141,702.74",FIS PAYMENTS,SUNDRY SUPPLIER - FINANCE,Place,Bed & Breakfast,A56000
Royal Borough of Kingston,01/05/2024,90333921,"7,998.22",FitzRoy Support,SOCIAL SERVICES - OTHER,Adult Social Care & Health,Independent Placements,A56006
Royal Borough of Kingston,22/04/2024,70070736,"1,196.43",Fotelite Ltd,TEMP STAFF & CONSULTANCY,Adult Social Care & Health,Other Private Contractors - Third Party,A56080
Royal Borough of Kingston,01/05/2024,90328398,"4,179.60",FOUR SEASONS HEALTHCARE,SOCIAL SERVICES RESIDENTIAL,Adult Social Care & Health,Independent Placements,A56006
Royal Borough of Kingston,01/05/2024,90328399,"-4,178.57",FOUR SEASONS HEALTHCARE,SOCIAL SERVICES RESIDENTIAL,Adult Social Care & Health,Independent Placements,A56006
Royal Borough of Kingston,01/05/2024,90328402,"3,554.14",FOUR SEASONS HEALTHCARE,SOCIAL SERVICES RESIDENTIAL,Adult Social Care & Health,Independent Placements,A56006
Royal Borough of Kingston,01/05/2024,90328403,"-3,517.86",FOUR SEASONS HEALTHCARE,SOCIAL SERVICES RESIDENTIAL,Adult Social Care & Health,Independent Placements,A56006
Royal Borough of Kingston,01/05/2024,90328474,"3,598.81",FOUR SEASONS HEALTHCARE,SOCIAL SERVICES RESIDENTIAL,Adult Social Care & Health,Independent Placements,A56006
Royal Borough of Kingston,01/05/2024,90328475,"-3,528.57",FOUR SEASONS HEALTHCARE,SOCIAL SERVICES RESIDENTIAL,Adult Social Care & Health,Independent Placements,A56006
Royal Borough of Kingston,01/05/2024,90328476,"4,014.06",FOUR SEASONS HEALTHCARE,SOCIAL SERVICES RESIDENTIAL,Adult Social Care & Health,Independent Placements,A56006
Royal Borough of Kingston,01/05/2024,90328477,"-3,935.71",FOUR SEASONS HEALTHCARE,SOCIAL SERVICES RESIDENTIAL,Adult Social Care & Health,Independent Placements,A56006
Royal Borough of Kingston,01/05/2024,90328478,"4,290.89",FOUR SEASONS HEALTHCARE,SOCIAL SERVICES RESIDENTIAL,Adult Social Care & Health,Independent Placements,A56006
Royal Borough of Kingston,01/05/2024,90328479,"-4,207.14",FOUR SEASONS HEALTHCARE,SOCIAL SERVICES RESIDENTIAL,Adult Social Care & Health,Independent Placements,A56006
Royal Borough of Kingston,01/05/2024,90328480,"4,277.44",FOUR SEASONS HEALTHCARE,SOCIAL SERVICES RESIDENTIAL,Adult Social Care & Health,Independent Placements,A56006
Royal Borough of Kingston,01/05/2024,90328481,"-4,071.43",FOUR SEASONS HEALTHCARE,SOCIAL SERVICES RESIDENTIAL,Adult Social Care & Health,Independent Placements,A56006
Royal Borough of Kingston,01/05/2024,90328516,852.99,FOUR SEASONS HEALTHCARE,SOCIAL SERVICES RESIDENTIAL,Adult Social Care & Health,Independent Placements,A56006
Royal Borough of Kingston,01/05/2024,90328517,-844.29,FOUR SEASONS HEALTHCARE,SOCIAL SERVICES RESIDENTIAL,Adult Social Care & Health,Independent Placements,A56006
Royal Borough of Kingston,01/05/2024,90328518,"4,352.44",FOUR SEASONS HEALTHCARE,SOCIAL SERVICES RESIDENTIAL,Adult Social Care & Health,Independent Placements,A56006
Royal Borough of Kingston,01/05/2024,90328519,"-4,221.43",FOUR SEASONS HEALTHCARE,SOCIAL SERVICES RESIDENTIAL,Adult Social Care & Health,Independent Placements,A56006
Royal Borough of Kingston,01/05/2024,90328596,"3,389.74",FOUR SEASONS HEALTHCARE,SOCIAL SERVICES RESIDENTIAL,Adult Social Care & Health,Independent Placements,A56006
Royal Borough of Kingston,01/05/2024,90328597,"-3,228.34",FOUR SEASONS HEALTHCARE,SOCIAL SERVICES RESIDENTIAL,Adult Social Care & Health,Independent Placements,A56006
Royal Borough of Kingston,01/05/2024,90328598,"3,502.73",FOUR SEASONS HEALTHCARE,SOCIAL SERVICES RESIDENTIAL,Adult Social Care & Health,Independent Placements,A56006
Royal Borough of Kingston,01/05/2024,90328599,"-3,335.95",FOUR SEASONS HEALTHCARE,SOCIAL SERVICES RESIDENTIAL,Adult Social Care & Health,Independent Placements,A56006
Royal Borough of Kingston,01/05/2024,90328600,"3,389.74",FOUR SEASONS HEALTHCARE,SOCIAL SERVICES RESIDENTIAL,Adult Social Care & Health,Independent Placements,A56006
Royal Borough of Kingston,01/05/2024,90328601,"-3,228.34",FOUR SEASONS HEALTHCARE,SOCIAL SERVICES RESIDENTIAL,Adult Social Care & Health,Independent Placements,A56006
Royal Borough of Kingston,01/05/2024,90328602,"3,502.73",FOUR SEASONS HEALTHCARE,SOCIAL SERVICES RESIDENTIAL,Adult Social Care & Health,Independent Placements,A56006
Royal Borough of Kingston,01/05/2024,90328603,"-3,335.95",FOUR SEASONS HEALTHCARE,SOCIAL SERVICES RESIDENTIAL,Adult Social Care & Health,Independent Placements,A56006
Royal Borough of Kingston,01/05/2024,90328604,"3,502.73",FOUR SEASONS HEALTHCARE,SOCIAL SERVICES RESIDENTIAL,Adult Social Care & Health,Independent Placements,A56006
Royal Borough of Kingston,01/05/2024,90328605,"-3,335.95",FOUR SEASONS HEALTHCARE,SOCIAL SERVICES RESIDENTIAL,Adult Social Care & Health,Independent Placements,A56006
Royal Borough of Kingston,01/05/2024,90328606,"3,389.74",FOUR SEASONS HEALTHCARE,SOCIAL SERVICES RESIDENTIAL,Adult Social Care & Health,Independent Placements,A56006
Royal Borough of Kingston,01/05/2024,90328607,"-3,228.34",FOUR SEASONS HEALTHCARE,SOCIAL SERVICES RESIDENTIAL,Adult Social Care & Health,Independent Placements,A56006
Royal Borough of Kingston,01/05/2024,90328608,"3,502.73",FOUR SEASONS HEALTHCARE,SOCIAL SERVICES RESIDENTIAL,Adult Social Care & Health,Independent Placements,A56006
Royal Borough of Kingston,01/05/2024,90328609,"-3,335.95",FOUR SEASONS HEALTHCARE,SOCIAL SERVICES RESIDENTIAL,Adult Social Care & Health,Independent Placements,A56006
Royal Borough of Kingston,01/05/2024,90328610,"3,389.74",FOUR SEASONS HEALTHCARE,SOCIAL SERVICES RESIDENTIAL,Adult Social Care & Health,Independent Placements,A56006
Royal Borough of Kingston,01/05/2024,90328611,"-3,228.34",FOUR SEASONS HEALTHCARE,SOCIAL SERVICES RESIDENTIAL,Adult Social Care & Health,Independent Placements,A56006
Royal Borough of Kingston,01/05/2024,90328612,"3,502.73",FOUR SEASONS HEALTHCARE,SOCIAL SERVICES RESIDENTIAL,Adult Social Care & Health,Independent Placements,A56006
Royal Borough of Kingston,01/05/2024,90328613,"-3,335.95",FOUR SEASONS HEALTHCARE,SOCIAL SERVICES RESIDENTIAL,Adult Social Care & Health,Independent Placements,A56006
Royal Borough of Kingston,01/05/2024,90328614,"3,502.73",FOUR SEASONS HEALTHCARE,SOCIAL SERVICES RESIDENTIAL,Adult Social Care & Health,Independent Placements,A56006
Royal Borough of Kingston,01/05/2024,90328615,"-3,335.95",FOUR SEASONS HEALTHCARE,SOCIAL SERVICES RESIDENTIAL,Adult Social Care & Health,Independent Placements,A56006
Royal Borough of Kingston,01/05/2024,90328616,"3,276.75",FOUR SEASONS HEALTHCARE,SOCIAL SERVICES RESIDENTIAL,Adult Social Care & Health,Independent Placements,A56006
Royal Borough of Kingston,01/05/2024,90328617,"-3,120.73",FOUR SEASONS HEALTHCARE,SOCIAL SERVICES RESIDENTIAL,Adult Social Care & Health,Independent Placements,A56006
Royal Borough of Kingston,01/05/2024,90328618,"3,502.73",FOUR SEASONS HEALTHCARE,SOCIAL SERVICES RESIDENTIAL,Adult Social Care & Health,Independent Placements,A56006
Royal Borough of Kingston,01/05/2024,90328619,"-3,335.95",FOUR SEASONS HEALTHCARE,SOCIAL SERVICES RESIDENTIAL,Adult Social Care & Health,Independent Placements,A56006
Royal Borough of Kingston,01/05/2024,90328620,"3,389.74",FOUR SEASONS HEALTHCARE,SOCIAL SERVICES RESIDENTIAL,Adult Social Care & Health,Independent Placements,A56006
Royal Borough of Kingston,01/05/2024,90328621,"-3,228.34",FOUR SEASONS HEALTHCARE,SOCIAL SERVICES RESIDENTIAL,Adult Social Care & Health,Independent Placements,A56006
Royal Borough of Kingston,01/05/2024,90328708,"3,587.70",FOUR SEASONS HEALTHCARE,SOCIAL SERVICES RESIDENTIAL,Adult Social Care & Health,Independent Placements,A56006
Royal Borough of Kingston,01/05/2024,90328709,"-3,125.44",FOUR SEASONS HEALTHCARE,SOCIAL SERVICES RESIDENTIAL,Adult Social Care & Health,Independent Placements,A56006
Royal Borough of Kingston,01/05/2024,90328710,"3,707.29",FOUR SEASONS HEALTHCARE,SOCIAL SERVICES RESIDENTIAL,Adult Social Care & Health,Independent Placements,A56006
Royal Borough of Kingston,01/05/2024,90328711,"-3,229.62",FOUR SEASONS HEALTHCARE,SOCIAL SERVICES RESIDENTIAL,Adult Social Care & Health,Independent Placements,A56006
Royal Borough of Kingston,01/05/2024,90328712,"3,587.70",FOUR SEASONS HEALTHCARE,SOCIAL SERVICES RESIDENTIAL,Adult Social Care & Health,Independent Placements,A56006
Royal Borough of Kingston,01/05/2024,90328713,"-3,125.44",FOUR SEASONS HEALTHCARE,SOCIAL SERVICES RESIDENTIAL,Adult Social Care & Health,Independent Placements,A56006
Royal Borough of Kingston,01/05/2024,90328714,"3,707.29",FOUR SEASONS HEALTHCARE,SOCIAL SERVICES RESIDENTIAL,Adult Social Care & Health,Independent Placements,A56006
Royal Borough of Kingston,01/05/2024,90328715,"-3,229.62",FOUR SEASONS HEALTHCARE,SOCIAL SERVICES RESIDENTIAL,Adult Social Care & Health,Independent Placements,A56006
Royal Borough of Kingston,01/05/2024,90328716,"3,707.29",FOUR SEASONS HEALTHCARE,SOCIAL SERVICES RESIDENTIAL,Adult Social Care & Health,Independent Placements,A56006
Royal Borough of Kingston,01/05/2024,90328717,"-3,229.62",FOUR SEASONS HEALTHCARE,SOCIAL SERVICES RESIDENTIAL,Adult Social Care & Health,Independent Placements,A56006
Royal Borough of Kingston,01/05/2024,90328718,"3,587.70",FOUR SEASONS HEALTHCARE,SOCIAL SERVICES RESIDENTIAL,Adult Social Care & Health,Independent Placements,A56006
Royal Borough of Kingston,01/05/2024,90328719,"-3,125.44",FOUR SEASONS HEALTHCARE,SOCIAL SERVICES RESIDENTIAL,Adult Social Care & Health,Independent Placements,A56006
Royal Borough of Kingston,01/05/2024,90328720,"3,707.29",FOUR SEASONS HEALTHCARE,SOCIAL SERVICES RESIDENTIAL,Adult Social Care & Health,Independent Placements,A56006
Royal Borough of Kingston,01/05/2024,90328721,"-3,229.62",FOUR SEASONS HEALTHCARE,SOCIAL SERVICES RESIDENTIAL,Adult Social Care & Health,Independent Placements,A56006
Royal Borough of Kingston,01/05/2024,90328722,"3,587.70",FOUR SEASONS HEALTHCARE,SOCIAL SERVICES RESIDENTIAL,Adult Social Care & Health,Independent Placements,A56006
Royal Borough of Kingston,01/05/2024,90328723,"-3,125.44",FOUR SEASONS HEALTHCARE,SOCIAL SERVICES RESIDENTIAL,Adult Social Care & Health,Independent Placements,A56006
Royal Borough of Kingston,01/05/2024,90328724,"3,707.29",FOUR SEASONS HEALTHCARE,SOCIAL SERVICES RESIDENTIAL,Adult Social Care & Health,Independent Placements,A56006
Royal Borough of Kingston,01/05/2024,90328725,"-3,229.62",FOUR SEASONS HEALTHCARE,SOCIAL SERVICES RESIDENTIAL,Adult Social Care & Health,Independent Placements,A56006
Royal Borough of Kingston,01/05/2024,90328726,"3,707.29",FOUR SEASONS HEALTHCARE,SOCIAL SERVICES RESIDENTIAL,Adult Social Care & Health,Independent Placements,A56006
Royal Borough of Kingston,01/05/2024,90328727,"-3,229.62",FOUR SEASONS HEALTHCARE,SOCIAL SERVICES RESIDENTIAL,Adult Social Care & Health,Independent Placements,A56006
